Service Area,Service Division,Expense Type,Expense Code,Detailed Expense Type,Payment Date,Transaction Number,Amount Exc Vat,Supplier Name
Regeneration & Economic Development,Economic Development and Housing,Supplies and Services,336005,Advertising,01-Dec-2014,2828773-1828944,"1,300.00",TRINITY MIRROR PUBLISHING LTD.
Children and Adult Services,Childrens Services,Employees,080025,Agency Staff,01-Dec-2014,2828323-2296364,"2,106.00",CELSIAN.
Neighbourhood Services,Technical Services,Premises,150015,Apportioned Exps of Operational Blds,01-Dec-2014,2828440-140152,"1,457.50",GO TRANSPORT & HIAB HIRE.
Neighbourhood Services,Culture & Sport,Premises,106082,Centrally Controlled Rep and Maint,01-Dec-2014,2828502-567929,510.00,LANES GROUP PLC.
Neighbourhood Services,Culture & Sport,Premises,106082,Centrally Controlled Rep and Maint,01-Dec-2014,2828261-23621,"1,255.85",AQUAJET DRAIN CLEANING LTD.
Neighbourhood Services,Culture & Sport,Premises,106082,Centrally Controlled Rep and Maint,01-Dec-2014,2828406-64968,"3,000.00",EXPRESS ELEVATORS LTD.
Resources,I.C.T. Services,Vehicles Equipment Furniture and Fittings,912701,Computer equipment,01-Dec-2014,2828714-OP/L925886,723.60,SPECIALIST COMPUTER CENTRES PLC.
Resources,Financial Services,Supplies and Services,342051,Computers and Communications,01-Dec-2014,2828333-C/IC127726,"1,700.00",CIVICA UK LTD.
Resources,Financial Services,Supplies and Services,342051,Computers and Communications,01-Dec-2014,2828333-C/RB129011,"12,500.00",CIVICA UK LTD.
Resources,Financial Services,Supplies and Services,342051,Computers and Communications,01-Dec-2014,2828333-C/RB129012,"5,500.00",CIVICA UK LTD.
Resources,Human Resources,Supplies and Services,342051,Computers and Communications,01-Dec-2014,2828597-I2175829,974.20,NORTHGATE INFORMATION SOLUTIONS UK LTD.
Resources,Human Resources,Supplies and Services,342051,Computers and Communications,01-Dec-2014,2828597-I2178040,720.00,NORTHGATE INFORMATION SOLUTIONS UK LTD.
Resources,Legal & Democratic Services,Supplies and Services,352001,Conference Expenses,01-Dec-2014,2828567-2014/416,700.00,NATIONAL ASSOC OF COUNCILLORS ENGLISH REGION.
Neighbourhood Services,Technical Services,Construction Work,908105,Construction work,01-Dec-2014,2828353-15919,624.17,JACK COUPE & SONS LTD T/A COUPE LINE.
Neighbourhood Services,Technical Services,Construction Work,908105,Construction work,01-Dec-2014,2828265-107492,"13,797.00",ARRIVA NORTH EAST LTD.
RED HRA,HRA Capital,Construction Work,908105,Construction work,01-Dec-2014,2828385-19942,794.50,EASIBATHE LTD.
RED HRA,HRA Capital,Construction Work,908105,Construction work,01-Dec-2014,2828385-21002,"1,079.44",EASIBATHE LTD.
RED HRA,HRA Capital,Construction Work,908105,Construction work,01-Dec-2014,2828815-32646,784.36,YWC GROUP LTD.
RED HRA,HRA Capital,Construction Work,908105,Construction work,01-Dec-2014,2828815-32647,"1,093.44",YWC GROUP LTD.
RED HRA,HRA Capital,Construction Work,908105,Construction work,01-Dec-2014,2828815-32694,975.74,YWC GROUP LTD.
RED HRA,HRA Capital,Construction Work,908105,Construction work,01-Dec-2014,2828815-32696,517.85,YWC GROUP LTD.
Neighbourhood Services,Direct Services,Transport,230005,Contract Hire,01-Dec-2014,2828309-NEW8113456,500.00,BURNT TREE GROUP LTD.
Neighbourhood Services,Direct Services,Transport,230005,Contract Hire,01-Dec-2014,2828309-NEW8114317,775.00,BURNT TREE GROUP LTD.
Neighbourhood Services,Direct Services,Transport,230005,Contract Hire,01-Dec-2014,2828309-NEW8114333,707.16,BURNT TREE GROUP LTD.
Neighbourhood Services,Direct Services,Transport,230005,Contract Hire,01-Dec-2014,2828772-11360,620.00,TRASH UK LTD.
Neighbourhood Services,Direct Services,Transport,230005,Contract Hire,01-Dec-2014,2828772-11361,775.00,TRASH UK LTD.
Neighbourhood Services,Direct Services,Transport,230005,Contract Hire,01-Dec-2014,2828789-38290,750.00,W MARLEY AGRICULTURAL CONTRACTORS LTD.
Neighbourhood Services,Direct Services,Transport,230005,Contract Hire,01-Dec-2014,2828696-10541318,"1,232.30",SHB HIRE LTD.
Children and Adult Services,Education,Transport,230008,Contract Hire,01-Dec-2014,2828254-0401,762.00,AJS PRIVATE HIRE.
Children and Adult Services,Education,Transport,230007,Contract Hire,01-Dec-2014,2828352-DCC/4029/OCT14,"1,683.00",COUNTY COACHES.
Children and Adult Services,Education,Transport,230008,Contract Hire,01-Dec-2014,2828550-THPK10-14,586.71,MR CT WALKER T/A COLIN`S TAXIS.
Neighbourhood Services,Technical Services,Third Party Payments,460053,Contract Payments,01-Dec-2014,2828353-16001.,"2,798.64",JACK COUPE & SONS LTD T/A COUPE LINE.
Neighbourhood Services,Technical Services,Third Party Payments,460053,Contract Payments,01-Dec-2014,2828353-16020,591.56,JACK COUPE & SONS LTD T/A COUPE LINE.
Neighbourhood Services,Technical Services,Third Party Payments,460053,Contract Payments,01-Dec-2014,2828353-16031,507.51,JACK COUPE & SONS LTD T/A COUPE LINE.
Neighbourhood Services,Technical Services,Third Party Payments,460053,Contract Payments,01-Dec-2014,2828353-16040.,725.60,JACK COUPE & SONS LTD T/A COUPE LINE.
Neighbourhood Services,Technical Services,Third Party Payments,460053,Contract Payments,01-Dec-2014,2828353-16077.,829.40,JACK COUPE & SONS LTD T/A COUPE LINE.
Neighbourhood Services,Technical Services,Third Party Payments,460053,Contract Payments,01-Dec-2014,2828353-16089,768.13,JACK COUPE & SONS LTD T/A COUPE LINE.
Neighbourhood Services,Technical Services,Third Party Payments,460053,Contract Payments,01-Dec-2014,2828353-16090,595.97,JACK COUPE & SONS LTD T/A COUPE LINE.
Neighbourhood Services,Technical Services,Third Party Payments,460053,Contract Payments,01-Dec-2014,2828354-16004,989.30,JACK COUPE & SONS LTD T/A COUPE LINE.
Children and Adult Services,Public Health,Third Party Payments,460803,Contract Payments,01-Dec-2014,2828515-177,"86,000.00",LIVING MINDFULLY CIC.
Children and Adult Services,Public Health,Premises,120009,Energy Costs,01-Dec-2014,2828582-48332545,"1,303.53",NHS PROPERTY SERVICES LTD.
Children and Adult Services,Public Health,Premises,120009,Energy Costs,01-Dec-2014,2828582-48336705,"1,446.37",NHS PROPERTY SERVICES LTD.
Neighbourhood Services,Direct Services,Supplies and Services,304259,Equipment and Materials,01-Dec-2014,2828808-109267/M,"7,560.00",WYBONE LTD.
Neighbourhood Services,Projects and Business services,Supplies and Services,304357,Equipment and Materials,01-Dec-2014,2828480-1324872,550.38,JOHN NIXON LTD.
Neighbourhood Services,Technical Services,Supplies and Services,304999,Equipment and Materials,01-Dec-2014,2828431-108410492,"2,451.00",GATESHEAD COUNCIL.
Neighbourhood Services,Technical Services,Supplies and Services,304221,Equipment and Materials,01-Dec-2014,2828251-20628348,"1,227.60",AGGREGATE INDUSTRIES UK LTD.
Neighbourhood Services,Technical Services,Supplies and Services,304221,Equipment and Materials,01-Dec-2014,2828385-20899,"2,445.78",EASIBATHE LTD.
Neighbourhood Services,Technical Services,Supplies and Services,304358,Equipment and Materials,01-Dec-2014,2828403-0000042941,"2,175.00",EURO ENVIRONMENTAL GROUP.
Neighbourhood Services,Technical Services,Supplies and Services,304358,Equipment and Materials,01-Dec-2014,2828481-21880,989.00,JOHN R BUTTERFIELD LTD.
Neighbourhood Services,Technical Services,Supplies and Services,304358,Equipment and Materials,01-Dec-2014,2828481-21950,656.60,JOHN R BUTTERFIELD LTD.
Neighbourhood Services,Technical Services,Supplies and Services,304358,Equipment and Materials,01-Dec-2014,2828481-22254,957.00,JOHN R BUTTERFIELD LTD.
Neighbourhood Services,Technical Services,Supplies and Services,304358,Equipment and Materials,01-Dec-2014,2828481-22257,815.00,JOHN R BUTTERFIELD LTD.
Neighbourhood Services,Technical Services,Supplies and Services,304358,Equipment and Materials,01-Dec-2014,2828481-22302,939.00,JOHN R BUTTERFIELD LTD.
Neighbourhood Services,Technical Services,Supplies and Services,304358,Equipment and Materials,01-Dec-2014,2828481-22307,819.00,JOHN R BUTTERFIELD LTD.
Neighbourhood Services,Technical Services,Supplies and Services,304358,Equipment and Materials,01-Dec-2014,2828481-22309,907.00,JOHN R BUTTERFIELD LTD.
Neighbourhood Services,Technical Services,Supplies and Services,304358,Equipment and Materials,01-Dec-2014,2828481-22346,"1,179.00",JOHN R BUTTERFIELD LTD.
Neighbourhood Services,Technical Services,Supplies and Services,304358,Equipment and Materials,01-Dec-2014,2828481-22348,925.00,JOHN R BUTTERFIELD LTD.
Neighbourhood Services,Technical Services,Supplies and Services,304358,Equipment and Materials,01-Dec-2014,2828481-22352,"1,027.00",JOHN R BUTTERFIELD LTD.
Neighbourhood Services,Technical Services,Supplies and Services,304358,Equipment and Materials,01-Dec-2014,2828481-22353,901.60,JOHN R BUTTERFIELD LTD.
Neighbourhood Services,Technical Services,Supplies and Services,304358,Equipment and Materials,01-Dec-2014,2828481-22357,"1,137.60",JOHN R BUTTERFIELD LTD.
Neighbourhood Services,Technical Services,Supplies and Services,304358,Equipment and Materials,01-Dec-2014,2828481-22396,935.00,JOHN R BUTTERFIELD LTD.
Neighbourhood Services,Technical Services,Supplies and Services,304358,Equipment and Materials,01-Dec-2014,2828481-22399,"1,305.00",JOHN R BUTTERFIELD LTD.
Neighbourhood Services,Technical Services,Supplies and Services,304358,Equipment and Materials,01-Dec-2014,2828481-22400,"1,155.60",JOHN R BUTTERFIELD LTD.
Neighbourhood Services,Technical Services,Supplies and Services,304358,Equipment and Materials,01-Dec-2014,2828481-22401,"1,027.00",JOHN R BUTTERFIELD LTD.
Neighbourhood Services,Technical Services,Supplies and Services,304358,Equipment and Materials,01-Dec-2014,2828481-22402,910.60,JOHN R BUTTERFIELD LTD.
Neighbourhood Services,Technical Services,Supplies and Services,304358,Equipment and Materials,01-Dec-2014,2828481-22406,703.20,JOHN R BUTTERFIELD LTD.
Neighbourhood Services,Technical Services,Supplies and Services,304358,Equipment and Materials,01-Dec-2014,2828481-22408,766.00,JOHN R BUTTERFIELD LTD.
Neighbourhood Services,Technical Services,Supplies and Services,304358,Equipment and Materials,01-Dec-2014,2828481-22409,"1,053.40",JOHN R BUTTERFIELD LTD.
Neighbourhood Services,Technical Services,Supplies and Services,304358,Equipment and Materials,01-Dec-2014,2828481-22410,"1,079.00",JOHN R BUTTERFIELD LTD.
Neighbourhood Services,Technical Services,Supplies and Services,304358,Equipment and Materials,01-Dec-2014,2828481-22434,930.00,JOHN R BUTTERFIELD LTD.
Neighbourhood Services,Technical Services,Supplies and Services,304358,Equipment and Materials,01-Dec-2014,2828481-22435,931.00,JOHN R BUTTERFIELD LTD.
Neighbourhood Services,Technical Services,Supplies and Services,304358,Equipment and Materials,01-Dec-2014,2828481-22436,589.50,JOHN R BUTTERFIELD LTD.
Neighbourhood Services,Technical Services,Supplies and Services,304358,Equipment and Materials,01-Dec-2014,2828481-22437,"1,444.80",JOHN R BUTTERFIELD LTD.
Neighbourhood Services,Technical Services,Supplies and Services,304358,Equipment and Materials,01-Dec-2014,2828481-22438,"1,027.00",JOHN R BUTTERFIELD LTD.
Neighbourhood Services,Technical Services,Supplies and Services,304358,Equipment and Materials,01-Dec-2014,2828481-22440,715.20,JOHN R BUTTERFIELD LTD.
Neighbourhood Services,Technical Services,Supplies and Services,304358,Equipment and Materials,01-Dec-2014,2828481-22441,726.00,JOHN R BUTTERFIELD LTD.
Neighbourhood Services,Technical Services,Supplies and Services,304358,Equipment and Materials,01-Dec-2014,2828481-22442,"1,046.00",JOHN R BUTTERFIELD LTD.
Neighbourhood Services,Technical Services,Supplies and Services,304358,Equipment and Materials,01-Dec-2014,2828481-22443,703.20,JOHN R BUTTERFIELD LTD.
Neighbourhood Services,Technical Services,Supplies and Services,304358,Equipment and Materials,01-Dec-2014,2828481-22472,"1,197.70",JOHN R BUTTERFIELD LTD.
Neighbourhood Services,Technical Services,Supplies and Services,304358,Equipment and Materials,01-Dec-2014,2828481-22473,"1,027.00",JOHN R BUTTERFIELD LTD.
Neighbourhood Services,Technical Services,Supplies and Services,304358,Equipment and Materials,01-Dec-2014,2828481-22476,706.00,JOHN R BUTTERFIELD LTD.
Neighbourhood Services,Technical Services,Supplies and Services,304358,Equipment and Materials,01-Dec-2014,2828481-22477,578.70,JOHN R BUTTERFIELD LTD.
Neighbourhood Services,Technical Services,Supplies and Services,304358,Equipment and Materials,01-Dec-2014,2828481-22519,909.00,JOHN R BUTTERFIELD LTD.
Neighbourhood Services,Technical Services,Supplies and Services,304358,Equipment and Materials,01-Dec-2014,2828481-22520,914.20,JOHN R BUTTERFIELD LTD.
Neighbourhood Services,Technical Services,Supplies and Services,304358,Equipment and Materials,01-Dec-2014,2828481-22521,"1,152.00",JOHN R BUTTERFIELD LTD.
Neighbourhood Services,Technical Services,Supplies and Services,304358,Equipment and Materials,01-Dec-2014,2828481-22522,703.20,JOHN R BUTTERFIELD LTD.
Neighbourhood Services,Technical Services,Supplies and Services,304358,Equipment and Materials,01-Dec-2014,2828481-22573,"1,027.00",JOHN R BUTTERFIELD LTD.
Neighbourhood Services,Technical Services,Supplies and Services,304358,Equipment and Materials,01-Dec-2014,2828481-22575,"1,168.00",JOHN R BUTTERFIELD LTD.
Neighbourhood Services,Technical Services,Supplies and Services,304358,Equipment and Materials,01-Dec-2014,2828481-22577,860.40,JOHN R BUTTERFIELD LTD.
Neighbourhood Services,Technical Services,Supplies and Services,304358,Equipment and Materials,01-Dec-2014,2828483-0000078479,990.00,JOHN WADE (HAULAGE) LTD.
Neighbourhood Services,Technical Services,Supplies and Services,304358,Equipment and Materials,01-Dec-2014,2828483-0000078480,652.50,JOHN WADE (HAULAGE) LTD.
Neighbourhood Services,Technical Services,Supplies and Services,304221,Equipment and Materials,01-Dec-2014,2828488-CNI21000/D,673.82,JT DOVE LTD.
Neighbourhood Services,Technical Services,Supplies and Services,304221,Equipment and Materials,01-Dec-2014,2828500-9031292410,"1,574.00",LAFARGE TARMAC TRADING LTD.
Neighbourhood Services,Technical Services,Supplies and Services,304221,Equipment and Materials,01-Dec-2014,2828500-9031867846,"1,143.40",LAFARGE TARMAC TRADING LTD.
Neighbourhood Services,Technical Services,Supplies and Services,304221,Equipment and Materials,01-Dec-2014,2828500-9031867847,"1,940.06",LAFARGE TARMAC TRADING LTD.
Neighbourhood Services,Technical Services,Supplies and Services,304358,Equipment and Materials,01-Dec-2014,2828531-1734,980.50,MARTIN JEWITT PLANT HIRE.
Neighbourhood Services,Technical Services,Supplies and Services,304358,Equipment and Materials,01-Dec-2014,2828652-9085,899.00,RD KEARTON & SONS LTD.
Neighbourhood Services,Direct Services,Supplies and Services,304221,Equipment and Materials,01-Dec-2014,2828301-1650/0876132,651.04,BSS GROUP PLC.
Neighbourhood Services,Direct Services,Supplies and Services,304221,Equipment and Materials,01-Dec-2014,2828303-1650/0876131,933.43,BSS GROUP PLC.
Neighbourhood Services,Projects and Business services,Supplies and Services,304358,Equipment and Materials,01-Dec-2014,2828789-37694,692.52,W MARLEY AGRICULTURAL CONTRACTORS LTD.
Neighbourhood Services,Culture & Sport,Supplies and Services,304337,Equipment and Materials,01-Dec-2014,2828621-000613155,575.12,PEN & SWORD BOOKS LTD.
Regeneration & Economic Development,Transport and Contracted Services,Supplies and Services,304245,Equipment and Materials,01-Dec-2014,2828775-10252574,"1,126.00",TUNSTALL HEALTHCARE (UK) LTD.
Resources,I.C.T. Services,Supplies and Services,304245,Equipment and Materials,01-Dec-2014,2828633-7413485,770.00,PREMIER PAPER GROUP LTD.
Children and Adult Services,Childrens Services,Supplies and Services,364352,Grants to Voluntary Organisations,01-Dec-2014,2828729-D1IN/00016575,"3,220.58",STONHAM HOUSING ASSOCIATION LTD.
Children and Adult Services,Childrens Services,Supplies and Services,364352,Grants to Voluntary Organisations,01-Dec-2014,2828729-D1IN/00016578,"3,220.58",STONHAM HOUSING ASSOCIATION LTD.
Assistant Chief Executive,Partnerships & Community Engagement Div.,Supplies and Services,384199,Miscellaneous Expenses,01-Dec-2014,2828401-2014/063,"1,059.20",EMILY SWEETMAN LTD.
Neighbourhood Services,Direct Services,Supplies and Services,384194,Miscellaneous Expenses,01-Dec-2014,2828583-A03577,"2,125.00",NIRAMAX GROUP LTD.
Neighbourhood Services,Technical Services,Supplies and Services,384110,Miscellaneous Expenses,01-Dec-2014,2828649-25/11/2014,628.78,RADIODETECTION LTD.
Regeneration & Economic Development,Economic Development and Housing,Supplies and Services,384437,Miscellaneous Expenses,01-Dec-2014,2828798-OrderNo1403359,"1,633.18",WESTERN UNION BUSINESS SOLUTIONS.
Regeneration & Economic Development,Economic Development and Housing,Supplies and Services,384700,Miscellaneous Expenses,01-Dec-2014,2828486-RED-11-2014-154,"1,000.00",REDACTED - PAYMENT TO INDIVIDUAL
Regeneration & Economic Development,Transport and Contracted Services,Supplies and Services,384199,Miscellaneous Expenses,01-Dec-2014,2828327-839,"3,484.00",CHARGE YOUR CAR LTD.
Regeneration & Economic Development,Spatial Policy Planning Assets & Environment,Supplies and Services,384199,Miscellaneous Expenses,01-Dec-2014,2828730-T968-05,868.00,STRUCTURAL & CIVIL CONSULTANTS LTD.
Regeneration & Economic Development,Spatial Policy Planning Assets & Environment,Supplies and Services,384199,Miscellaneous Expenses,01-Dec-2014,2828798-OrderNo1403350,"2,460.45",WESTERN UNION BUSINESS SOLUTIONS.
Children and Adult Services,Childrens Services,Supplies and Services,384199,Miscellaneous Expenses,01-Dec-2014,2828420-0000003509,600.00,FOUNDATION OF LIGHT.
Children and Adult Services,Head of Adults,Supplies and Services,384616,Miscellaneous Expenses,01-Dec-2014,2828421-SH231415,523.20,FOUR HOUSING GROUP.
Children and Adult Services,Education,Supplies and Services,384199,Miscellaneous Expenses,01-Dec-2014,2828508-21067,640.00,LEE`S COACHES LTD.
Children and Adult Services,Childrens Services,Supplies and Services,384199,Miscellaneous Expenses,01-Dec-2014,2828512-90344-1,544.00,LIGHTWATER VALLEY ATTRACTIONS.
Children and Adult Services,Childrens Services,Supplies and Services,384199,Miscellaneous Expenses,01-Dec-2014,2828582-48342348,"1,059.10",NHS PROPERTY SERVICES LTD.
Children and Adult Services,Childrens Services,Supplies and Services,384638,Miscellaneous Expenses,01-Dec-2014,2828588-0000019607,551.25,NORTH EAST AUTISM SOCIETY.
Children and Adult Services,Childrens Services,Supplies and Services,384638,Miscellaneous Expenses,01-Dec-2014,2828588-0000019608,551.25,NORTH EAST AUTISM SOCIETY.
Children and Adult Services,Childrens Services,Supplies and Services,384638,Miscellaneous Expenses,01-Dec-2014,2828588-0000019610,"1,008.00",NORTH EAST AUTISM SOCIETY.
Children and Adult Services,Childrens Services,Supplies and Services,384638,Miscellaneous Expenses,01-Dec-2014,2828588-0000019612,771.75,NORTH EAST AUTISM SOCIETY.
Children and Adult Services,Childrens Services,Supplies and Services,384638,Miscellaneous Expenses,01-Dec-2014,2828588-0000019617,"1,284.75",NORTH EAST AUTISM SOCIETY.
Children and Adult Services,Childrens Services,Supplies and Services,384638,Miscellaneous Expenses,01-Dec-2014,2828588-0000019618,"1,248.75",NORTH EAST AUTISM SOCIETY.
Children and Adult Services,Childrens Services,Supplies and Services,384302,Miscellaneous Expenses,01-Dec-2014,2828655-80,500.00,RENT A REINDEER LTD.
Resources,Financial Services,Supplies and Services,384199,Miscellaneous Expenses,01-Dec-2014,2828314-94000534,"7,101.00",CAPITA BUSINESS SERVICES LTD.
Resources,Financial Services,Supplies and Services,384199,Miscellaneous Expenses,01-Dec-2014,2828726-90446118,"4,435.00",STOCKPORT MBC.
Resources,Financial Services,Supplies and Services,384199,Miscellaneous Expenses,01-Dec-2014,2828726-90446119,"4,435.00",STOCKPORT MBC.
Neighbourhood Services,Culture & Sport,Supplies and Services,312013,Newspapers Books and Periodicals,01-Dec-2014,2828268-4476676,505.08,ASKEWS & HOLTS LIBRARY SERVICES LTD.
Neighbourhood Services,Culture & Sport,Supplies and Services,312013,Newspapers Books and Periodicals,01-Dec-2014,2828268-4476812,567.97,ASKEWS & HOLTS LIBRARY SERVICES LTD.
Neighbourhood Services,Culture & Sport,Supplies and Services,312013,Newspapers Books and Periodicals,01-Dec-2014,2828268-4479577,500.75,ASKEWS & HOLTS LIBRARY SERVICES LTD.
Neighbourhood Services,Culture & Sport,Supplies and Services,312013,Newspapers Books and Periodicals,01-Dec-2014,2828268-4484224,501.02,ASKEWS & HOLTS LIBRARY SERVICES LTD.
Neighbourhood Services,Culture & Sport,Supplies and Services,312013,Newspapers Books and Periodicals,01-Dec-2014,2828268-4484298,574.51,ASKEWS & HOLTS LIBRARY SERVICES LTD.
Children and Adult Services,Education,Supplies and Services,312009,Newspapers Books and Periodicals,01-Dec-2014,2828622-1527470,"2,324.65",PETERS LTD.
Children and Adult Services,Education,Supplies and Services,312009,Newspapers Books and Periodicals,01-Dec-2014,2828622-1527612,"1,567.15",PETERS LTD.
Assistant Chief Executive,Partnerships & Community Engagement Div.,Transfer Payments,525030,Other,01-Dec-2014,2828283-VOUCHERBLG04,800.00,BISHOP AUCKLAND COMMUNITY NETBALL GROUP.
Assistant Chief Executive,Partnerships & Community Engagement Div.,Transfer Payments,525030,Other,01-Dec-2014,2828376-VOUCHERDCPF01,"4,180.00",DURHAM CITY NEIGHBOURHOOD PLANNING FORUM.
Assistant Chief Executive,Partnerships & Community Engagement Div.,Transfer Payments,525030,Other,01-Dec-2014,2828616-ACE-11-2014-005,"1,617.50",PARKSIDE & DISTRICT COMMUNITY ASSOCIATION.
Assistant Chief Executive,Partnerships & Community Engagement Div.,Transfer Payments,525030,Other,01-Dec-2014,2828759-ACE-11-2014-003,"1,617.50",THE COMMUNITY CLUB.
Regeneration & Economic Development,Transport and Contracted Services,Third Party Payments,440999,Other Third Party Payments,01-Dec-2014,2828276-29204,"5,607.88",BAYDALE CONTROL SYSTEMS LTD.
Regeneration & Economic Development,Transport and Contracted Services,Third Party Payments,440999,Other Third Party Payments,01-Dec-2014,2828276-29323,"5,444.92",BAYDALE CONTROL SYSTEMS LTD.
Regeneration & Economic Development,Transport and Contracted Services,Third Party Payments,440999,Other Third Party Payments,01-Dec-2014,2828276-29324,"5,255.92",BAYDALE CONTROL SYSTEMS LTD.
Regeneration & Economic Development,Transport and Contracted Services,Third Party Payments,440999,Other Third Party Payments,01-Dec-2014,2828276-29688,"5,607.88",BAYDALE CONTROL SYSTEMS LTD.
Regeneration & Economic Development,Transport and Contracted Services,Third Party Payments,440999,Other Third Party Payments,01-Dec-2014,2828277-24691,"4,087.50",BAYDALE CONTROL SYSTEMS LTD.
Regeneration & Economic Development,Transport and Contracted Services,Third Party Payments,440999,Other Third Party Payments,01-Dec-2014,2828277-27274,"7,735.42",BAYDALE CONTROL SYSTEMS LTD.
Regeneration & Economic Development,Transport and Contracted Services,Third Party Payments,440999,Other Third Party Payments,01-Dec-2014,2828277-29203,"5,776.71",BAYDALE CONTROL SYSTEMS LTD.
Resources,Centrally Administered Costs,Third Party Payments,440999,Other Third Party Payments,01-Dec-2014,2828334-RES-12-2014-001,"84,000.00",CIVICA UK LTD.
Children and Adult Services,Education,Supplies and Services,340001,Postages,01-Dec-2014,2828686-SC0010,531.64,SCITT.
Dedicated Schools Grant,Dedicated Schools Grant,Supplies and Services,332047,Printing Stationery and Gen Off Exps,01-Dec-2014,2828733-6287579,674.10,SUPPLIES TEAM LTD.
Dedicated Schools Grant,Dedicated Schools Grant,Supplies and Services,332047,Printing Stationery and Gen Off Exps,01-Dec-2014,2828733-6614088,"1,447.66",SUPPLIES TEAM LTD.
Resources,I.C.T. Services,Supplies and Services,332029,Printing Stationery and Gen Off Exps,01-Dec-2014,2828298-DURHAM3,760.00,BRITISH TELECOMMUNICATIONS PLC.
Regeneration & Economic Development,Economic Development and Housing,Supplies and Services,324001,Provisions,01-Dec-2014,2828317-840772573,"2,169.59",CARLSBERG UK LTD.
Regeneration & Economic Development,Economic Development and Housing,Employees,040149,Recruitment Instruction and Training,01-Dec-2014,2828574-50060643,"4,000.00",NEW COLLEGE DURHAM.
Regeneration & Economic Development,Spatial Policy Planning Assets & Environment,Employees,040149,Recruitment Instruction and Training,01-Dec-2014,2828780-S089046090,"2,750.00",UNIVERSITY OF NEWCASTLE UPON TYNE.
Regeneration & Economic Development,Spatial Policy Planning Assets & Environment,Employees,040149,Recruitment Instruction and Training,01-Dec-2014,2828780-S140649703,"2,750.00",UNIVERSITY OF NEWCASTLE UPON TYNE.
Neighbourhood Services,Direct Services,Third Party Payments,430100,Rendered by Private Contractors,01-Dec-2014,2828504-14376,"10,983.50",LANGUARD LTD.
Neighbourhood Services,Direct Services,Third Party Payments,430100,Rendered by Private Contractors,01-Dec-2014,2828255-46483,"3,699.12",ALAN REED LTD.
Neighbourhood Services,Direct Services,Third Party Payments,430100,Rendered by Private Contractors,01-Dec-2014,2828264-CI0056762,"2,952.63",ARNOLD CLARK CAR & VAN RENTAL.
Neighbourhood Services,Direct Services,Third Party Payments,430100,Rendered by Private Contractors,01-Dec-2014,2828278-46037341,"1,409.25",BELL TRUCK SALES LTD.
Neighbourhood Services,Direct Services,Third Party Payments,430100,Rendered by Private Contractors,01-Dec-2014,2828428-93179551,594.10,GARDNER DENVER LTD.
Neighbourhood Services,Direct Services,Third Party Payments,430100,Rendered by Private Contractors,01-Dec-2014,2828458-56640,906.58,HOGARTH COACHWORKS LTD.
Neighbourhood Services,Direct Services,Third Party Payments,430100,Rendered by Private Contractors,01-Dec-2014,2828599-IW02025152,537.01,NORTHGATE VEHICLE HIRE LTD.
Neighbourhood Services,Direct Services,Third Party Payments,430100,Rendered by Private Contractors,01-Dec-2014,2828776-DCC94A,630.00,TYNE VALLEY FLOORING & CARPETS.
Neighbourhood Services,Direct Services,Third Party Payments,430100,Rendered by Private Contractors,01-Dec-2014,2828443-17315,"2,604.00",REDACTED - PAYMENT TO INDIVIDUAL
Neighbourhood Services,Technical Services,Third Party Payments,430100,Rendered by Private Contractors,01-Dec-2014,2828353-16073,"5,340.73",JACK COUPE & SONS LTD T/A COUPE LINE.
Neighbourhood Services,Technical Services,Third Party Payments,430100,Rendered by Private Contractors,01-Dec-2014,2828353-16074,"4,637.01",JACK COUPE & SONS LTD T/A COUPE LINE.
Neighbourhood Services,Technical Services,Third Party Payments,430100,Rendered by Private Contractors,01-Dec-2014,2828353-16075,"6,665.30",JACK COUPE & SONS LTD T/A COUPE LINE.
Neighbourhood Services,Technical Services,Third Party Payments,430100,Rendered by Private Contractors,01-Dec-2014,2828353-16084,731.63,JACK COUPE & SONS LTD T/A COUPE LINE.
Neighbourhood Services,Technical Services,Third Party Payments,430100,Rendered by Private Contractors,01-Dec-2014,2828353-16097,942.55,JACK COUPE & SONS LTD T/A COUPE LINE.
Neighbourhood Services,Technical Services,Third Party Payments,430100,Rendered by Private Contractors,01-Dec-2014,2828353-16098,550.15,JACK COUPE & SONS LTD T/A COUPE LINE.
Neighbourhood Services,Technical Services,Third Party Payments,430100,Rendered by Private Contractors,01-Dec-2014,2828353-16100,"1,303.86",JACK COUPE & SONS LTD T/A COUPE LINE.
Neighbourhood Services,Technical Services,Third Party Payments,430100,Rendered by Private Contractors,01-Dec-2014,2828353-16101,"1,385.04",JACK COUPE & SONS LTD T/A COUPE LINE.
Neighbourhood Services,Technical Services,Third Party Payments,430100,Rendered by Private Contractors,01-Dec-2014,2828355-2014100047,"10,795.79",COVERDALE HERITAGE PROPERTIES LTD.
Neighbourhood Services,Technical Services,Third Party Payments,430100,Rendered by Private Contractors,01-Dec-2014,2828485-097.09.14/201525,"9,297.50",JOSHUA THOMAS & PARTNERS LTD  CIVIL ENGINEERING GROUP.
Neighbourhood Services,Technical Services,Third Party Payments,430100,Rendered by Private Contractors,01-Dec-2014,2828491-4582,972.00,KAEFER C & D - KD SCAFFOLDING DIVISION.
Regeneration & Economic Development,Transport and Contracted Services,Third Party Payments,430106,Rendered by Private Contractors,01-Dec-2014,2828792-0375-20/11/14,"36,700.03",WEARDALE MOTOR SERVICES LTD.
Regeneration & Economic Development,Transport and Contracted Services,Third Party Payments,430100,Rendered by Private Contractors,01-Dec-2014,2828407-FTI00000491,886.90,EXTERION MEDIA.
Children and Adult Services,Childrens Services,Third Party Payments,425040,Rendered by Voluntary Organisations,01-Dec-2014,2828736-155790,891.90,SWIIS FOSTER CARE LTD.
Children and Adult Services,Head of Adults,Premises,125009,Rents,01-Dec-2014,2828498-364795,782.46,KNIGHT FRANK LLP.
Neighbourhood Services,Direct Services,Transport,210057,Repair and Maintenance of Vehicles,01-Dec-2014,2828318-455116,770.04,CARRS BILLINGTON AGRICULTURE.
Neighbourhood Services,Direct Services,Transport,210057,Repair and Maintenance of Vehicles,01-Dec-2014,2828511-128111,575.45,LIFTING & COOLING LTD.
Neighbourhood Services,Direct Services,Transport,210057,Repair and Maintenance of Vehicles,01-Dec-2014,2828658-718617,907.41,RICKERBY LTD.
Neighbourhood Services,Direct Services,Transport,210057,Repair and Maintenance of Vehicles,01-Dec-2014,2828410-113958,"1,996.95",FG ADAMSON & SON.
Neighbourhood Services,Culture & Sport,Supplies and Services,338047,Services,01-Dec-2014,2828266-2607,926.67,ARTS ALLIANCE DISTRIBUTION LTD.
Neighbourhood Services,Culture & Sport,Supplies and Services,338047,Services,01-Dec-2014,2828436-ST39C,"2,081.83",GIFTWEND LTD.
Neighbourhood Services,Culture & Sport,Supplies and Services,338047,Services,01-Dec-2014,2828501-1614,"2,472.94",LAKIN MCCARTHY ENTERTAINMENT LTD.
Neighbourhood Services,Culture & Sport,Supplies and Services,338047,Services,01-Dec-2014,2828585-3996,"1,740.00",NITELITES LTD.
Neighbourhood Services,Culture & Sport,Supplies and Services,338047,Services,01-Dec-2014,2828613-GT001/26,500.00,P AZIZ.
Neighbourhood Services,Culture & Sport,Supplies and Services,338047,Services,01-Dec-2014,2828661-201315,"2,725.10",RIVIERA ENTERTAINMENTS LTD.
Regeneration & Economic Development,Spatial Policy Planning Assets & Environment,Supplies and Services,338099,Services,01-Dec-2014,2828343-4100412953,"9,945.00",CONOPS ENTOMOLOGY LTD.
Children and Adult Services,Head of Adults,Supplies and Services,338365,Services,01-Dec-2014,2828385-20843,528.11,EASIBATHE LTD.
Children and Adult Services,Planning & Service Strategy,Supplies and Services,338089,Services,01-Dec-2014,2828496-0896,"3,000.00",KF TRAINING LTD.
Children and Adult Services,Education,Supplies and Services,338027,Services,01-Dec-2014,2828556-CCOT0715,505.04,MRS CHRISTINE COTTAM.
Children and Adult Services,Education,Supplies and Services,338091,Services,01-Dec-2014,2828781-17552,"4,500.00",UNIVERSITY OF TEESSIDE.
Children and Adult Services,Education,Supplies and Services,338091,Services,01-Dec-2014,2828781-17553,"4,500.00",UNIVERSITY OF TEESSIDE.
Children and Adult Services,Education,Supplies and Services,338091,Services,01-Dec-2014,2828781-17554,"4,500.00",UNIVERSITY OF TEESSIDE.
Resources,Financial Services,Supplies and Services,338066,Services,01-Dec-2014,2828804-39192,751.75,WILKS HEAD & EVE.
Resources,Financial Services,Supplies and Services,338066,Services,01-Dec-2014,2828804-39229,679.00,WILKS HEAD & EVE.
Neighbourhood Services,Direct Services,Stock,926004,Stock,01-Dec-2014,2828452-507730,"18,469.01",HARVEST ENERGY LTD.
Neighbourhood Services,Direct Services,Stock,926004,Stock,01-Dec-2014,2828452-508514,"6,146.73",HARVEST ENERGY LTD.
Neighbourhood Services,Direct Services,Stock,926004,Stock,01-Dec-2014,2828324-3352506,983.60,CERTAS ENERGY UK LTD.
Neighbourhood Services,Direct Services,Stock,926004,Stock,01-Dec-2014,2828452-509625,"18,530.66",HARVEST ENERGY LTD.
Neighbourhood Services,Direct Services,Stock,926004,Stock,01-Dec-2014,2828425-216264781,"1,143.90",FUCHS LUBRICANTS (UK) PLC.
Neighbourhood Services,Direct Services,Stock,926004,Stock,01-Dec-2014,2828452-507732,"22,703.82",HARVEST ENERGY LTD.
Neighbourhood Services,Technical Services,Stock,926900,Stock in hand-Inventory system,01-Dec-2014,2828300-INV157510,760.00,BROXAP LTD.
Neighbourhood Services,Technical Services,Stock,926900,Stock in hand-Inventory system,01-Dec-2014,2828394-059-153830,912.00,EDMUNDSON ELECTRICAL LTD.
Neighbourhood Services,Technical Services,Stock,926900,Stock in hand-Inventory system,01-Dec-2014,2828394-059-154709,512.05,EDMUNDSON ELECTRICAL LTD.
Neighbourhood Services,Technical Services,Stock,926900,Stock in hand-Inventory system,01-Dec-2014,2828445-06/533310,773.64,GREENHAM TRADING LTD.
Neighbourhood Services,Technical Services,Stock,926900,Stock in hand-Inventory system,01-Dec-2014,2828477-6937,546.58,JG UNIFORMS.
Neighbourhood Services,Technical Services,Stock,926900,Stock in hand-Inventory system,01-Dec-2014,2828488-STI411989,960.32,JT DOVE LTD.
Neighbourhood Services,Technical Services,Stock,926900,Stock in hand-Inventory system,01-Dec-2014,2828521-1003303,884.00,LUMALITE.
Neighbourhood Services,Technical Services,Stock,926900,Stock in hand-Inventory system,01-Dec-2014,2828596-1374619,699.46,NORTHERN TOOLS & ACCESSORIES.
Neighbourhood Services,Technical Services,Stock,926900,Stock in hand-Inventory system,01-Dec-2014,2828596-1383214,596.00,NORTHERN TOOLS & ACCESSORIES.
Neighbourhood Services,Technical Services,Stock,926900,Stock in hand-Inventory system,01-Dec-2014,2828615-XL129538,858.00,PARK ELECTRICAL DISTRIBUTORS LTD.
Neighbourhood Services,Technical Services,Stock,926900,Stock in hand-Inventory system,01-Dec-2014,2828615-XL129539,"2,956.78",PARK ELECTRICAL DISTRIBUTORS LTD.
Neighbourhood Services,Technical Services,Stock,926900,Stock in hand-Inventory system,01-Dec-2014,2828615-XL129577,"3,446.18",PARK ELECTRICAL DISTRIBUTORS LTD.
Neighbourhood Services,Technical Services,Stock,926900,Stock in hand-Inventory system,01-Dec-2014,2828615-XL129879,"4,107.00",PARK ELECTRICAL DISTRIBUTORS LTD.
Neighbourhood Services,Technical Services,Stock,926900,Stock in hand-Inventory system,01-Dec-2014,2828803-1941446,610.80,WILKIES.
Neighbourhood Services,Technical Services,Stock,926900,Stock in hand-Inventory system,01-Dec-2014,2828807-16743053,"4,495.50",WOLSELEY UK LTD.
Neighbourhood Services,Technical Services,Stock,926900,Stock in hand-Inventory system,01-Dec-2014,2828807-16908169,"3,274.87",WOLSELEY UK LTD.
Neighbourhood Services,Technical Services,Stock,926900,Stock in hand-Inventory system,01-Dec-2014,2828807-17085093,"1,724.55",WOLSELEY UK LTD.
Neighbourhood Services,Technical Services,Stock,926900,Stock in hand-Inventory system,01-Dec-2014,2828807-17165719,500.31,WOLSELEY UK LTD.
Neighbourhood Services,Technical Services,Stock,926900,Stock in hand-Inventory system,01-Dec-2014,2828807-17305782,978.94,WOLSELEY UK LTD.
Resources,I.C.T. Services,Stock,926900,Stock in hand-Inventory system,01-Dec-2014,2828810-W634478,"3,440.00",XMA LTD.
Regeneration & Economic Development,Economic Development and Housing,Supplies and Services,336005,Advertising,02-Dec-2014,2829593-2363572,750.00,JOHNSTON PUBLISHING LTD.
Neighbourhood Services,Culture & Sport,Employees,080025,Agency Staff,02-Dec-2014,2829463-16325,"1,875.00",AUCKLAND CASTLE GROUP.
Regeneration & Economic Development,Economic Development and Housing,Cap Exp on Grants & Other Financial Assistance (REFCUS),918401,Capital grants,02-Dec-2014,2829677-RED-11-2014-192,750.00,REDACTED - PAYMENT TO INDIVIDUAL
Dedicated Schools Grant,Dedicated Schools Grant,Premises,145045,Cleaning and Domestic Supplies,02-Dec-2014,2829580-3663,525.00,INDUSTRIAL DEEP CLEANING LTD.
RED HRA,Housing Revenue Account,Supplies and Services,342033,Computers and Communications,02-Dec-2014,2829699-14110051,"3,676.00",SAPPHIRE TECHNOLOGIES LTD.
RED HRA,Housing Revenue Account,Supplies and Services,342033,Computers and Communications,02-Dec-2014,2829713-INV72831,"4,963.89",SOFTWARE BOX LTD.
Regeneration & Economic Development,Economic Development and Housing,Supplies and Services,342053,Computers and Communications,02-Dec-2014,2829447-4722,974.34,ABRITAS LTD.
Resources,I.C.T. Services,Supplies and Services,342033,Computers and Communications,02-Dec-2014,2829578-5211140006,"8,416.21",IBM UNITED KINGDOM FINANCIAL SERVICES LTD.
Resources,I.C.T. Services,Supplies and Services,342033,Computers and Communications,02-Dec-2014,2829712-INV01050142,"9,661.76",SOFTCAT LTD.
RED HRA,HRA Capital,Construction Work,908105,Construction work,02-Dec-2014,2829453-521,700.00,ALL SEASONS ARBORISTS.
RED HRA,HRA Capital,Construction Work,908105,Construction work,02-Dec-2014,2829630,"14,696.94",MGL DEMOLITION LTD.
RED HRA,HRA Capital,Construction Work,908105,Construction work,02-Dec-2014,2829704-79913,875.00,SGS MIS ENVIRONMENTAL LTD.
RED HRA,HRA Capital,Construction Work,908105,Construction work,02-Dec-2014,2829749-B50403-3,"103,715.95",WATES CONSTRUCTION LTD.
Regeneration & Economic Development,Transport and Contracted Services,Construction Work,908105,Construction work,02-Dec-2014,2829485-21956,"2,542.78",BUS SHELTERS LTD.
Resources,I.C.T. Services,Construction Work,908105,Construction work,02-Dec-2014,2829712-INV01049496,"17,100.00",SOFTCAT LTD.
Children and Adult Services,Education,Transport,230008,Contract Hire,02-Dec-2014,2829473-0001,"1,449.00",BLACKS PRIVATE HIRE.
Children and Adult Services,Education,Transport,230007,Contract Hire,02-Dec-2014,2829475-1019,"1,700.00",BOB SMITH COACHES.
Children and Adult Services,Education,Transport,230007,Contract Hire,02-Dec-2014,2829555-16838,"19,218.27",GARNETTS LTD (COACHES).
Neighbourhood Services,Technical Services,Third Party Payments,460254,Contract Payments,02-Dec-2014,2829503-3102812,"1,395.00",CIPFA BUSINESS LTD.
Children and Adult Services,Public Health,Third Party Payments,460803,Contract Payments,02-Dec-2014,2829671-12698/15,"34,669.67",PIONEERING CARE PARTNERSHIP.
Children and Adult Services,Public Health,Third Party Payments,460803,Contract Payments,02-Dec-2014,2829706-FJWNRTMARCH-14,"1,649.91",SHOTTON PHARMACY.
Assistant Chief Executive,Partnerships & Community Engagement Div.,Cap Exp on Grants & Other Financial Assistance (REFCUS),918004,Contributions to other bodies,02-Dec-2014,2829532-12NB-EDUR070,"5,945.00",DR JOSEPH CHANDY CHARITABLE TRUST.
Resources,Corporate Services Financing,Debtors,930031,Debtor-outstand insur claims,02-Dec-2014,2829698-TEE764,900.00,SANDERSON WEATHERALL LLP.
Neighbourhood Services,Direct Services,Supplies and Services,304358,Equipment and Materials,02-Dec-2014,2829625-4951,"1,887.60",MAKEPEACE MOTORS.
Neighbourhood Services,Direct Services,Supplies and Services,304221,Equipment and Materials,02-Dec-2014,2829598-BA1231929,670.00,JT DOVE LTD.
Neighbourhood Services,Technical Services,Supplies and Services,304221,Equipment and Materials,02-Dec-2014,2829614-701096,"1,975.00",LIGHTING & ILLUMINATION TECHNOLOGY EXPERIENCE LTD (LITE).
Neighbourhood Services,Technical Services,Supplies and Services,304221,Equipment and Materials,02-Dec-2014,2829651-20201892,874.74,NORTHERN POWERGRID (NORTHEAST) LTD.
Neighbourhood Services,Technical Services,Supplies and Services,304221,Equipment and Materials,02-Dec-2014,2829651-DI20201889,866.78,NORTHERN POWERGRID (NORTHEAST) LTD.
Neighbourhood Services,Technical Services,Supplies and Services,304221,Equipment and Materials,02-Dec-2014,2829716-468781,"2,138.31",SSE CONTRACTING LTD.
Neighbourhood Services,Technical Services,Supplies and Services,304221,Equipment and Materials,02-Dec-2014,2829716-468827,"1,300.40",SSE CONTRACTING LTD.
Neighbourhood Services,Technical Services,Supplies and Services,304260,Equipment and Materials,02-Dec-2014,2829571-511036,553.26,HARVEST ENERGY LTD.
Neighbourhood Services,Technical Services,Supplies and Services,304358,Equipment and Materials,02-Dec-2014,2829585-5304791,"1,188.10",JA GILSON (AGRICULTURAL CONTRACTORS) LTD.
Neighbourhood Services,Technical Services,Supplies and Services,304358,Equipment and Materials,02-Dec-2014,2829585-5304797,"1,462.27",JA GILSON (AGRICULTURAL CONTRACTORS) LTD.
Neighbourhood Services,Technical Services,Supplies and Services,304358,Equipment and Materials,02-Dec-2014,2829585-5304800,"1,462.27",JA GILSON (AGRICULTURAL CONTRACTORS) LTD.
Neighbourhood Services,Technical Services,Supplies and Services,304221,Equipment and Materials,02-Dec-2014,2829602-5828,"3,137.88",KEN THOMAS (SITE CLEARANCE LTD).
Neighbourhood Services,Technical Services,Supplies and Services,304221,Equipment and Materials,02-Dec-2014,2829607-9031886289,704.90,LAFARGE TARMAC TRADING LTD.
Neighbourhood Services,Technical Services,Supplies and Services,304357,Equipment and Materials,02-Dec-2014,2829609-INV00561169,"14,475.00",LANES GROUP PLC.
Neighbourhood Services,Technical Services,Supplies and Services,304357,Equipment and Materials,02-Dec-2014,2829609-INV00561239,"13,350.00",LANES GROUP PLC.
Neighbourhood Services,Technical Services,Supplies and Services,304221,Equipment and Materials,02-Dec-2014,2829723-067500,955.44,STONEGRAVE AGGREGATES LTD.
Neighbourhood Services,Technical Services,Supplies and Services,304358,Equipment and Materials,02-Dec-2014,2829756-4267,646.00,YOULL CONSTRUCTION LTD.
Neighbourhood Services,Technical Services,Supplies and Services,304358,Equipment and Materials,02-Dec-2014,2829756-4421,590.00,YOULL CONSTRUCTION LTD.
Neighbourhood Services,Technical Services,Supplies and Services,304358,Equipment and Materials,02-Dec-2014,2829756-4426,"1,981.00",YOULL CONSTRUCTION LTD.
Neighbourhood Services,Technical Services,Supplies and Services,304358,Equipment and Materials,02-Dec-2014,2829756-4429,545.25,YOULL CONSTRUCTION LTD.
Neighbourhood Services,Technical Services,Supplies and Services,304358,Equipment and Materials,02-Dec-2014,2829756-4446,"1,981.00",YOULL CONSTRUCTION LTD.
Neighbourhood Services,Technical Services,Supplies and Services,304358,Equipment and Materials,02-Dec-2014,2829756-4448,"2,427.00",YOULL CONSTRUCTION LTD.
Neighbourhood Services,Technical Services,Supplies and Services,304358,Equipment and Materials,02-Dec-2014,2829756-4461,"1,369.50",YOULL CONSTRUCTION LTD.
Neighbourhood Services,Technical Services,Supplies and Services,304358,Equipment and Materials,02-Dec-2014,2829756-4468,"1,344.00",YOULL CONSTRUCTION LTD.
Neighbourhood Services,Technical Services,Supplies and Services,304358,Equipment and Materials,02-Dec-2014,2829756-4472,984.00,YOULL CONSTRUCTION LTD.
Neighbourhood Services,Technical Services,Supplies and Services,304358,Equipment and Materials,02-Dec-2014,2829756-4483,782.00,YOULL CONSTRUCTION LTD.
Neighbourhood Services,Technical Services,Supplies and Services,304358,Equipment and Materials,02-Dec-2014,2829756-4484,"1,126.00",YOULL CONSTRUCTION LTD.
Neighbourhood Services,Technical Services,Supplies and Services,304358,Equipment and Materials,02-Dec-2014,2829756-4485,664.00,YOULL CONSTRUCTION LTD.
Neighbourhood Services,Direct Services,Supplies and Services,304221,Equipment and Materials,02-Dec-2014,2829594-344574,"1,084.46",JOINERY & TIMBER CREATIONS (65) LTD.
Neighbourhood Services,Direct Services,Supplies and Services,304221,Equipment and Materials,02-Dec-2014,2829483-1660/0892876,"1,181.58",BSS GROUP PLC.
Neighbourhood Services,Direct Services,Supplies and Services,304221,Equipment and Materials,02-Dec-2014,2829573-4462005,"2,462.15",HEADLAM (FLOORCOVERING DISTRIBUTORS) LTD.
Neighbourhood Services,Direct Services,Supplies and Services,304221,Equipment and Materials,02-Dec-2014,2829619-3442083,"1,975.32",LONDON GENERAL SALES LTD.
Neighbourhood Services,Culture & Sport,Supplies and Services,304259,Equipment and Materials,02-Dec-2014,2829720-00275926,"1,005.15",STAGE ELECTRICS.
RED HRA,Housing Revenue Account,Supplies and Services,304259,Equipment and Materials,02-Dec-2014,2829568-INV0156424,"1,070.00",GV MULTI MEDIA LTD.
Regeneration & Economic Development,Economic Development and Housing,Supplies and Services,304337,Equipment and Materials,02-Dec-2014,2829600-OP/I165665.,"1,018.08",JUNCTION EIGHTEEN LTD.
Regeneration & Economic Development,Economic Development and Housing,Supplies and Services,304221,Equipment and Materials,02-Dec-2014,2829611-22417,"6,362.00",LEANDER ARCHITECTURAL.
Children and Adult Services,Childrens Services,Supplies and Services,364353,Grants to Voluntary Organisations,02-Dec-2014,2829742-CAS-10-2014-002,"2,489.00",UNIVERSITY OF SUNDERLAND.
RED HRA,Housing Revenue Account,Premises,105003,HRA Repair & Maintenance,02-Dec-2014,2829634-211029,580.25,MITIE PROPERTY SERVICES (UK) LTD.
RED HRA,Housing Revenue Account,Premises,105003,HRA Repair & Maintenance,02-Dec-2014,2829634-211030,"22,121.38",MITIE PROPERTY SERVICES (UK) LTD.
RED HRA,Housing Revenue Account,Premises,105003,HRA Repair & Maintenance,02-Dec-2014,2829634-211031,"10,872.57",MITIE PROPERTY SERVICES (UK) LTD.
Resources,Centrally Administered Costs,Supplies and Services,378002,Levies,02-Dec-2014,2829542-RES-12-2014-009,"102,168.75",ENVIRONMENT AGENCY.
Assistant Chief Executive,Partnerships & Community Engagement Div.,Supplies and Services,384085,Miscellaneous Expenses,02-Dec-2014,2829751-CARC07-14BATA07-14,900.00,WEST PELTON & HIGH HOLD TENANTS & RESIDENTS ASSOCIATION.
Regeneration & Economic Development,Spatial Policy Planning Assets & Environment,Supplies and Services,384540,Miscellaneous Expenses,02-Dec-2014,2829736-1111,"2,700.00",THE UNKNOWN CREATIVE LTD.
Regeneration & Economic Development,Economic Development and Housing,Supplies and Services,384999,Miscellaneous Expenses,02-Dec-2014,2829743-08106629-006,570.00,UNIVERSITY OF TEESSIDE.
Regeneration & Economic Development,Spatial Policy Planning Assets & Environment,Supplies and Services,384199,Miscellaneous Expenses,02-Dec-2014,2829507-BURSARYNOV14B,506.90,REDACTED - PAYMENT TO INDIVIDUAL
Regeneration & Economic Development,Economic Development and Housing,Supplies and Services,384199,Miscellaneous Expenses,02-Dec-2014,2829592-14-15-24,700.00,JOHN PARKER T/A UP4DISCUSSION.
Children and Adult Services,Childrens Services,Supplies and Services,384540,Miscellaneous Expenses,02-Dec-2014,2829519-522,"4,590.00",CT WEB.
Children and Adult Services,Public Health,Supplies and Services,384540,Miscellaneous Expenses,02-Dec-2014,2829613-9675,"4,165.00",LIFE CHANNEL GROUP LTD.
Children and Adult Services,Planning & Service Strategy,Supplies and Services,384956,Miscellaneous Expenses,02-Dec-2014,2829746-108817,"1,944.00",VIRTUAL COLLEGE LTD.
Assistant Chief Executive,Partnerships & Community Engagement Div.,Transfer Payments,525030,Other,02-Dec-2014,2829532-ACE-11-2014-004,"1,617.50",DR JOSEPH CHANDY CHARITABLE TRUST.
Children and Adult Services,Education,Transfer Payments,525065,Other,02-Dec-2014,2829561-CAS-11-2014-251,"34,481.50",GLENDENE ARTS ACADEMY.
Children and Adult Services,Childrens Services,Third Party Payments,440001,Other Third Party Payments,02-Dec-2014,2829038-991555,517.05,REDACTED - PAYMENT TO INDIVIDUAL
Children and Adult Services,Childrens Services,Third Party Payments,440036,Other Third Party Payments,02-Dec-2014,2829093-992156,623.05,REDACTED - PAYMENT TO INDIVIDUAL
Children and Adult Services,Childrens Services,Third Party Payments,440015,Other Third Party Payments,02-Dec-2014,2829152-991963,"1,319.63",REDACTED - PAYMENT TO INDIVIDUAL
Children and Adult Services,Childrens Services,Third Party Payments,440027,Other Third Party Payments,02-Dec-2014,2829316-992541,941.64,REDACTED - PAYMENT TO INDIVIDUAL
Children and Adult Services,Childrens Services,Third Party Payments,440027,Other Third Party Payments,02-Dec-2014,2829375-992542,"1,977.41",REDACTED - PAYMENT TO INDIVIDUAL
Neighbourhood Services,Projects and Business services,Supplies and Services,340001,Postages,02-Dec-2014,2829687-9048482248,"2,012.25",ROYAL MAIL GROUP PLC.
Children and Adult Services,Planning & Service Strategy,Supplies and Services,340001,Postages,02-Dec-2014,2829687-9048563737,"1,021.93",ROYAL MAIL GROUP PLC.
Resources,I.C.T. Services,Supplies and Services,332029,Printing Stationery and Gen Off Exps,02-Dec-2014,2829741-152647,"2,370.00",UK TAPES LTD.
Children and Adult Services,Education,Supplies and Services,324117,Provisions,02-Dec-2014,2829730-9410847137,621.90,TCHIBO COFFEE INTERNATIONAL LTD.
Neighbourhood Services,Direct Services,Vehicles Equipment Furniture and Fittings,912541,Purchase-vehicles,02-Dec-2014,2829565-118154,"17,709.68",GREENLAY (GRASS MACHINERY) LTD.
Neighbourhood Services,Technical Services,Employees,040149,Recruitment Instruction and Training,02-Dec-2014,2829577-1365,600.00,HSF TRAINING LTD.
Children and Adult Services,Planning & Service Strategy,Employees,040149,Recruitment Instruction and Training,02-Dec-2014,2829448-14/5989,"1,995.00",ACAS.
Dedicated Schools Grant,Dedicated Schools Grant,Third Party Payments,410037,Rendered by Other Local Authorities,02-Dec-2014,2829627-1000896,"34,002.42",MARCHBANK FREE SCHOOL.
Dedicated Schools Grant,Dedicated Schools Grant,Third Party Payments,410037,Rendered by Other Local Authorities,02-Dec-2014,2829722-552869,"1,339.19",STOCKTON ON TEES BOROUGH COUNCIL.
Neighbourhood Services,Direct Services,Third Party Payments,430100,Rendered by Private Contractors,02-Dec-2014,2829691-NOV05314,552.36,RW CHICKEN (SCAFFOLDING) LTD.
Neighbourhood Services,Technical Services,Third Party Payments,430100,Rendered by Private Contractors,02-Dec-2014,2829449-28204616,"11,814.00",AECOM LTD.
Neighbourhood Services,Direct Services,Third Party Payments,430100,Rendered by Private Contractors,02-Dec-2014,2829724-39764,630.00,STORMKING WINDOWS.
Neighbourhood Services,Direct Services,Third Party Payments,430100,Rendered by Private Contractors,02-Dec-2014,2829466-28878,"1,859.00",AYCLIFFE FABRICATIONS LTD.
Neighbourhood Services,Direct Services,Third Party Payments,430100,Rendered by Private Contractors,02-Dec-2014,2829496-15803,"1,010.36",CATHEDRAL LOCK & SAFE SERVICES LTD.
Neighbourhood Services,Direct Services,Third Party Payments,430100,Rendered by Private Contractors,02-Dec-2014,2829496-15864,"1,139.78",CATHEDRAL LOCK & SAFE SERVICES LTD.
Neighbourhood Services,Direct Services,Third Party Payments,430100,Rendered by Private Contractors,02-Dec-2014,2829626-9009051607,"1,345.00",MAMMOET UK LTD.
Regeneration & Economic Development,Transport and Contracted Services,Third Party Payments,430106,Rendered by Private Contractors,02-Dec-2014,2829590-DCC10-11/14,"4,162.13",JOHN JAMES BRUNSKILL.
Children and Adult Services,Childrens Services,Third Party Payments,425040,Rendered by Voluntary Organisations,02-Dec-2014,2829551-11687,730.00,FOSTER CARES LTD.
Children and Adult Services,Childrens Services,Third Party Payments,425040,Rendered by Voluntary Organisations,02-Dec-2014,2829551-11692,"1,180.00",FOSTER CARES LTD.
Children and Adult Services,Childrens Services,Third Party Payments,425040,Rendered by Voluntary Organisations,02-Dec-2014,2829551-11697,820.00,FOSTER CARES LTD.
Children and Adult Services,Childrens Services,Third Party Payments,425040,Rendered by Voluntary Organisations,02-Dec-2014,2829551-11700,760.00,FOSTER CARES LTD.
Children and Adult Services,Childrens Services,Third Party Payments,425040,Rendered by Voluntary Organisations,02-Dec-2014,2829551-11701,730.00,FOSTER CARES LTD.
Children and Adult Services,Childrens Services,Third Party Payments,425040,Rendered by Voluntary Organisations,02-Dec-2014,2829551-11712,730.00,FOSTER CARES LTD.
Children and Adult Services,Childrens Services,Third Party Payments,425040,Rendered by Voluntary Organisations,02-Dec-2014,2829551-11720,700.00,FOSTER CARES LTD.
Children and Adult Services,Childrens Services,Third Party Payments,425040,Rendered by Voluntary Organisations,02-Dec-2014,2829551-11722,820.00,FOSTER CARES LTD.
Children and Adult Services,Childrens Services,Third Party Payments,425017,Rendered by Voluntary Organisations,02-Dec-2014,2829718-4028,"7,656.00",ST OSWALD`S HOSPICE.
Children and Adult Services,Childrens Services,Third Party Payments,425040,Rendered by Voluntary Organisations,02-Dec-2014,2829729-155464,910.00,SWIIS FOSTER CARE LTD.
Children and Adult Services,Childrens Services,Third Party Payments,425040,Rendered by Voluntary Organisations,02-Dec-2014,2829729-155466,"1,075.00",SWIIS FOSTER CARE LTD.
Children and Adult Services,Childrens Services,Third Party Payments,425040,Rendered by Voluntary Organisations,02-Dec-2014,2829729-155787,910.00,SWIIS FOSTER CARE LTD.
Children and Adult Services,Childrens Services,Third Party Payments,425040,Rendered by Voluntary Organisations,02-Dec-2014,2829729-155789,"1,075.00",SWIIS FOSTER CARE LTD.
Children and Adult Services,Childrens Services,Third Party Payments,425040,Rendered by Voluntary Organisations,02-Dec-2014,2829729-155791,"1,069.00",SWIIS FOSTER CARE LTD.
Neighbourhood Services,Direct Services,Premises,125009,Rents,02-Dec-2014,2829757-6022,"2,000.00",YOUNGS RPS LLP.
Neighbourhood Services,Direct Services,Premises,125009,Rents,02-Dec-2014,2829647-5400511/BUS/140654,"2,137.88",NETWORK RAIL.
Children and Adult Services,Head of Adults,Premises,125009,Rents,02-Dec-2014,2829570-227185,"2,625.00",HARLEY STREET INTERNATIONAL LTD.
Children and Adult Services,Head of Adults,Premises,125009,Rents,02-Dec-2014,2829753-316563,"6,268.75",WHITTLE JONES (GROUP) LTD.
Neighbourhood Services,Direct Services,Transport,210057,Repair and Maintenance of Vehicles,02-Dec-2014,2829759-SVI29428,"1,957.50",ZOELLER WASTE SYSTEMS LTD.
Neighbourhood Services,Direct Services,Transport,210057,Repair and Maintenance of Vehicles,02-Dec-2014,2829501-607571,"2,172.19",CHATFIELDS.
Neighbourhood Services,Direct Services,Premises,108135,Service Repairs and Maintenance,02-Dec-2014,2829572-SIN7042507,"4,284.45",HCS DRAIN SERVICES LTD.
Regeneration & Economic Development,Transport and Contracted Services,Premises,108099,Service Repairs and Maintenance,02-Dec-2014,2829530-901117535,"3,600.00",DORMA UK LTD.
Assistant Chief Executive,Partnerships & Community Engagement Div.,Supplies and Services,338094,Services,02-Dec-2014,2829535-20012685,"1,104.00",DURHAM POLICE & CRIME COMMISSIONER.
Neighbourhood Services,Direct Services,Supplies and Services,338066,Services,02-Dec-2014,2829725-5152,"1,310.00",STUART WRIGHT FUNERAL SERVICE LTD.
Neighbourhood Services,Technical Services,Supplies and Services,338027,Services,02-Dec-2014,2829556-107390457,900.00,GATESHEAD COUNCIL.
Neighbourhood Services,Culture & Sport,Supplies and Services,338047,Services,02-Dec-2014,2829579-51/IMWPUK/14,"4,682.98",IMWP (UK) LTD.
Regeneration & Economic Development,Economic Development and Housing,Supplies and Services,338099,Services,02-Dec-2014,2829629-4100454371,"1,200.00",MARK DILONARDO T/A IPD-ENTS.
Regeneration & Economic Development,Economic Development and Housing,Supplies and Services,338066,Services,02-Dec-2014,2829710-SSL0007,"10,000.00",SMART SPECIALISATION LTD.
Regeneration & Economic Development,Spatial Policy Planning Assets & Environment,Supplies and Services,338094,Services,02-Dec-2014,2829685-7140003260,915.00,RIVERSIDE EVENTS LLP.
Children and Adult Services,Childrens Services,Supplies and Services,338044,Services,02-Dec-2014,2829455-22369,670.00,ALPHA BIOLABS.
Children and Adult Services,Childrens Services,Supplies and Services,338045,Services,02-Dec-2014,2829663-250692,600.00,PARKLANE PLOWDEN.
Children and Adult Services,Education,Supplies and Services,338027,Services,02-Dec-2014,2829639-WOLSINGHAMSCHOOL,"2,757.00",REDACTED - PAYMENT TO INDIVIDUAL
Resources,Legal & Democratic Services,Supplies and Services,338025,Services,02-Dec-2014,2829511-S44995-00960,700.00,CO-OPERATIVE FUNERAL CARE.
Resources,Financial Services,Supplies and Services,338050,Services,02-Dec-2014,2829543-876883-878698,756.68,EQUITA LTD.
Neighbourhood Services,Technical Services,Stock,926900,Stock in hand-Inventory system,02-Dec-2014,2829457-16374,"2,116.56",AMECAL.
Neighbourhood Services,Technical Services,Stock,926900,Stock in hand-Inventory system,02-Dec-2014,2829581-469118,"2,424.80",INSTARMAC GROUP PLC.
Neighbourhood Services,Technical Services,Stock,926900,Stock in hand-Inventory system,02-Dec-2014,2829598-STI412034,857.25,JT DOVE LTD.
Neighbourhood Services,Technical Services,Stock,926900,Stock in hand-Inventory system,02-Dec-2014,2829652-1400668,600.00,NORTHERN TOOLS & ACCESSORIES.
Neighbourhood Services,Technical Services,Stock,926900,Stock in hand-Inventory system,02-Dec-2014,2829662-XL128544,"2,681.05",PARK ELECTRICAL DISTRIBUTORS LTD.
Neighbourhood Services,Technical Services,Stock,926900,Stock in hand-Inventory system,02-Dec-2014,2829662-XL129360,"2,703.15",PARK ELECTRICAL DISTRIBUTORS LTD.
Neighbourhood Services,Technical Services,Stock,926900,Stock in hand-Inventory system,02-Dec-2014,2829707-278650/120259,"6,624.20",SIGNATURE LTD T/A POST & COLUMN CO LTD.
Regeneration & Economic Development,Economic Development and Housing,Supplies and Services,372009,Subscriptions,02-Dec-2014,2829494-BDRHM15,"1,000.00",CAMPAIGN FOR SCIENCE & ENGINEERING.
RED HRA,Housing Revenue Account,Supplies and Services,344033,Telephones,02-Dec-2014,2829492-13228679,586.54,CABLE & WIRELESS UK.
Neighbourhood Services,Culture & Sport,Employees,080025,Agency Staff,03-Dec-2014,2830102-17119,"1,875.00",AUCKLAND CASTLE GROUP.
Children and Adult Services,Education,Employees,080025,Agency Staff,03-Dec-2014,2830194-542446,"146,425.63",COMENSURA LTD.
Children and Adult Services,Childrens Services,Employees,080025,Agency Staff,03-Dec-2014,2830194-542614,"23,391.89",COMENSURA LTD.
Dedicated Schools Grant,Dedicated Schools Grant,Employees,080025,Agency Staff,03-Dec-2014,2830472-937307,"2,940.06",TEACHING PERSONNEL LTD.
Dedicated Schools Grant,Dedicated Schools Grant,Employees,080025,Agency Staff,03-Dec-2014,2830472-939768,"2,954.78",TEACHING PERSONNEL LTD.
Dedicated Schools Grant,Dedicated Schools Grant,Employees,080025,Agency Staff,03-Dec-2014,2830472-944488,"2,754.59",TEACHING PERSONNEL LTD.
Dedicated Schools Grant,Dedicated Schools Grant,Employees,080025,Agency Staff,03-Dec-2014,2830472-947458,"3,681.94",TEACHING PERSONNEL LTD.
Dedicated Schools Grant,Dedicated Schools Grant,Employees,080025,Agency Staff,03-Dec-2014,2830503-129464,525.00,VISION FOR EDUCATION LTD.
Dedicated Schools Grant,Dedicated Schools Grant,Employees,080025,Agency Staff,03-Dec-2014,2830503-131783,525.00,VISION FOR EDUCATION LTD.
Children and Adult Services,Head of Adults,Premises,150005,Apportioned Exps of Operational Blds,03-Dec-2014,2830431-112391,674.00,SANDERSON WEATHERALL LLP.
Children and Adult Services,Head of Adults,Premises,150005,Apportioned Exps of Operational Blds,03-Dec-2014,2830431-113559,674.00,SANDERSON WEATHERALL LLP.
Neighbourhood Services,Technical Services,Fees,901004,Capital - Detailed Design,03-Dec-2014,236811-NEI-EXP-11-2014-056,677.00,WI SUDDES & SONS.
Neighbourhood Services,Culture & Sport,Vehicles Equipment Furniture and Fittings,912701,Computer equipment,03-Dec-2014,2830519-04002059,"1,716.00",XN LEISURE SYSTEMS LTD.
Resources,I.C.T. Services,Vehicles Equipment Furniture and Fittings,912701,Computer equipment,03-Dec-2014,2830432-14110064,699.00,SAPPHIRE TECHNOLOGIES LTD.
RED HRA,Housing Revenue Account,Supplies and Services,342033,Computers and Communications,03-Dec-2014,2830432-14110050,"4,490.00",SAPPHIRE TECHNOLOGIES LTD.
Regeneration & Economic Development,Transport and Contracted Services,Supplies and Services,342007,Computers and Communications,03-Dec-2014,236661-C0036756,600.00,CUMBRIA SOFTWARE SYSTEMS LTD.
Regeneration & Economic Development,Economic Development and Housing,Supplies and Services,352001,Conference Expenses,03-Dec-2014,2830485-SO1070132,"1,078.00",THE KNOWLEDGE ACADEMY LTD.
Neighbourhood Services,Sport & Leisure,Construction Work,908105,Construction work,03-Dec-2014,2830146-RED-12-2014-007,"1,008.40",BRANDON & BYSHOTTLES PARISH COUNCIL.
RED HRA,HRA Capital,Construction Work,908105,Construction work,03-Dec-2014,2830215-210831,"3,305.16",DEERNESS FENCING LTD.
RED HRA,HRA Capital,Construction Work,908105,Construction work,03-Dec-2014,2830217-210395,"1,965.19",DELTA ELECTRICAL & MECHANICAL SERVICES.
RED HRA,HRA Capital,Construction Work,908105,Construction work,03-Dec-2014,2830217-211026,"2,464.85",DELTA ELECTRICAL & MECHANICAL SERVICES.
RED HRA,HRA Capital,Construction Work,908105,Construction work,03-Dec-2014,2830268-SIN384849,"1,795.00",HANDICARE ACCESSIBILITY LTD.
RED HRA,HRA Capital,Construction Work,908105,Construction work,03-Dec-2014,2830399-JI118283,"5,666.00",PICKERINGS EUROPE LTD.
RED HRA,HRA Capital,Construction Work,908105,Construction work,03-Dec-2014,2830508-87784,"40,569.04",WATES CONSTRUCTION LTD.
RED HRA,HRA Capital,Construction Work,908105,Construction work,03-Dec-2014,2830508-87785,"89,752.46",WATES CONSTRUCTION LTD.
RED HRA,HRA Capital,Construction Work,908105,Construction work,03-Dec-2014,2830508-87786,"74,178.86",WATES CONSTRUCTION LTD.
Regeneration & Economic Development,Transport and Contracted Services,Construction Work,908105,Construction work,03-Dec-2014,2830158-NO21937,"2,263.43",BUS SHELTERS LTD.
Regeneration & Economic Development,Economic Development and Housing,Construction Work,908105,Construction work,03-Dec-2014,2830379-NEI-EXP-12-2014-001,"1,863.00",NORTHERN GAS NETWORKS LTD.
Children and Adult Services,Childrens Services,Construction Work,908105,Construction work,03-Dec-2014,2830380-NEI-EXP-12-2014-002,"1,471.46",NORTHERN POWERGRID (NORTHEAST) LTD.
Resources,I.C.T. Services,Construction Work,908105,Construction work,03-Dec-2014,2830191-I14P1562,966.38,COLAS LTD.
Neighbourhood Services,Culture & Sport,Fees,901002,Professional fees,03-Dec-2014,2830451-732/PJ1471/03,"3,875.00",SOUTHERN GREEN LTD.
Children and Adult Services,Education,Fees,901002,Professional fees,03-Dec-2014,2830100-14034073,"1,992.00",ATKINS GLOBAL.
Neighbourhood Services,Direct Services,Transport,230005,Contract Hire,03-Dec-2014,2830425-SLINV/00084097,"4,830.00",RTR RIVERSIDE TRUCK RENTAL LTD.
Neighbourhood Services,Direct Services,Transport,230005,Contract Hire,03-Dec-2014,2830425-SLINV/00084098,"4,370.00",RTR RIVERSIDE TRUCK RENTAL LTD.
Neighbourhood Services,Direct Services,Transport,230005,Contract Hire,03-Dec-2014,2830425-SLINV/00084099,"4,370.00",RTR RIVERSIDE TRUCK RENTAL LTD.
Neighbourhood Services,Direct Services,Transport,230005,Contract Hire,03-Dec-2014,2830425-SLINV/00084282,"2,856.00",RTR RIVERSIDE TRUCK RENTAL LTD.
Neighbourhood Services,Direct Services,Transport,230005,Contract Hire,03-Dec-2014,2830425-SLINV/00084096,"3,272.64",RTR RIVERSIDE TRUCK RENTAL LTD.
Neighbourhood Services,Direct Services,Transport,230005,Contract Hire,03-Dec-2014,2830425-SLINV/00084100,"4,370.00",RTR RIVERSIDE TRUCK RENTAL LTD.
Neighbourhood Services,Direct Services,Transport,230005,Contract Hire,03-Dec-2014,2830425-SLINV/00084101,"4,370.00",RTR RIVERSIDE TRUCK RENTAL LTD.
Neighbourhood Services,Direct Services,Transport,230005,Contract Hire,03-Dec-2014,2830425-SLINV/00084102,"3,473.00",RTR RIVERSIDE TRUCK RENTAL LTD.
Neighbourhood Services,Direct Services,Transport,230005,Contract Hire,03-Dec-2014,2830425-SLINV/00084103,"3,473.00",RTR RIVERSIDE TRUCK RENTAL LTD.
Neighbourhood Services,Direct Services,Transport,230005,Contract Hire,03-Dec-2014,2830425-SLINV/00084228,"3,272.64",RTR RIVERSIDE TRUCK RENTAL LTD.
Neighbourhood Services,Direct Services,Transport,230005,Contract Hire,03-Dec-2014,2830425-SLINV/00084233,"3,272.64",RTR RIVERSIDE TRUCK RENTAL LTD.
Neighbourhood Services,Direct Services,Transport,230005,Contract Hire,03-Dec-2014,2830425-SLINV/00084281,"3,473.00",RTR RIVERSIDE TRUCK RENTAL LTD.
Neighbourhood Services,Direct Services,Transport,230005,Contract Hire,03-Dec-2014,2830425-SLINV/00084974,"1,510.00",RTR RIVERSIDE TRUCK RENTAL LTD.
Neighbourhood Services,Direct Services,Transport,230005,Contract Hire,03-Dec-2014,2830425-SLINV/00084975,"1,510.00",RTR RIVERSIDE TRUCK RENTAL LTD.
Children and Adult Services,Education,Transport,230008,Contract Hire,03-Dec-2014,2830076-12,990.00,A & P TAXIS.
Children and Adult Services,Head of Adults,Transport,230005,Contract Hire,03-Dec-2014,2830077-EA220759,"1,600.00",A MURRAY TRAVEL.
Children and Adult Services,Head of Adults,Transport,230005,Contract Hire,03-Dec-2014,2830078-A1DCC/516,582.40,A1 TAXIS.
Children and Adult Services,Education,Transport,230007,Contract Hire,03-Dec-2014,2830082-38,"1,160.00",AALPHA TAXIS.
Children and Adult Services,Education,Transport,230006,Contract Hire,03-Dec-2014,2830084-563,960.00,AC TAXIS.
Children and Adult Services,Education,Transport,230007,Contract Hire,03-Dec-2014,2830087-SAS1114ESH,900.00,AIRPORT CARS DURHAM
Children and Adult Services,Education,Transport,230006,Contract Hire,03-Dec-2014,2830089-388028,684.00,ALAN SOUTHERN T/A ALANS TAXIS PELTON FELL.
Children and Adult Services,Education,Transport,230008,Contract Hire,03-Dec-2014,2830089-388128,815.00,ALAN SOUTHERN T/A ALANS TAXIS PELTON FELL.
Children and Adult Services,Education,Transport,230008,Contract Hire,03-Dec-2014,2830089-388228,"1,490.00",ALAN SOUTHERN T/A ALANS TAXIS PELTON FELL.
Children and Adult Services,Education,Transport,230008,Contract Hire,03-Dec-2014,2830101-DCC6NOV14,"3,100.80",ATLAS TAXIS BISHOP AUCKLAND.
Children and Adult Services,Education,Transport,230008,Contract Hire,03-Dec-2014,2830103-28011014,"1,100.00",AVALON TAXIS.
Children and Adult Services,Education,Transport,230007,Contract Hire,03-Dec-2014,2830103-281114,600.00,AVALON TAXIS.
Children and Adult Services,Education,Transport,230006,Contract Hire,03-Dec-2014,2830110-F538/3-NOV2014,760.00,B&C YELLOWCAB TAXI`S.
Children and Adult Services,Education,Transport,230008,Contract Hire,03-Dec-2014,2830114-10NOVEMBER14,"1,600.00",BEELINE PRIVATE HIRE.
Children and Adult Services,Education,Transport,230008,Contract Hire,03-Dec-2014,2830114-9NOVEMBER14,880.00,BEELINE PRIVATE HIRE.
Children and Adult Services,Education,Transport,230008,Contract Hire,03-Dec-2014,2830120-108,"1,280.00",BG TAXIS.
Children and Adult Services,Education,Transport,230008,Contract Hire,03-Dec-2014,2830148-BZ00124,"1,560.00",BREZ`S TAXIS.
Children and Adult Services,Education,Transport,230008,Contract Hire,03-Dec-2014,2830162-BIL0051,"1,280.00",CA MUSGROVE.
Children and Adult Services,Education,Transport,230008,Contract Hire,03-Dec-2014,2830184-NOV1234,"1,100.00",CM TAXIS.
Children and Adult Services,Education,Transport,230007,Contract Hire,03-Dec-2014,2830184-NOV12345,600.00,CM TAXIS.
Children and Adult Services,Education,Transport,230007,Contract Hire,03-Dec-2014,2830192-6035/1014-NOV2014,684.00,COLVIN`S CABS.
Children and Adult Services,Education,Transport,230008,Contract Hire,03-Dec-2014,2830204-52,"1,140.00",D CROOK T/A CK TAXIS.
Children and Adult Services,Education,Transport,230008,Contract Hire,03-Dec-2014,2830206-1368,960.00,DA TAXIS.
Children and Adult Services,Education,Transport,230008,Contract Hire,03-Dec-2014,2830207-089,"1,008.00",DA TRAVEL.
Children and Adult Services,Education,Transport,230008,Contract Hire,03-Dec-2014,2830207-090,880.00,DA TRAVEL.
Children and Adult Services,Education,Transport,230008,Contract Hire,03-Dec-2014,2830213-1114/001,"1,400.00",DCM TAXIS.
Dedicated Schools Grant,Dedicated Schools Grant,Transport,230005,Contract Hire,03-Dec-2014,2830225-DCE03-14,875.00,DUNCAN G CUMMINGS T/A DC TAXIS.
Children and Adult Services,Education,Transport,230007,Contract Hire,03-Dec-2014,2830226-20109,"2,590.00",DURHAM CITY COACHES.
Children and Adult Services,Education,Transport,230008,Contract Hire,03-Dec-2014,236674-14/0011,"1,500.00",EDDIE BURROWS.
Children and Adult Services,Education,Transport,230006,Contract Hire,03-Dec-2014,2830251-003,784.00,GAIL MADDISON T/A CENTRAL TAXIS.
Children and Adult Services,Head of Adults,Transport,230005,Contract Hire,03-Dec-2014,2830259-WV091/020,"1,204.00",GMC TAXIS NORTH EAST.
Children and Adult Services,Head of Adults,Transport,230005,Contract Hire,03-Dec-2014,2830262-40A,590.00,GRAEME AGNEW T/A STREETCARS.
Children and Adult Services,Education,Transport,230007,Contract Hire,03-Dec-2014,2830290-829,"1,044.00",J YOUNG T/A VIP TAXIS.
Children and Adult Services,Education,Transport,230008,Contract Hire,03-Dec-2014,2830290-843,608.00,J YOUNG T/A VIP TAXIS.
Children and Adult Services,Education,Transport,230007,Contract Hire,03-Dec-2014,2830290-844,750.00,J YOUNG T/A VIP TAXIS.
Children and Adult Services,Education,Transport,230009,Contract Hire,03-Dec-2014,2830290-845,"1,140.00",J YOUNG T/A VIP TAXIS.
Children and Adult Services,Education,Transport,230008,Contract Hire,03-Dec-2014,2830290-846,"1,000.00",J YOUNG T/A VIP TAXIS.
Children and Adult Services,Education,Transport,230008,Contract Hire,03-Dec-2014,2830290-848,"1,020.00",J YOUNG T/A VIP TAXIS.
Children and Adult Services,Education,Transport,230007,Contract Hire,03-Dec-2014,2830290-851,"1,160.00",J YOUNG T/A VIP TAXIS.
Children and Adult Services,Education,Transport,230007,Contract Hire,03-Dec-2014,2830290-853,640.00,J YOUNG T/A VIP TAXIS.
Children and Adult Services,Education,Transport,230008,Contract Hire,03-Dec-2014,2830290-855,"1,560.00",J YOUNG T/A VIP TAXIS.
Children and Adult Services,Head of Adults,Transport,230005,Contract Hire,03-Dec-2014,2830292-626,"1,069.00",JDS PRIVATE HIRE DURHAM.
Children and Adult Services,Head of Adults,Transport,230005,Contract Hire,03-Dec-2014,2830292-627,"1,640.00",JDS PRIVATE HIRE DURHAM.
Children and Adult Services,Head of Adults,Transport,230005,Contract Hire,03-Dec-2014,2830333-69,780.00,M BUTCHER.
Children and Adult Services,Education,Transport,230008,Contract Hire,03-Dec-2014,2830341-3,"1,330.00",MALCOLM CARR T/A CARLY CABS.
Dedicated Schools Grant,Dedicated Schools Grant,Transport,230010,Contract Hire,03-Dec-2014,2830345-051407,504.00,MARK & JOHN CHISHOLM T/A (CHEVRON).
Children and Adult Services,Education,Transport,230008,Contract Hire,03-Dec-2014,2830345-111401,"2,280.00",MARK & JOHN CHISHOLM T/A (CHEVRON).
Dedicated Schools Grant,Dedicated Schools Grant,Transport,230010,Contract Hire,03-Dec-2014,2830345-111402,"2,160.00",MARK & JOHN CHISHOLM T/A (CHEVRON).
Children and Adult Services,Education,Transport,230008,Contract Hire,03-Dec-2014,2830345-111403,"1,400.00",MARK & JOHN CHISHOLM T/A (CHEVRON).
Dedicated Schools Grant,Dedicated Schools Grant,Transport,230010,Contract Hire,03-Dec-2014,2830345-111404,"2,360.00",MARK & JOHN CHISHOLM T/A (CHEVRON).
Children and Adult Services,Education,Transport,230008,Contract Hire,03-Dec-2014,2830345-111405,"1,131.00",MARK & JOHN CHISHOLM T/A (CHEVRON).
Children and Adult Services,Education,Transport,230008,Contract Hire,03-Dec-2014,2830345-111406,950.00,MARK & JOHN CHISHOLM T/A (CHEVRON).
Dedicated Schools Grant,Dedicated Schools Grant,Transport,230010,Contract Hire,03-Dec-2014,2830345-111408,"1,830.00",MARK & JOHN CHISHOLM T/A (CHEVRON).
Children and Adult Services,Head of Adults,Transport,230005,Contract Hire,03-Dec-2014,2830347-591114,780.00,MARK MUSGROVE T/A MARKS TAXIS.
Dedicated Schools Grant,Dedicated Schools Grant,Transport,230005,Contract Hire,03-Dec-2014,2830355-INV-62,"1,200.00",MICHAEL COBB (T/A HAIL TAXIS).
Children and Adult Services,Education,Transport,230008,Contract Hire,03-Dec-2014,2830357-E046-002,"2,016.00",MISS KA SUTHERLAND T/A FERRYHILL TRAVEL TAXI & MINIBUS HIRE.
Children and Adult Services,Head of Adults,Transport,230005,Contract Hire,03-Dec-2014,2830359-EDB11-14,"1,100.10",MR CT WALKER T/A COLIN`S TAXIS.
Children and Adult Services,Head of Adults,Transport,230005,Contract Hire,03-Dec-2014,2830360-034A,"1,196.00",MR GN ROBBINS T/A GNR MINIBUS HIRE.
Dedicated Schools Grant,Dedicated Schools Grant,Transport,230010,Contract Hire,03-Dec-2014,2830365-42,"1,090.00",MRS ANNE BOWMAN T/A ANNES CARS.
Children and Adult Services,Head of Adults,Transport,230005,Contract Hire,03-Dec-2014,2830396-0343,920.00,PETER`S PRIVATE HIRE/PETER BEST.
Children and Adult Services,Head of Adults,Transport,230005,Contract Hire,03-Dec-2014,2830396-0344,880.00,PETER`S PRIVATE HIRE/PETER BEST.
Children and Adult Services,Head of Adults,Transport,230005,Contract Hire,03-Dec-2014,2830405-141151,600.00,PRATTS TAXIS.
Children and Adult Services,Head of Adults,Transport,230005,Contract Hire,03-Dec-2014,2830405-141152,752.00,PRATTS TAXIS.
Children and Adult Services,Head of Adults,Transport,230005,Contract Hire,03-Dec-2014,2830405-141161,576.00,PRATTS TAXIS.
Children and Adult Services,Head of Adults,Transport,230005,Contract Hire,03-Dec-2014,2830445-D147,648.00,SIMONS TAXIS.
Children and Adult Services,Head of Adults,Transport,230005,Contract Hire,03-Dec-2014,2830496-03,520.00,TREVOR GARDNER T/A TCG TAXIS.
Dedicated Schools Grant,Dedicated Schools Grant,Transport,230005,Contract Hire,03-Dec-2014,2830497-64,"4,180.00",TRIDENT TAXIS.
Children and Adult Services,Education,Transport,230007,Contract Hire,03-Dec-2014,2830510-5115,640.00,WEARDALE PRIVATE HIRE.
Children and Adult Services,Education,Transport,230007,Contract Hire,03-Dec-2014,2830510-5116,"3,860.00",WEARDALE PRIVATE HIRE.
Children and Adult Services,Head of Adults,Transport,230005,Contract Hire,03-Dec-2014,2830510-5124,"1,390.00",WEARDALE PRIVATE HIRE.
Children and Adult Services,Head of Adults,Transport,230005,Contract Hire,03-Dec-2014,2830510-5125,"2,920.00",WEARDALE PRIVATE HIRE.
Neighbourhood Services,Technical Services,Third Party Payments,460502,Contract Payments,03-Dec-2014,236773-104262,718.02,NORTHUMBERLAND COUNTY COUNCIL.
Children and Adult Services,Public Health,Third Party Payments,460803,Contract Payments,03-Dec-2014,2830098-FA415/08/14,826.18,ASDA PHARMACY.
Children and Adult Services,Public Health,Third Party Payments,460802,Contract Payments,03-Dec-2014,2830127-9777,594.25,BOOTS THE CHEMISTS LTD.
Children and Adult Services,Public Health,Third Party Payments,460802,Contract Payments,03-Dec-2014,2830130-9779,"1,378.66",BOOTS THE CHEMISTS LTD.
Children and Adult Services,Public Health,Third Party Payments,460802,Contract Payments,03-Dec-2014,2830135-9765,594.25,BOOTS THE CHEMISTS LTD.
Children and Adult Services,Public Health,Third Party Payments,460803,Contract Payments,03-Dec-2014,2830137-FPC89/0814/NRT,590.95,BOOTS THE CHEMISTS LTD.
Children and Adult Services,Public Health,Third Party Payments,460803,Contract Payments,03-Dec-2014,2830185-3910005172,"236,061.00",CO DURHAM & DARLINGTON NHS FOUNDATION TRUST.
Children and Adult Services,Public Health,Third Party Payments,460803,Contract Payments,03-Dec-2014,2830185-3910005792,"454,636.50",CO DURHAM & DARLINGTON NHS FOUNDATION TRUST.
Children and Adult Services,Public Health,Third Party Payments,460803,Contract Payments,03-Dec-2014,2830240-FK668,532.00,FARAH CHEMISTS LTD.
Children and Adult Services,Public Health,Third Party Payments,460803,Contract Payments,03-Dec-2014,2830284-FDH51/1014,790.00,INTRAHEALTH LTD.
Children and Adult Services,Public Health,Third Party Payments,460803,Contract Payments,03-Dec-2014,2830324-66630A101401,900.00,LLOYDS PHARMACY.
Children and Adult Services,Public Health,Third Party Payments,460803,Contract Payments,03-Dec-2014,2830325-FFC99/OCT14,625.00,LLOYDS PHARMACY.
Children and Adult Services,Public Health,Third Party Payments,460803,Contract Payments,03-Dec-2014,2830327-FHM85/OCT/14,829.00,LLOYDS PHARMACY.
Children and Adult Services,Central Charges (CYPS),Creditors,952258,Creditor-West Durham Cluster,03-Dec-2014,2830267-1554,950.00,GREENSIDES ASSOCIATES LTD.
Children and Adult Services,Central Charges (CYPS),Creditors,952258,Creditor-West Durham Cluster,03-Dec-2014,2830273-INV04393,960.00,HEADLAM HALL HOTEL.
Children and Adult Services,Central/Other,Debtors,930133,Debtor ISIS Out of Hours - Home Care,03-Dec-2014,2830483-D008,"8,333.33",THE HUMAN SUPPORT GROUP.
Children and Adult Services,Head of Adults,Debtors,930137,Debtor Nursing Care - ISIS Medical (GP),03-Dec-2014,2829872-2203445,722.71,HOWLISH HALL NURSING HOME.
Children and Adult Services,Head of Adults,Debtors,930137,Debtor Nursing Care - ISIS Medical (GP),03-Dec-2014,2829872-2203469,722.71,HOWLISH HALL NURSING HOME.
Children and Adult Services,Head of Adults,Debtors,930137,Debtor Nursing Care - ISIS Medical (GP),03-Dec-2014,2829959-2203290,650.44,PERFECT CARE LTD T/A BELMONT GRANGE CARE HOME.
Children and Adult Services,Head of Adults,Debtors,930137,Debtor Nursing Care - ISIS Medical (GP),03-Dec-2014,2830004-2199329,578.17,ST ANDREWS MPS LTD.
Children and Adult Services,Head of Adults,Debtors,930137,Debtor Nursing Care - ISIS Medical (GP),03-Dec-2014,2830020-2203621,794.98,TAMARIS HEALTHCARE LTD.
Children and Adult Services,Head of Adults,Debtors,930136,Debtor Nursing Care - ISIS Nursing,03-Dec-2014,2829770-2203379,"1,589.97",ALLIANCE CARE.
Children and Adult Services,Head of Adults,Debtors,930136,Debtor Nursing Care - ISIS Nursing,03-Dec-2014,2829770-2203381,794.98,ALLIANCE CARE.
Children and Adult Services,Head of Adults,Debtors,930136,Debtor Nursing Care - ISIS Nursing,03-Dec-2014,2829800-2198975,"1,373.15",BISHOPSGATE LODGE.
Children and Adult Services,Head of Adults,Debtors,930136,Debtor Nursing Care - ISIS Nursing,03-Dec-2014,2829800-2203150,650.44,BISHOPSGATE LODGE.
Children and Adult Services,Head of Adults,Debtors,930136,Debtor Nursing Care - ISIS Nursing,03-Dec-2014,2829872-2198906,867.25,HOWLISH HALL NURSING HOME.
Children and Adult Services,Head of Adults,Debtors,930136,Debtor Nursing Care - ISIS Nursing,03-Dec-2014,2829872-2203443,722.71,HOWLISH HALL NURSING HOME.
Children and Adult Services,Head of Adults,Debtors,930136,Debtor Nursing Care - ISIS Nursing,03-Dec-2014,2829872-2203494,794.98,HOWLISH HALL NURSING HOME.
Children and Adult Services,Head of Adults,Debtors,930136,Debtor Nursing Care - ISIS Nursing,03-Dec-2014,2829872-2203571,867.25,HOWLISH HALL NURSING HOME.
Children and Adult Services,Head of Adults,Debtors,930136,Debtor Nursing Care - ISIS Nursing,03-Dec-2014,2829907-2203632,867.25,MARIA MALLABAND NURSING HOMES LTD.
Children and Adult Services,Head of Adults,Debtors,930136,Debtor Nursing Care - ISIS Nursing,03-Dec-2014,2830004-2199316,"1,300.88",ST ANDREWS MPS LTD.
Children and Adult Services,Head of Adults,Debtors,930134,Debtor Nursing Care - ISIS Time to Think,03-Dec-2014,2829822-2203449,"1,517.70",DEFOE COURT.
Children and Adult Services,Head of Adults,Debtors,930134,Debtor Nursing Care - ISIS Time to Think,03-Dec-2014,2829872-2198927,"1,734.51",HOWLISH HALL NURSING HOME.
Children and Adult Services,Head of Adults,Debtors,930134,Debtor Nursing Care - ISIS Time to Think,03-Dec-2014,2829874-2203176,794.99,JACK DORMAND.
Children and Adult Services,Head of Adults,Debtors,930134,Debtor Nursing Care - ISIS Time to Think,03-Dec-2014,2830020-2203623,"1,589.97",TAMARIS HEALTHCARE LTD.
Children and Adult Services,Head of Adults,Debtors,930134,Debtor Nursing Care - ISIS Time to Think,03-Dec-2014,2830025-2203649,722.71,TAMARIS HEALTHCARE LTD.
Children and Adult Services,Head of Adults,Debtors,930135,Debtor Residential Care - ISIS Rehabilitation,03-Dec-2014,2829770-2203374,966.14,ALLIANCE CARE.
Children and Adult Services,Head of Adults,Debtors,930135,Debtor Residential Care - ISIS Rehabilitation,03-Dec-2014,2829770-2203378,"1,035.15",ALLIANCE CARE.
Children and Adult Services,Head of Adults,Debtors,930135,Debtor Residential Care - ISIS Rehabilitation,03-Dec-2014,2829770-2203590,897.13,ALLIANCE CARE.
Children and Adult Services,Head of Adults,Debtors,930135,Debtor Residential Care - ISIS Rehabilitation,03-Dec-2014,2829770-2203599,"1,587.23",ALLIANCE CARE.
Children and Adult Services,Head of Adults,Debtors,930135,Debtor Residential Care - ISIS Rehabilitation,03-Dec-2014,2829822-2201148,"1,311.19",DEFOE COURT.
Children and Adult Services,Head of Adults,Debtors,930135,Debtor Residential Care - ISIS Rehabilitation,03-Dec-2014,2829825-2203256,"1,104.16",DEVONSHIRE HOUSE.
Children and Adult Services,Head of Adults,Debtors,930135,Debtor Residential Care - ISIS Rehabilitation,03-Dec-2014,2829827-2203069,"1,242.18",DIVINE CARE CENTRE.
Children and Adult Services,Head of Adults,Debtors,930135,Debtor Residential Care - ISIS Rehabilitation,03-Dec-2014,2829827-2203070,"1,932.28",DIVINE CARE CENTRE.
Children and Adult Services,Head of Adults,Debtors,930135,Debtor Residential Care - ISIS Rehabilitation,03-Dec-2014,2829827-2203071,"1,932.28",DIVINE CARE CENTRE.
Children and Adult Services,Head of Adults,Debtors,930135,Debtor Residential Care - ISIS Rehabilitation,03-Dec-2014,2829827-2203074,"1,104.16",DIVINE CARE CENTRE.
Children and Adult Services,Head of Adults,Debtors,930135,Debtor Residential Care - ISIS Rehabilitation,03-Dec-2014,2829841-2202571,828.12,EMBRACE ALL LTD.
Children and Adult Services,Head of Adults,Debtors,930135,Debtor Residential Care - ISIS Rehabilitation,03-Dec-2014,2829841-2202577,621.09,EMBRACE ALL LTD.
Children and Adult Services,Head of Adults,Debtors,930135,Debtor Residential Care - ISIS Rehabilitation,03-Dec-2014,2829841-2202584,"1,449.21",EMBRACE ALL LTD.
Children and Adult Services,Head of Adults,Debtors,930135,Debtor Residential Care - ISIS Rehabilitation,03-Dec-2014,2829841-2202586,"1,587.23",EMBRACE ALL LTD.
Children and Adult Services,Head of Adults,Debtors,930135,Debtor Residential Care - ISIS Rehabilitation,03-Dec-2014,2829841-2202589,621.09,EMBRACE ALL LTD.
Children and Adult Services,Head of Adults,Debtors,930135,Debtor Residential Care - ISIS Rehabilitation,03-Dec-2014,2829842-2202737,"1,035.15",EMBRACE ALL LTD.
Children and Adult Services,Head of Adults,Debtors,930135,Debtor Residential Care - ISIS Rehabilitation,03-Dec-2014,2829842-2202755,"1,104.16",EMBRACE ALL LTD.
Children and Adult Services,Head of Adults,Debtors,930135,Debtor Residential Care - ISIS Rehabilitation,03-Dec-2014,2829842-2202757,621.09,EMBRACE ALL LTD.
Children and Adult Services,Head of Adults,Debtors,930135,Debtor Residential Care - ISIS Rehabilitation,03-Dec-2014,2829842-2203302,690.10,EMBRACE ALL LTD.
Children and Adult Services,Head of Adults,Debtors,930135,Debtor Residential Care - ISIS Rehabilitation,03-Dec-2014,2829842-2203616,"2,277.33",EMBRACE ALL LTD.
Children and Adult Services,Head of Adults,Debtors,930135,Debtor Residential Care - ISIS Rehabilitation,03-Dec-2014,2829842-2203617,"1,242.18",EMBRACE ALL LTD.
Children and Adult Services,Head of Adults,Debtors,930135,Debtor Residential Care - ISIS Rehabilitation,03-Dec-2014,2829844-2201239,897.13,EMBRACE ALL LTD.
Children and Adult Services,Head of Adults,Debtors,930135,Debtor Residential Care - ISIS Rehabilitation,03-Dec-2014,2829844-2201240,759.11,EMBRACE ALL LTD.
Children and Adult Services,Head of Adults,Debtors,930135,Debtor Residential Care - ISIS Rehabilitation,03-Dec-2014,2829844-2201248,"1,104.16",EMBRACE ALL LTD.
Children and Adult Services,Head of Adults,Debtors,930135,Debtor Residential Care - ISIS Rehabilitation,03-Dec-2014,2829844-2201249,966.14,EMBRACE ALL LTD.
Children and Adult Services,Head of Adults,Debtors,930135,Debtor Residential Care - ISIS Rehabilitation,03-Dec-2014,2829844-2201265,552.08,EMBRACE ALL LTD.
Children and Adult Services,Head of Adults,Debtors,930135,Debtor Residential Care - ISIS Rehabilitation,03-Dec-2014,2829844-2201271,897.13,EMBRACE ALL LTD.
Children and Adult Services,Head of Adults,Debtors,930135,Debtor Residential Care - ISIS Rehabilitation,03-Dec-2014,2829844-2201273,759.11,EMBRACE ALL LTD.
Children and Adult Services,Head of Adults,Debtors,930135,Debtor Residential Care - ISIS Rehabilitation,03-Dec-2014,2829844-2201278,"1,311.19",EMBRACE ALL LTD.
Children and Adult Services,Head of Adults,Debtors,930135,Debtor Residential Care - ISIS Rehabilitation,03-Dec-2014,2829872-2198914,"1,311.19",HOWLISH HALL NURSING HOME.
Children and Adult Services,Head of Adults,Debtors,930135,Debtor Residential Care - ISIS Rehabilitation,03-Dec-2014,2829874-2199860,966.14,JACK DORMAND.
Children and Adult Services,Head of Adults,Debtors,930135,Debtor Residential Care - ISIS Rehabilitation,03-Dec-2014,2829907-2200968,690.10,MARIA MALLABAND NURSING HOMES LTD.
Children and Adult Services,Head of Adults,Debtors,930135,Debtor Residential Care - ISIS Rehabilitation,03-Dec-2014,2829907-2200971,966.14,MARIA MALLABAND NURSING HOMES LTD.
Children and Adult Services,Head of Adults,Debtors,930135,Debtor Residential Care - ISIS Rehabilitation,03-Dec-2014,2829907-2203634,"1,656.24",MARIA MALLABAND NURSING HOMES LTD.
Children and Adult Services,Head of Adults,Debtors,930135,Debtor Residential Care - ISIS Rehabilitation,03-Dec-2014,2829957-2199679,"1,932.28",PELTON GRANGE CARE HOME.
Children and Adult Services,Head of Adults,Debtors,930135,Debtor Residential Care - ISIS Rehabilitation,03-Dec-2014,2829957-2199684,"1,932.28",PELTON GRANGE CARE HOME.
Children and Adult Services,Head of Adults,Debtors,930135,Debtor Residential Care - ISIS Rehabilitation,03-Dec-2014,2829959-2199651,897.13,PERFECT CARE LTD T/A BELMONT GRANGE CARE HOME.
Children and Adult Services,Head of Adults,Debtors,930135,Debtor Residential Care - ISIS Rehabilitation,03-Dec-2014,2829959-2199663,"1,794.26",PERFECT CARE LTD T/A BELMONT GRANGE CARE HOME.
Children and Adult Services,Head of Adults,Debtors,930135,Debtor Residential Care - ISIS Rehabilitation,03-Dec-2014,2829959-2199666,759.11,PERFECT CARE LTD T/A BELMONT GRANGE CARE HOME.
Children and Adult Services,Head of Adults,Debtors,930135,Debtor Residential Care - ISIS Rehabilitation,03-Dec-2014,2829959-2203288,"1,035.15",PERFECT CARE LTD T/A BELMONT GRANGE CARE HOME.
Children and Adult Services,Head of Adults,Debtors,930135,Debtor Residential Care - ISIS Rehabilitation,03-Dec-2014,2829959-2203289,"1,035.15",PERFECT CARE LTD T/A BELMONT GRANGE CARE HOME.
Children and Adult Services,Head of Adults,Debtors,930135,Debtor Residential Care - ISIS Rehabilitation,03-Dec-2014,2829959-2203328,"1,035.15",PERFECT CARE LTD T/A BELMONT GRANGE CARE HOME.
Children and Adult Services,Head of Adults,Debtors,930135,Debtor Residential Care - ISIS Rehabilitation,03-Dec-2014,2829980-2201522,"1,173.17",REDWORTH HOUSE.
Children and Adult Services,Head of Adults,Debtors,930135,Debtor Residential Care - ISIS Rehabilitation,03-Dec-2014,2830004-2199317,"1,242.18",ST ANDREWS MPS LTD.
Children and Adult Services,Head of Adults,Debtors,930135,Debtor Residential Care - ISIS Rehabilitation,03-Dec-2014,2830004-2199327,"1,932.28",ST ANDREWS MPS LTD.
Children and Adult Services,Head of Adults,Debtors,930135,Debtor Residential Care - ISIS Rehabilitation,03-Dec-2014,2830004-2203329,621.09,ST ANDREWS MPS LTD.
Children and Adult Services,Head of Adults,Debtors,930135,Debtor Residential Care - ISIS Rehabilitation,03-Dec-2014,2830004-2203585,828.12,ST ANDREWS MPS LTD.
Children and Adult Services,Head of Adults,Debtors,930135,Debtor Residential Care - ISIS Rehabilitation,03-Dec-2014,2830020-2200459,759.11,TAMARIS HEALTHCARE LTD.
Children and Adult Services,Head of Adults,Debtors,930135,Debtor Residential Care - ISIS Rehabilitation,03-Dec-2014,2830020-2200465,621.09,TAMARIS HEALTHCARE LTD.
Children and Adult Services,Head of Adults,Debtors,930135,Debtor Residential Care - ISIS Rehabilitation,03-Dec-2014,2830020-2200473,"1,932.28",TAMARIS HEALTHCARE LTD.
Children and Adult Services,Head of Adults,Debtors,930135,Debtor Residential Care - ISIS Rehabilitation,03-Dec-2014,2830025-2201087,"1,932.28",TAMARIS HEALTHCARE LTD.
Children and Adult Services,Head of Adults,Debtors,930135,Debtor Residential Care - ISIS Rehabilitation,03-Dec-2014,2830025-2203652,"1,449.21",TAMARIS HEALTHCARE LTD.
Children and Adult Services,Head of Adults,Debtors,930135,Debtor Residential Care - ISIS Rehabilitation,03-Dec-2014,2830025-2203653,"1,518.22",TAMARIS HEALTHCARE LTD.
Children and Adult Services,Head of Adults,Debtors,930135,Debtor Residential Care - ISIS Rehabilitation,03-Dec-2014,2830055-2199786,"1,587.23",WEST HOUSE CARE HOME.
Children and Adult Services,Head of Adults,Debtors,930135,Debtor Residential Care - ISIS Rehabilitation,03-Dec-2014,2830055-2199791,"1,932.28",WEST HOUSE CARE HOME.
Children and Adult Services,Head of Adults,Debtors,930135,Debtor Residential Care - ISIS Rehabilitation,03-Dec-2014,2830055-2203127,"1,725.25",WEST HOUSE CARE HOME.
Children and Adult Services,Central/Other,Debtors,930024,Debtor-free nursing care,03-Dec-2014,2829770-2203409,823.75,ALLIANCE CARE.
Children and Adult Services,Central/Other,Debtors,930024,Debtor-free nursing care,03-Dec-2014,2829771-2199555,506.92,ALLIANCE CARE.
Children and Adult Services,Central/Other,Debtors,930024,Debtor-free nursing care,03-Dec-2014,2829841-2202569,"1,647.51",EMBRACE ALL LTD.
Children and Adult Services,Central/Other,Debtors,930024,Debtor-free nursing care,03-Dec-2014,2829842-2202749,855.44,EMBRACE ALL LTD.
Children and Adult Services,Central/Other,Debtors,930024,Debtor-free nursing care,03-Dec-2014,2829854-2203124,"2,883.13",GAINFORD CARE HOMES LTD.
Children and Adult Services,Central/Other,Debtors,930024,Debtor-free nursing care,03-Dec-2014,2829856-2202807,918.80,GAINFORD CARE HOMES LTD.
Children and Adult Services,Central/Other,Debtors,930024,Debtor-free nursing care,03-Dec-2014,2829863-2202675,538.60,GUARDIAN CARE HOMES (WEST) LTD.
Children and Adult Services,Central/Other,Debtors,930024,Debtor-free nursing care,03-Dec-2014,2829863-2202685,647.45,GUARDIAN CARE HOMES (WEST) LTD.
Children and Adult Services,Central/Other,Debtors,930024,Debtor-free nursing care,03-Dec-2014,2829871-2203468,570.29,HOLLY LODGE CARE HOME.
Children and Adult Services,Central/Other,Debtors,930024,Debtor-free nursing care,03-Dec-2014,2829878-2200365,610.44,KIMBLESWORTH NURSING HOME.
Children and Adult Services,Central/Other,Debtors,930024,Debtor-free nursing care,03-Dec-2014,2829898-2201818,"1,394.04",LINDISFARNE.
Children and Adult Services,Central/Other,Debtors,930024,Debtor-free nursing care,03-Dec-2014,2829904-2201995,506.92,LYONS COURT CARE HOME.
Children and Adult Services,Central/Other,Debtors,930024,Debtor-free nursing care,03-Dec-2014,2829978-2198848,610.44,RAYSON HOMES LTD.
Children and Adult Services,Central/Other,Debtors,930024,Debtor-free nursing care,03-Dec-2014,2830024-2202479,610.44,TAMARIS HEALTHCARE LTD.
Children and Adult Services,Central/Other,Debtors,930024,Debtor-free nursing care,03-Dec-2014,2830024-2203464,665.34,TAMARIS HEALTHCARE LTD.
Children and Adult Services,Central/Other,Debtors,930024,Debtor-free nursing care,03-Dec-2014,2830056-2203552,"1,172.26",WEST LODGE HOMES.
Children and Adult Services,Central/Other,Debtors,930024,Debtor-free nursing care,03-Dec-2014,2830064-2200025,610.44,YODEN HALL NURSING HOME.
Children and Adult Services,Central/Other,Debtors,930024,Debtor-free nursing care,03-Dec-2014,2830064-2203223,807.91,YODEN HALL NURSING HOME.
Neighbourhood Services,Direct Services,Debtors,930046,Debtor-leasing,03-Dec-2014,2830311-2274,"1,100.00",KTD NE LTD.
Neighbourhood Services,Direct Services,Supplies and Services,304221,Equipment and Materials,03-Dec-2014,2830172-132953,"1,760.00",CHAS LONG & SON (AGGREGATES) LTD.
Neighbourhood Services,Direct Services,Supplies and Services,304221,Equipment and Materials,03-Dec-2014,2830172-132954,"1,760.00",CHAS LONG & SON (AGGREGATES) LTD.
Neighbourhood Services,Direct Services,Supplies and Services,304221,Equipment and Materials,03-Dec-2014,2830265-06/533421,862.45,GREENHAM TRADING LTD.
Neighbourhood Services,Direct Services,Supplies and Services,304221,Equipment and Materials,03-Dec-2014,2830269-SI-2360,"1,174.02",HARELAW SAWMILL LTD.
Neighbourhood Services,Direct Services,Supplies and Services,304358,Equipment and Materials,03-Dec-2014,2830507-64896,"1,155.00",WARREN ACCESS LTD.
Neighbourhood Services,Culture & Sport,Supplies and Services,304221,Equipment and Materials,03-Dec-2014,236708-2846,550.00,LASHBROOKS.COM LTD.
Neighbourhood Services,Culture & Sport,Supplies and Services,304221,Equipment and Materials,03-Dec-2014,2830450-SIN028971,"9,597.60",SOUND REDUCTION SYSTEMS LTD (SRS).
Neighbourhood Services,Direct Services,Supplies and Services,304252,Equipment and Materials,03-Dec-2014,2830255-INV0054558,709.00,GEMCO SERVICE LTD.
Neighbourhood Services,Direct Services,Supplies and Services,304259,Equipment and Materials,03-Dec-2014,2830270-32662,737.79,HARRISON & SON LTD (MASTER LOCKSMITHS).
Neighbourhood Services,Technical Services,Supplies and Services,304221,Equipment and Materials,03-Dec-2014,2830086-20628347,"1,186.68",AGGREGATE INDUSTRIES UK LTD.
Neighbourhood Services,Technical Services,Supplies and Services,304221,Equipment and Materials,03-Dec-2014,2830086-20634227,"1,773.20",AGGREGATE INDUSTRIES UK LTD.
Neighbourhood Services,Technical Services,Supplies and Services,304221,Equipment and Materials,03-Dec-2014,2830086-20639955,"1,236.28",AGGREGATE INDUSTRIES UK LTD.
Neighbourhood Services,Technical Services,Supplies and Services,304221,Equipment and Materials,03-Dec-2014,2830086-20645762,"1,644.24",AGGREGATE INDUSTRIES UK LTD.
Neighbourhood Services,Technical Services,Supplies and Services,304221,Equipment and Materials,03-Dec-2014,2830086-20653166,"1,490.48",AGGREGATE INDUSTRIES UK LTD.
Neighbourhood Services,Technical Services,Supplies and Services,304221,Equipment and Materials,03-Dec-2014,2830086-20661562,"1,376.48",AGGREGATE INDUSTRIES UK LTD.
Neighbourhood Services,Technical Services,Supplies and Services,304221,Equipment and Materials,03-Dec-2014,2830086-20661568,"7,426.36",AGGREGATE INDUSTRIES UK LTD.
Neighbourhood Services,Technical Services,Supplies and Services,304221,Equipment and Materials,03-Dec-2014,2830086-20667132,717.36,AGGREGATE INDUSTRIES UK LTD.
Neighbourhood Services,Technical Services,Supplies and Services,304221,Equipment and Materials,03-Dec-2014,2830086-20672924,"1,903.40",AGGREGATE INDUSTRIES UK LTD.
Neighbourhood Services,Technical Services,Supplies and Services,304221,Equipment and Materials,03-Dec-2014,2830086-20679325,"1,104.84",AGGREGATE INDUSTRIES UK LTD.
Neighbourhood Services,Technical Services,Supplies and Services,304221,Equipment and Materials,03-Dec-2014,2830086-20686067,"1,218.92",AGGREGATE INDUSTRIES UK LTD.
Neighbourhood Services,Technical Services,Supplies and Services,304221,Equipment and Materials,03-Dec-2014,2830086-20691357,570.80,AGGREGATE INDUSTRIES UK LTD.
Neighbourhood Services,Technical Services,Supplies and Services,304221,Equipment and Materials,03-Dec-2014,2830086-20694261,"1,306.96",AGGREGATE INDUSTRIES UK LTD.
Neighbourhood Services,Technical Services,Supplies and Services,304221,Equipment and Materials,03-Dec-2014,2830086-20694266,"1,224.00",AGGREGATE INDUSTRIES UK LTD.
Neighbourhood Services,Technical Services,Supplies and Services,304221,Equipment and Materials,03-Dec-2014,2830086-20699962,"1,662.84",AGGREGATE INDUSTRIES UK LTD.
Neighbourhood Services,Technical Services,Supplies and Services,304221,Equipment and Materials,03-Dec-2014,2830086-20706513,881.84,AGGREGATE INDUSTRIES UK LTD.
Neighbourhood Services,Technical Services,Supplies and Services,304221,Equipment and Materials,03-Dec-2014,2830086-20712914,"1,929.44",AGGREGATE INDUSTRIES UK LTD.
Neighbourhood Services,Technical Services,Supplies and Services,304221,Equipment and Materials,03-Dec-2014,2830086-20720157,798.56,AGGREGATE INDUSTRIES UK LTD.
Neighbourhood Services,Technical Services,Supplies and Services,304358,Equipment and Materials,03-Dec-2014,2830111-MG04153,690.00,BAILEY CONCRETE PUMPING LTD.
Neighbourhood Services,Technical Services,Supplies and Services,304358,Equipment and Materials,03-Dec-2014,2830282-C217,"6,273.00",IAN WILSON.
Neighbourhood Services,Technical Services,Supplies and Services,304358,Equipment and Materials,03-Dec-2014,2830298-22012,"1,026.00",JOHN R BUTTERFIELD LTD.
Neighbourhood Services,Technical Services,Supplies and Services,304358,Equipment and Materials,03-Dec-2014,2830298-22259,"1,193.20",JOHN R BUTTERFIELD LTD.
Neighbourhood Services,Technical Services,Supplies and Services,304358,Equipment and Materials,03-Dec-2014,2830298-22444,"1,020.50",JOHN R BUTTERFIELD LTD.
Neighbourhood Services,Technical Services,Supplies and Services,304358,Equipment and Materials,03-Dec-2014,2830298-22514,582.50,JOHN R BUTTERFIELD LTD.
Neighbourhood Services,Technical Services,Supplies and Services,304358,Equipment and Materials,03-Dec-2014,2830298-22515,987.50,JOHN R BUTTERFIELD LTD.
Neighbourhood Services,Technical Services,Supplies and Services,304358,Equipment and Materials,03-Dec-2014,2830298-22518,975.00,JOHN R BUTTERFIELD LTD.
Neighbourhood Services,Technical Services,Supplies and Services,304358,Equipment and Materials,03-Dec-2014,2830298-22568,"1,165.00",JOHN R BUTTERFIELD LTD.
Neighbourhood Services,Technical Services,Supplies and Services,304358,Equipment and Materials,03-Dec-2014,2830298-22570,795.00,JOHN R BUTTERFIELD LTD.
Neighbourhood Services,Technical Services,Supplies and Services,304358,Equipment and Materials,03-Dec-2014,2830298-22572,914.20,JOHN R BUTTERFIELD LTD.
Neighbourhood Services,Technical Services,Supplies and Services,304358,Equipment and Materials,03-Dec-2014,2830298-22611,"1,165.00",JOHN R BUTTERFIELD LTD.
Neighbourhood Services,Technical Services,Supplies and Services,304358,Equipment and Materials,03-Dec-2014,2830298-22614,"1,143.00",JOHN R BUTTERFIELD LTD.
Neighbourhood Services,Technical Services,Supplies and Services,304358,Equipment and Materials,03-Dec-2014,2830298-22616,903.40,JOHN R BUTTERFIELD LTD.
Neighbourhood Services,Technical Services,Supplies and Services,304358,Equipment and Materials,03-Dec-2014,2830298-22617,"1,046.00",JOHN R BUTTERFIELD LTD.
Neighbourhood Services,Technical Services,Supplies and Services,304221,Equipment and Materials,03-Dec-2014,2830304-BI1150775,796.50,JT DOVE LTD.
Neighbourhood Services,Technical Services,Supplies and Services,304221,Equipment and Materials,03-Dec-2014,2830308-5812,"5,141.80",KEN THOMAS (SITE CLEARANCE LTD).
Neighbourhood Services,Technical Services,Supplies and Services,304221,Equipment and Materials,03-Dec-2014,2830308-5814,603.20,KEN THOMAS (SITE CLEARANCE LTD).
Neighbourhood Services,Technical Services,Supplies and Services,304221,Equipment and Materials,03-Dec-2014,2830308-5816,"1,777.88",KEN THOMAS (SITE CLEARANCE LTD).
Neighbourhood Services,Technical Services,Supplies and Services,304221,Equipment and Materials,03-Dec-2014,2830313-9031873784,610.90,LAFARGE TARMAC TRADING LTD.
Neighbourhood Services,Technical Services,Supplies and Services,304221,Equipment and Materials,03-Dec-2014,2830313-9031891788,801.33,LAFARGE TARMAC TRADING LTD.
Neighbourhood Services,Technical Services,Supplies and Services,304221,Equipment and Materials,03-Dec-2014,2830313-9031926727,738.80,LAFARGE TARMAC TRADING LTD.
Neighbourhood Services,Technical Services,Supplies and Services,304221,Equipment and Materials,03-Dec-2014,2830313-9031930733,593.60,LAFARGE TARMAC TRADING LTD.
Neighbourhood Services,Technical Services,Supplies and Services,304221,Equipment and Materials,03-Dec-2014,2830313-9031930734,"1,208.91",LAFARGE TARMAC TRADING LTD.
Neighbourhood Services,Technical Services,Supplies and Services,304221,Equipment and Materials,03-Dec-2014,2830313-9031934220,"1,637.60",LAFARGE TARMAC TRADING LTD.
Neighbourhood Services,Technical Services,Supplies and Services,304221,Equipment and Materials,03-Dec-2014,2830313-9031936233,"1,039.57",LAFARGE TARMAC TRADING LTD.
Neighbourhood Services,Technical Services,Supplies and Services,304221,Equipment and Materials,03-Dec-2014,2830313-9031936234,704.90,LAFARGE TARMAC TRADING LTD.
Neighbourhood Services,Technical Services,Supplies and Services,304221,Equipment and Materials,03-Dec-2014,2830313-9031941039,576.25,LAFARGE TARMAC TRADING LTD.
Neighbourhood Services,Technical Services,Supplies and Services,304221,Equipment and Materials,03-Dec-2014,2830313-9031941043,630.51,LAFARGE TARMAC TRADING LTD.
Neighbourhood Services,Technical Services,Supplies and Services,304221,Equipment and Materials,03-Dec-2014,2830313-9031941051,"1,274.40",LAFARGE TARMAC TRADING LTD.
Neighbourhood Services,Technical Services,Supplies and Services,304221,Equipment and Materials,03-Dec-2014,2830313-9031955976,704.90,LAFARGE TARMAC TRADING LTD.
Neighbourhood Services,Technical Services,Supplies and Services,304221,Equipment and Materials,03-Dec-2014,2830313-9031955979,"1,033.55",LAFARGE TARMAC TRADING LTD.
Neighbourhood Services,Technical Services,Supplies and Services,304221,Equipment and Materials,03-Dec-2014,2830313-9031967314,"1,070.55",LAFARGE TARMAC TRADING LTD.
Neighbourhood Services,Technical Services,Supplies and Services,304358,Equipment and Materials,03-Dec-2014,2830349-1735,798.00,MARTIN JEWITT PLANT HIRE.
Neighbourhood Services,Technical Services,Supplies and Services,304221,Equipment and Materials,03-Dec-2014,2830444-215075,"1,961.74",SIGNPOST SOLUTIONS LTD.
Neighbourhood Services,Technical Services,Supplies and Services,304221,Equipment and Materials,03-Dec-2014,2830469-280516,"7,454.32",TASK GREEN LTD.
Neighbourhood Services,Technical Services,Supplies and Services,304221,Equipment and Materials,03-Dec-2014,2830469-280517,"2,446.00",TASK GREEN LTD.
Neighbourhood Services,Technical Services,Supplies and Services,304358,Equipment and Materials,03-Dec-2014,2830506-38351,"7,330.00",W MARLEY AGRICULTURAL CONTRACTORS LTD.
Neighbourhood Services,Technical Services,Supplies and Services,304357,Equipment and Materials,03-Dec-2014,2830515-N77005,"1,719.62",WILLIAMSON CONSTRUCTION EQUIPMENT LTD.
Neighbourhood Services,Direct Services,Supplies and Services,304221,Equipment and Materials,03-Dec-2014,2830393-XL129535,"1,160.00",PARK ELECTRICAL DISTRIBUTORS LTD.
Neighbourhood Services,Direct Services,Supplies and Services,304221,Equipment and Materials,03-Dec-2014,2830381-1,"1,938.00",NORTHERN TOOLS & ACCESSORIES.
Neighbourhood Services,Direct Services,Supplies and Services,304221,Equipment and Materials,03-Dec-2014,2830393-XL130020,569.94,PARK ELECTRICAL DISTRIBUTORS LTD.
Neighbourhood Services,Direct Services,Supplies and Services,304358,Equipment and Materials,03-Dec-2014,2830507-64899,840.00,WARREN ACCESS LTD.
Neighbourhood Services,Culture & Sport,Supplies and Services,304245,Equipment and Materials,03-Dec-2014,2830487-2030,"1,536.00",THE WICKED COMPANY (UK) LTD.
Regeneration & Economic Development,Transport and Contracted Services,Supplies and Services,304259,Equipment and Materials,03-Dec-2014,2830343-0000151183,556.42,MANGAR INTERNATIONAL LTD.
Children and Adult Services,Head of Adults,Supplies and Services,304259,Equipment and Materials,03-Dec-2014,2830386-CN18814911,796.14,OCS GROUP UK LTD T/A CANNON HYGIENE.
Children and Adult Services,Head of Adults,Supplies and Services,304259,Equipment and Materials,03-Dec-2014,236809-100314,"6,965.36",VISUAL ALERT SYSTEMS.
Children and Adult Services,Head of Adults,Supplies and Services,304259,Equipment and Materials,03-Dec-2014,236809-120315,830.42,VISUAL ALERT SYSTEMS.
Resources,I.C.T. Services,Supplies and Services,304259,Equipment and Materials,03-Dec-2014,2830234-SI13838,610.30,ELECTROMASTER TELECOMMUNICATIONS LTD.
Regeneration & Economic Development,Spatial Policy Planning Assets & Environment,Income,720190,Fees and Charges,03-Dec-2014,236768-RED-12-2014-004,770.00,REDACTED - PAYMENT TO INDIVIDUAL
Children and Adult Services,Childrens Services,Supplies and Services,364352,Grants to Voluntary Organisations,03-Dec-2014,2830245-5462,918.33,FOUNDATION HOUSING.
Children and Adult Services,Childrens Services,Supplies and Services,364352,Grants to Voluntary Organisations,03-Dec-2014,2830245-5464,555.00,FOUNDATION HOUSING.
Children and Adult Services,Childrens Services,Supplies and Services,364352,Grants to Voluntary Organisations,03-Dec-2014,2830245-5465,869.42,FOUNDATION HOUSING.
Children and Adult Services,Childrens Services,Supplies and Services,364352,Grants to Voluntary Organisations,03-Dec-2014,2830459-D1IN/00016680,"2,520.22",STONHAM HOUSING ASSOCIATION LTD.
Children and Adult Services,Childrens Services,Supplies and Services,364352,Grants to Voluntary Organisations,03-Dec-2014,2830459-D1IN/00016681,"2,520.22",STONHAM HOUSING ASSOCIATION LTD.
Children and Adult Services,Childrens Services,Supplies and Services,364352,Grants to Voluntary Organisations,03-Dec-2014,2830459-D1IN/00016682,"2,520.22",STONHAM HOUSING ASSOCIATION LTD.
Children and Adult Services,Childrens Services,Supplies and Services,364352,Grants to Voluntary Organisations,03-Dec-2014,2830490-68/HC/14,765.39,THIRTEEN HOUSING GROUP LTD.
Children and Adult Services,Childrens Services,Supplies and Services,364352,Grants to Voluntary Organisations,03-Dec-2014,2830490-71/HC/14,923.75,THIRTEEN HOUSING GROUP LTD.
Regeneration & Economic Development,Economic Development and Housing,Supplies and Services,368008,Incentives to Industrialists,03-Dec-2014,236678-NEW/4177,"1,250.00",GARDINER & THEOBALD LLP.
Regeneration & Economic Development,Economic Development and Housing,Supplies and Services,368008,Incentives to Industrialists,03-Dec-2014,2830368-4196,"7,265.00",NAPPER ARCHITECTS LTD.
Regeneration & Economic Development,Economic Development and Housing,Supplies and Services,368008,Incentives to Industrialists,03-Dec-2014,2830368-4198,"1,200.00",NAPPER ARCHITECTS LTD.
RED HRA,HRA Capital,Fees,901001,Internal fees,03-Dec-2014,2830230-SINV/00003510,"112,500.00",EAST DURHAM HOMES.
Assistant Chief Executive,Partnerships & Community Engagement Div.,Supplies and Services,384085,Miscellaneous Expenses,03-Dec-2014,236658-WATA12-14GLAB11-14,750.00,CONSETT SALVATION ARMY.
Assistant Chief Executive,Partnerships & Community Engagement Div.,Supplies and Services,384085,Miscellaneous Expenses,03-Dec-2014,236771-ARML07-14,636.00,NEWCASTLE BANK ALLOTMENT ASSOCIATION.
Neighbourhood Services,Culture & Sport,Supplies and Services,384199,Miscellaneous Expenses,03-Dec-2014,2830505-5179,621.00,VORTEX LIGHTING LTD.
Neighbourhood Services,EnvironmentHealth & Consumer Protection,Supplies and Services,384199,Miscellaneous Expenses,03-Dec-2014,2830409-IN-14-WP-000586,"3,161.00",PUBLIC ANALYST SCIENTIFIC SERVICES LTD.
Neighbourhood Services,EnvironmentHealth & Consumer Protection,Supplies and Services,384199,Miscellaneous Expenses,03-Dec-2014,2830409-IN-14-WP-000787,"2,220.00",PUBLIC ANALYST SCIENTIFIC SERVICES LTD.
Neighbourhood Services,Culture & Sport,Supplies and Services,384700,Miscellaneous Expenses,03-Dec-2014,2830227-NEI-EXP-12-2014-003,"1,010.00",DURHAM COUNTY GOLF PARTNERSHIP.
Neighbourhood Services,Culture & Sport,Supplies and Services,384199,Miscellaneous Expenses,03-Dec-2014,236643-CONCERT19/11/14,500.00,REDACTED - PAYMENT TO INDIVIDUAL
Regeneration & Economic Development,Spatial Policy Planning Assets & Environment,Supplies and Services,384899,Miscellaneous Expenses,03-Dec-2014,236782-RED-11-2014-084,"4,425.00",RED SQUIRRELS NORTHERN ENGLAND.
Regeneration & Economic Development,Strategy Programmes and Performance,Supplies and Services,384899,Miscellaneous Expenses,03-Dec-2014,2830091-FEDF014/1,"5,083.50",ALLENDALE CREATIVE ARTISTS CIC.
Regeneration & Economic Development,Strategy Programmes and Performance,Supplies and Services,384899,Miscellaneous Expenses,03-Dec-2014,2830466-FEDF035/1,"2,252.64",SYLVESTER PROPERTIES LTD.
Regeneration & Economic Development,Economic Development and Housing,Supplies and Services,384700,Miscellaneous Expenses,03-Dec-2014,236663-RED-11-2014-142,"1,000.00",REDACTED - PAYMENT TO INDIVIDUAL
Regeneration & Economic Development,Economic Development and Housing,Supplies and Services,384700,Miscellaneous Expenses,03-Dec-2014,2830181-RED-12-2014-008,"1,000.00",CLEVES CROSS LEARNING TRUST.
Regeneration & Economic Development,Economic Development and Housing,Supplies and Services,384700,Miscellaneous Expenses,03-Dec-2014,2830279-RED-12-2014-007,"5,000.00",HYDRAM ENGINEERING LTD.
Regeneration & Economic Development,Economic Development and Housing,Supplies and Services,384700,Miscellaneous Expenses,03-Dec-2014,2830512-RED-12-2014-006,"1,000.00",WEST CORNFORTH MEDICAL CENTRE.
Children and Adult Services,Education,Supplies and Services,384199,Miscellaneous Expenses,03-Dec-2014,2830177-2807020173,"2,000.00",CITY OF SUNDERLAND.
Children and Adult Services,Education,Supplies and Services,384199,Miscellaneous Expenses,03-Dec-2014,2830438-SSP1415-4,840.00,SEDGEFIELD SCHOOL SPORT PARTNERSHIP CIC.
Children and Adult Services,Education,Supplies and Services,384199,Miscellaneous Expenses,03-Dec-2014,2830446-215105,730.00,SIMPLY SPORT LTD.
Children and Adult Services,Education,Supplies and Services,384984,Miscellaneous Expenses,03-Dec-2014,2830484-KE137830,"53,386.00",THE KEY SUPPORT SERVICES LTD.
Resources,I.C.T. Services,Supplies and Services,384199,Miscellaneous Expenses,03-Dec-2014,2830164-93952197,"4,995.00",CAPITA BUSINESS SERVICES LTD.
Assistant Chief Executive,Policy & Communications Division,Supplies and Services,312010,Newspapers Books and Periodicals,03-Dec-2014,2830370-270365/0,"18,260.39",NATIONAL LEAFLET CO LTD.
Neighbourhood Services,Culture & Sport,Supplies and Services,312013,Newspapers Books and Periodicals,03-Dec-2014,236792-2025291,660.87,SEVERN HOUSE LARGE PRINT.
Children and Adult Services,Childrens Services,Third Party Payments,440999,Other Third Party Payments,03-Dec-2014,2830350-CAS-11-2014-215,886.70,REDACTED - PAYMENT TO INDIVIDUAL
Children and Adult Services,Childrens Services,Third Party Payments,440999,Other Third Party Payments,03-Dec-2014,2830441-CAS-11-2014-242,848.00,REDACTED - PAYMENT TO INDIVIDUAL
Dedicated Schools Grant,Dedicated Schools Grant,Supplies and Services,340001,Postages,03-Dec-2014,2830246-44134627,900.00,FRANCOTYP POSTALIA LTD.
Neighbourhood Services,Direct Services,Supplies and Services,332047,Printing Stationery and Gen Off Exps,03-Dec-2014,2830463-7111210,528.00,SUPPLIES TEAM LTD.
Resources,I.C.T. Services,Supplies and Services,332029,Printing Stationery and Gen Off Exps,03-Dec-2014,2830085-3941,"1,100.00",ADDO PRINTING LTD.
Regeneration & Economic Development,Economic Development and Housing,Fees,901002,Professional fees,03-Dec-2014,2830125-4188814,700.00,BOND DICKINSON LLP.
Neighbourhood Services,Culture & Sport,Supplies and Services,324001,Provisions,03-Dec-2014,2830167-840728492,740.66,CARLSBERG UK LTD.
Neighbourhood Services,Culture & Sport,Supplies and Services,324117,Provisions,03-Dec-2014,2830391-22/2035338,598.73,PALMER & HARVEY MCLANE LTD.
Children and Adult Services,Head of Adults,Third Party Payments,470101,Purchase of Care,03-Dec-2014,2829760-2202198,"6,397.60",368 THE RIDGE.
Children and Adult Services,Head of Adults,Third Party Payments,474101,Purchase of Care,03-Dec-2014,2829761-2199476,"2,101.24",A CHARLES THOMAS (CARE) LTD.
Children and Adult Services,Head of Adults,Third Party Payments,474101,Purchase of Care,03-Dec-2014,2829761-2199478,"2,101.24",A CHARLES THOMAS (CARE) LTD.
Children and Adult Services,Head of Adults,Third Party Payments,474101,Purchase of Care,03-Dec-2014,2829761-2199480,"2,101.24",A CHARLES THOMAS (CARE) LTD.
Children and Adult Services,Head of Adults,Third Party Payments,470101,Purchase of Care,03-Dec-2014,2829761-2199482,"1,794.26",A CHARLES THOMAS (CARE) LTD.
Children and Adult Services,Head of Adults,Third Party Payments,474101,Purchase of Care,03-Dec-2014,2829761-2199483,552.28,A CHARLES THOMAS (CARE) LTD.
Children and Adult Services,Head of Adults,Third Party Payments,474101,Purchase of Care,03-Dec-2014,2829761-2199485,"2,101.24",A CHARLES THOMAS (CARE) LTD.
Children and Adult Services,Head of Adults,Third Party Payments,474101,Purchase of Care,03-Dec-2014,2829761-2199488,"2,101.24",A CHARLES THOMAS (CARE) LTD.
Children and Adult Services,Head of Adults,Third Party Payments,470101,Purchase of Care,03-Dec-2014,2829761-2199490,"2,009.92",A CHARLES THOMAS (CARE) LTD.
Children and Adult Services,Head of Adults,Third Party Payments,470101,Purchase of Care,03-Dec-2014,2829761-2199491,"4,753.06",A CHARLES THOMAS (CARE) LTD.
Children and Adult Services,Head of Adults,Third Party Payments,474101,Purchase of Care,03-Dec-2014,2829761-2199493,"2,101.24",A CHARLES THOMAS (CARE) LTD.
Children and Adult Services,Head of Adults,Third Party Payments,470101,Purchase of Care,03-Dec-2014,2829761-2199495,"1,958.16",A CHARLES THOMAS (CARE) LTD.
Children and Adult Services,Head of Adults,Third Party Payments,470101,Purchase of Care,03-Dec-2014,2829761-2199496,"2,009.92",A CHARLES THOMAS (CARE) LTD.
Children and Adult Services,Head of Adults,Third Party Payments,470101,Purchase of Care,03-Dec-2014,2829761-2199497,"2,009.92",A CHARLES THOMAS (CARE) LTD.
Children and Adult Services,Head of Adults,Third Party Payments,470101,Purchase of Care,03-Dec-2014,2829761-2199498,"2,009.92",A CHARLES THOMAS (CARE) LTD.
Children and Adult Services,Head of Adults,Third Party Payments,470101,Purchase of Care,03-Dec-2014,2829761-2199499,"2,009.92",A CHARLES THOMAS (CARE) LTD.
Children and Adult Services,Head of Adults,Third Party Payments,474101,Purchase of Care,03-Dec-2014,2829761-2199500,"2,101.24",A CHARLES THOMAS (CARE) LTD.
Children and Adult Services,Head of Adults,Third Party Payments,474101,Purchase of Care,03-Dec-2014,2829761-2199502,"2,101.24",A CHARLES THOMAS (CARE) LTD.
Children and Adult Services,Head of Adults,Third Party Payments,474101,Purchase of Care,03-Dec-2014,2829761-2199504,"2,101.24",A CHARLES THOMAS (CARE) LTD.
Children and Adult Services,Head of Adults,Third Party Payments,474101,Purchase of Care,03-Dec-2014,2829761-2199506,"2,101.24",A CHARLES THOMAS (CARE) LTD.
Children and Adult Services,Head of Adults,Third Party Payments,470101,Purchase of Care,03-Dec-2014,2829761-2199508,"2,009.92",A CHARLES THOMAS (CARE) LTD.
Children and Adult Services,Head of Adults,Third Party Payments,470101,Purchase of Care,03-Dec-2014,2829761-2199509,"2,009.92",A CHARLES THOMAS (CARE) LTD.
Children and Adult Services,Head of Adults,Third Party Payments,470101,Purchase of Care,03-Dec-2014,2829761-2199510,"2,009.92",A CHARLES THOMAS (CARE) LTD.
Children and Adult Services,Head of Adults,Third Party Payments,470101,Purchase of Care,03-Dec-2014,2829761-2199511,"2,009.92",A CHARLES THOMAS (CARE) LTD.
Children and Adult Services,Head of Adults,Third Party Payments,470101,Purchase of Care,03-Dec-2014,2829761-2199514,"2,009.92",A CHARLES THOMAS (CARE) LTD.
Children and Adult Services,Head of Adults,Third Party Payments,470101,Purchase of Care,03-Dec-2014,2829761-2199515,"2,009.92",A CHARLES THOMAS (CARE) LTD.
Children and Adult Services,Head of Adults,Third Party Payments,470101,Purchase of Care,03-Dec-2014,2829761-2199516,"2,009.92",A CHARLES THOMAS (CARE) LTD.
Children and Adult Services,Head of Adults,Third Party Payments,474101,Purchase of Care,03-Dec-2014,2829761-2199519,"2,101.24",A CHARLES THOMAS (CARE) LTD.
Children and Adult Services,Head of Adults,Third Party Payments,474101,Purchase of Care,03-Dec-2014,2829761-2199521,"2,101.24",A CHARLES THOMAS (CARE) LTD.
Children and Adult Services,Head of Adults,Third Party Payments,470101,Purchase of Care,03-Dec-2014,2829761-2199524,"2,009.92",A CHARLES THOMAS (CARE) LTD.
Children and Adult Services,Head of Adults,Third Party Payments,474101,Purchase of Care,03-Dec-2014,2829762-2201120,"3,010.00",ABBEYMOOR CLINIC.
Children and Adult Services,Head of Adults,Third Party Payments,474101,Purchase of Care,03-Dec-2014,2829762-2201121,"2,303.28",ABBEYMOOR CLINIC.
Children and Adult Services,Head of Adults,Third Party Payments,471101,Purchase of Care,03-Dec-2014,2829763-2202260,"2,003.56",ABBEYVALE.
Children and Adult Services,Head of Adults,Third Party Payments,471101,Purchase of Care,03-Dec-2014,2829763-2202261,"2,003.56",ABBEYVALE.
Children and Adult Services,Head of Adults,Third Party Payments,470101,Purchase of Care,03-Dec-2014,2829763-2202262,"1,932.28",ABBEYVALE.
Children and Adult Services,Head of Adults,Third Party Payments,470101,Purchase of Care,03-Dec-2014,2829763-2202263,"1,932.28",ABBEYVALE.
Children and Adult Services,Head of Adults,Third Party Payments,471101,Purchase of Care,03-Dec-2014,2829763-2202264,"2,003.56",ABBEYVALE.
Children and Adult Services,Head of Adults,Third Party Payments,470101,Purchase of Care,03-Dec-2014,2829763-2202266,"1,932.28",ABBEYVALE.
Children and Adult Services,Head of Adults,Third Party Payments,470101,Purchase of Care,03-Dec-2014,2829763-2202267,"2,415.35",ABBEYVALE.
Children and Adult Services,Head of Adults,Third Party Payments,471101,Purchase of Care,03-Dec-2014,2829763-2202268,"1,001.76",ABBEYVALE.
Children and Adult Services,Head of Adults,Third Party Payments,471101,Purchase of Care,03-Dec-2014,2829763-2202269,"2,003.56",ABBEYVALE.
Children and Adult Services,Head of Adults,Third Party Payments,470101,Purchase of Care,03-Dec-2014,2829763-2202270,"1,932.28",ABBEYVALE.
Children and Adult Services,Head of Adults,Third Party Payments,471101,Purchase of Care,03-Dec-2014,2829763-2202271,"2,003.56",ABBEYVALE.
Children and Adult Services,Head of Adults,Third Party Payments,470101,Purchase of Care,03-Dec-2014,2829763-2202272,"1,932.28",ABBEYVALE.
Children and Adult Services,Head of Adults,Third Party Payments,471101,Purchase of Care,03-Dec-2014,2829763-2202273,"2,003.56",ABBEYVALE.
Children and Adult Services,Head of Adults,Third Party Payments,470101,Purchase of Care,03-Dec-2014,2829763-2202279,"1,932.28",ABBEYVALE.
Children and Adult Services,Head of Adults,Third Party Payments,470101,Purchase of Care,03-Dec-2014,2829763-2202281,"1,390.00",ABBEYVALE.
Children and Adult Services,Head of Adults,Third Party Payments,470101,Purchase of Care,03-Dec-2014,2829763-2202282,"1,932.28",ABBEYVALE.
Children and Adult Services,Head of Adults,Third Party Payments,470101,Purchase of Care,03-Dec-2014,2829763-2202283,"2,500.00",ABBEYVALE.
Children and Adult Services,Head of Adults,Third Party Payments,470101,Purchase of Care,03-Dec-2014,2829763-2202284,"1,932.28",ABBEYVALE.
Children and Adult Services,Head of Adults,Third Party Payments,470101,Purchase of Care,03-Dec-2014,2829763-2202285,"1,932.28",ABBEYVALE.
Children and Adult Services,Head of Adults,Third Party Payments,471101,Purchase of Care,03-Dec-2014,2829763-2202286,"2,003.56",ABBEYVALE.
Children and Adult Services,Head of Adults,Third Party Payments,470101,Purchase of Care,03-Dec-2014,2829763-2202287,"2,500.00",ABBEYVALE.
Children and Adult Services,Head of Adults,Third Party Payments,471101,Purchase of Care,03-Dec-2014,2829763-2202288,"2,003.56",ABBEYVALE.
Children and Adult Services,Head of Adults,Third Party Payments,470101,Purchase of Care,03-Dec-2014,2829763-2202289,"1,932.28",ABBEYVALE.
Children and Adult Services,Head of Adults,Third Party Payments,470101,Purchase of Care,03-Dec-2014,2829763-2202290,"2,500.00",ABBEYVALE.
Children and Adult Services,Head of Adults,Third Party Payments,470101,Purchase of Care,03-Dec-2014,2829763-2202291,"1,932.28",ABBEYVALE.
Children and Adult Services,Head of Adults,Third Party Payments,470101,Purchase of Care,03-Dec-2014,2829763-2202292,"1,932.28",ABBEYVALE.
Children and Adult Services,Head of Adults,Third Party Payments,471101,Purchase of Care,03-Dec-2014,2829763-2202293,"2,003.56",ABBEYVALE.
Children and Adult Services,Head of Adults,Third Party Payments,470101,Purchase of Care,03-Dec-2014,2829763-2202294,"1,992.28",ABBEYVALE.
Children and Adult Services,Head of Adults,Third Party Payments,471101,Purchase of Care,03-Dec-2014,2829763-2202295,"2,003.56",ABBEYVALE.
Children and Adult Services,Head of Adults,Third Party Payments,471101,Purchase of Care,03-Dec-2014,2829763-2202296,"2,539.28",ABBEYVALE.
Children and Adult Services,Head of Adults,Third Party Payments,471101,Purchase of Care,03-Dec-2014,2829763-2202297,"2,003.56",ABBEYVALE.
Children and Adult Services,Head of Adults,Third Party Payments,470101,Purchase of Care,03-Dec-2014,2829763-2202298,"1,932.28",ABBEYVALE.
Children and Adult Services,Head of Adults,Third Party Payments,471101,Purchase of Care,03-Dec-2014,2829763-2202299,"2,003.56",ABBEYVALE.
Children and Adult Services,Head of Adults,Third Party Payments,470101,Purchase of Care,03-Dec-2014,2829763-2202300,"1,932.28",ABBEYVALE.
Children and Adult Services,Head of Adults,Third Party Payments,471101,Purchase of Care,03-Dec-2014,2829763-2202301,"2,003.56",ABBEYVALE.
Children and Adult Services,Head of Adults,Third Party Payments,470101,Purchase of Care,03-Dec-2014,2829763-2202302,"1,932.28",ABBEYVALE.
Children and Adult Services,Head of Adults,Third Party Payments,470101,Purchase of Care,03-Dec-2014,2829763-2202303,"2,500.00",ABBEYVALE.
Children and Adult Services,Head of Adults,Third Party Payments,470101,Purchase of Care,03-Dec-2014,2829763-2202304,"1,932.28",ABBEYVALE.
Children and Adult Services,Head of Adults,Third Party Payments,471101,Purchase of Care,03-Dec-2014,2829763-2203493,"1,645.77",ABBEYVALE.
Children and Adult Services,Head of Adults,Third Party Payments,470101,Purchase of Care,03-Dec-2014,2829763-2203555,690.10,ABBEYVALE.
Children and Adult Services,Head of Adults,Third Party Payments,470101,Purchase of Care,03-Dec-2014,2829763-2203557,535.71,ABBEYVALE.
Children and Adult Services,Head of Adults,Third Party Payments,471101,Purchase of Care,03-Dec-2014,2829764-2199807,"2,003.56",ABBOTTS COURT CARE HOME.
Children and Adult Services,Head of Adults,Third Party Payments,470101,Purchase of Care,03-Dec-2014,2829764-2199808,"1,932.28",ABBOTTS COURT CARE HOME.
Children and Adult Services,Head of Adults,Third Party Payments,470101,Purchase of Care,03-Dec-2014,2829764-2199809,"1,932.28",ABBOTTS COURT CARE HOME.
Children and Adult Services,Head of Adults,Third Party Payments,470101,Purchase of Care,03-Dec-2014,2829764-2199810,"1,932.28",ABBOTTS COURT CARE HOME.
Children and Adult Services,Head of Adults,Third Party Payments,470101,Purchase of Care,03-Dec-2014,2829764-2199811,"1,311.19",ABBOTTS COURT CARE HOME.
Children and Adult Services,Head of Adults,Third Party Payments,470101,Purchase of Care,03-Dec-2014,2829764-2199812,"1,932.28",ABBOTTS COURT CARE HOME.
Children and Adult Services,Head of Adults,Third Party Payments,470101,Purchase of Care,03-Dec-2014,2829764-2199813,"1,932.28",ABBOTTS COURT CARE HOME.
Children and Adult Services,Head of Adults,Third Party Payments,470101,Purchase of Care,03-Dec-2014,2829764-2199814,"5,451.79",ABBOTTS COURT CARE HOME.
Children and Adult Services,Head of Adults,Third Party Payments,470101,Purchase of Care,03-Dec-2014,2829764-2199816,"1,932.28",ABBOTTS COURT CARE HOME.
Children and Adult Services,Head of Adults,Third Party Payments,471101,Purchase of Care,03-Dec-2014,2829764-2199817,"2,003.56",ABBOTTS COURT CARE HOME.
Children and Adult Services,Head of Adults,Third Party Payments,470101,Purchase of Care,03-Dec-2014,2829764-2199818,"1,932.28",ABBOTTS COURT CARE HOME.
Children and Adult Services,Head of Adults,Third Party Payments,470101,Purchase of Care,03-Dec-2014,2829764-2199819,"1,932.28",ABBOTTS COURT CARE HOME.
Children and Adult Services,Head of Adults,Third Party Payments,471101,Purchase of Care,03-Dec-2014,2829764-2199820,"2,003.56",ABBOTTS COURT CARE HOME.
Children and Adult Services,Head of Adults,Third Party Payments,471101,Purchase of Care,03-Dec-2014,2829764-2199821,"2,003.56",ABBOTTS COURT CARE HOME.
Children and Adult Services,Head of Adults,Third Party Payments,470101,Purchase of Care,03-Dec-2014,2829764-2199822,"1,932.28",ABBOTTS COURT CARE HOME.
Children and Adult Services,Head of Adults,Third Party Payments,471101,Purchase of Care,03-Dec-2014,2829764-2199823,"2,003.56",ABBOTTS COURT CARE HOME.
Children and Adult Services,Head of Adults,Third Party Payments,470101,Purchase of Care,03-Dec-2014,2829764-2199824,"1,932.28",ABBOTTS COURT CARE HOME.
Children and Adult Services,Head of Adults,Third Party Payments,470101,Purchase of Care,03-Dec-2014,2829764-2199825,"1,932.28",ABBOTTS COURT CARE HOME.
Children and Adult Services,Head of Adults,Third Party Payments,471101,Purchase of Care,03-Dec-2014,2829764-2199826,"2,003.56",ABBOTTS COURT CARE HOME.
Children and Adult Services,Head of Adults,Third Party Payments,471101,Purchase of Care,03-Dec-2014,2829764-2199827,"2,003.56",ABBOTTS COURT CARE HOME.
Children and Adult Services,Head of Adults,Third Party Payments,470101,Purchase of Care,03-Dec-2014,2829764-2199828,"1,932.28",ABBOTTS COURT CARE HOME.
Children and Adult Services,Head of Adults,Third Party Payments,471101,Purchase of Care,03-Dec-2014,2829764-2199829,"2,003.56",ABBOTTS COURT CARE HOME.
Children and Adult Services,Head of Adults,Third Party Payments,471101,Purchase of Care,03-Dec-2014,2829764-2199830,"2,003.56",ABBOTTS COURT CARE HOME.
Children and Adult Services,Head of Adults,Third Party Payments,471101,Purchase of Care,03-Dec-2014,2829764-2199831,"2,003.56",ABBOTTS COURT CARE HOME.
Children and Adult Services,Head of Adults,Third Party Payments,470101,Purchase of Care,03-Dec-2014,2829764-2199832,"1,932.28",ABBOTTS COURT CARE HOME.
Children and Adult Services,Head of Adults,Third Party Payments,471101,Purchase of Care,03-Dec-2014,2829764-2199833,"2,003.56",ABBOTTS COURT CARE HOME.
Children and Adult Services,Head of Adults,Third Party Payments,470101,Purchase of Care,03-Dec-2014,2829764-2199834,"1,932.28",ABBOTTS COURT CARE HOME.
Children and Adult Services,Head of Adults,Third Party Payments,470101,Purchase of Care,03-Dec-2014,2829764-2203149,"1,311.19",ABBOTTS COURT CARE HOME.
Children and Adult Services,Head of Adults,Third Party Payments,470101,Purchase of Care,03-Dec-2014,2829765-2202950,"1,864.56",ACOMB COURT.
Children and Adult Services,Head of Adults,Third Party Payments,470101,Purchase of Care,03-Dec-2014,2829766-2200123,"1,828.76",ACORN GRANGE NURSING HOME.
Children and Adult Services,Head of Adults,Third Party Payments,471101,Purchase of Care,03-Dec-2014,2829766-2200124,"1,901.08",ACORN GRANGE NURSING HOME.
Children and Adult Services,Head of Adults,Third Party Payments,471101,Purchase of Care,03-Dec-2014,2829766-2200125,"1,901.08",ACORN GRANGE NURSING HOME.
Children and Adult Services,Head of Adults,Third Party Payments,470101,Purchase of Care,03-Dec-2014,2829766-2200126,"1,828.76",ACORN GRANGE NURSING HOME.
Children and Adult Services,Head of Adults,Third Party Payments,471101,Purchase of Care,03-Dec-2014,2829766-2200127,"1,901.08",ACORN GRANGE NURSING HOME.
Children and Adult Services,Head of Adults,Third Party Payments,471101,Purchase of Care,03-Dec-2014,2829766-2200129,"1,901.08",ACORN GRANGE NURSING HOME.
Children and Adult Services,Head of Adults,Third Party Payments,471101,Purchase of Care,03-Dec-2014,2829766-2200130,"1,901.08",ACORN GRANGE NURSING HOME.
Children and Adult Services,Head of Adults,Third Party Payments,471101,Purchase of Care,03-Dec-2014,2829766-2200131,"1,901.08",ACORN GRANGE NURSING HOME.
Children and Adult Services,Head of Adults,Third Party Payments,470101,Purchase of Care,03-Dec-2014,2829766-2200132,"1,828.76",ACORN GRANGE NURSING HOME.
Children and Adult Services,Head of Adults,Third Party Payments,470101,Purchase of Care,03-Dec-2014,2829766-2200133,"1,828.76",ACORN GRANGE NURSING HOME.
Children and Adult Services,Head of Adults,Third Party Payments,471101,Purchase of Care,03-Dec-2014,2829766-2200134,"1,901.08",ACORN GRANGE NURSING HOME.
Children and Adult Services,Head of Adults,Third Party Payments,471101,Purchase of Care,03-Dec-2014,2829766-2200135,"1,901.08",ACORN GRANGE NURSING HOME.
Children and Adult Services,Head of Adults,Third Party Payments,471101,Purchase of Care,03-Dec-2014,2829766-2200136,"1,901.08",ACORN GRANGE NURSING HOME.
Children and Adult Services,Head of Adults,Third Party Payments,471101,Purchase of Care,03-Dec-2014,2829766-2200137,"1,901.08",ACORN GRANGE NURSING HOME.
Children and Adult Services,Head of Adults,Third Party Payments,471101,Purchase of Care,03-Dec-2014,2829766-2200138,"1,901.08",ACORN GRANGE NURSING HOME.
Children and Adult Services,Head of Adults,Third Party Payments,470101,Purchase of Care,03-Dec-2014,2829766-2200139,"1,828.76",ACORN GRANGE NURSING HOME.
Children and Adult Services,Head of Adults,Third Party Payments,470101,Purchase of Care,03-Dec-2014,2829766-2200140,"1,828.76",ACORN GRANGE NURSING HOME.
Children and Adult Services,Head of Adults,Third Party Payments,470101,Purchase of Care,03-Dec-2014,2829766-2200141,"1,828.76",ACORN GRANGE NURSING HOME.
Children and Adult Services,Head of Adults,Third Party Payments,470101,Purchase of Care,03-Dec-2014,2829766-2200142,"1,828.76",ACORN GRANGE NURSING HOME.
Children and Adult Services,Head of Adults,Third Party Payments,470101,Purchase of Care,03-Dec-2014,2829766-2200143,"1,828.76",ACORN GRANGE NURSING HOME.
Children and Adult Services,Head of Adults,Third Party Payments,470101,Purchase of Care,03-Dec-2014,2829766-2200144,"1,828.76",ACORN GRANGE NURSING HOME.
Children and Adult Services,Head of Adults,Third Party Payments,470101,Purchase of Care,03-Dec-2014,2829766-2200145,"1,828.76",ACORN GRANGE NURSING HOME.
Children and Adult Services,Head of Adults,Third Party Payments,471101,Purchase of Care,03-Dec-2014,2829766-2200146,"1,901.08",ACORN GRANGE NURSING HOME.
Children and Adult Services,Head of Adults,Third Party Payments,471101,Purchase of Care,03-Dec-2014,2829766-2200147,"1,901.08",ACORN GRANGE NURSING HOME.
Children and Adult Services,Head of Adults,Third Party Payments,470101,Purchase of Care,03-Dec-2014,2829766-2200148,"1,828.76",ACORN GRANGE NURSING HOME.
Children and Adult Services,Head of Adults,Third Party Payments,470101,Purchase of Care,03-Dec-2014,2829766-2200149,"1,828.76",ACORN GRANGE NURSING HOME.
Children and Adult Services,Head of Adults,Third Party Payments,471101,Purchase of Care,03-Dec-2014,2829766-2200150,"1,901.08",ACORN GRANGE NURSING HOME.
Children and Adult Services,Head of Adults,Third Party Payments,471101,Purchase of Care,03-Dec-2014,2829766-2200151,"1,901.08",ACORN GRANGE NURSING HOME.
Children and Adult Services,Head of Adults,Third Party Payments,470101,Purchase of Care,03-Dec-2014,2829766-2200152,"1,828.76",ACORN GRANGE NURSING HOME.
Children and Adult Services,Head of Adults,Third Party Payments,471101,Purchase of Care,03-Dec-2014,2829766-2200153,"1,901.08",ACORN GRANGE NURSING HOME.
Children and Adult Services,Head of Adults,Third Party Payments,470101,Purchase of Care,03-Dec-2014,2829766-2200154,"1,828.76",ACORN GRANGE NURSING HOME.
Children and Adult Services,Head of Adults,Third Party Payments,471101,Purchase of Care,03-Dec-2014,2829767-2201349,"1,852.00",ADMIRAL COURT.
Children and Adult Services,Head of Adults,Third Party Payments,474101,Purchase of Care,03-Dec-2014,2829767-2201350,"1,852.00",ADMIRAL COURT.
Children and Adult Services,Head of Adults,Third Party Payments,474101,Purchase of Care,03-Dec-2014,2829767-2201351,"1,852.00",ADMIRAL COURT.
Children and Adult Services,Head of Adults,Third Party Payments,474101,Purchase of Care,03-Dec-2014,2829768-2201134,"1,816.40",ALBANY CARE HOME.
Children and Adult Services,Head of Adults,Third Party Payments,470101,Purchase of Care,03-Dec-2014,2829770-2203385,"1,342.36",ALLIANCE CARE.
Children and Adult Services,Head of Adults,Third Party Payments,470101,Purchase of Care,03-Dec-2014,2829770-2203386,"1,076.23",ALLIANCE CARE.
Children and Adult Services,Head of Adults,Third Party Payments,470101,Purchase of Care,03-Dec-2014,2829770-2203388,828.12,ALLIANCE CARE.
Children and Adult Services,Head of Adults,Third Party Payments,470101,Purchase of Care,03-Dec-2014,2829770-2203389,621.09,ALLIANCE CARE.
Children and Adult Services,Head of Adults,Third Party Payments,470101,Purchase of Care,03-Dec-2014,2829770-2203390,855.72,ALLIANCE CARE.
Children and Adult Services,Head of Adults,Third Party Payments,470101,Purchase of Care,03-Dec-2014,2829770-2203391,"1,932.28",ALLIANCE CARE.
Children and Adult Services,Head of Adults,Third Party Payments,470101,Purchase of Care,03-Dec-2014,2829770-2203392,"1,932.28",ALLIANCE CARE.
Children and Adult Services,Head of Adults,Third Party Payments,470101,Purchase of Care,03-Dec-2014,2829770-2203393,"1,305.52",ALLIANCE CARE.
Children and Adult Services,Head of Adults,Third Party Payments,470101,Purchase of Care,03-Dec-2014,2829770-2203394,"1,932.28",ALLIANCE CARE.
Children and Adult Services,Head of Adults,Third Party Payments,470101,Purchase of Care,03-Dec-2014,2829770-2203395,"1,436.48",ALLIANCE CARE.
Children and Adult Services,Head of Adults,Third Party Payments,470101,Purchase of Care,03-Dec-2014,2829770-2203396,"1,932.28",ALLIANCE CARE.
Children and Adult Services,Head of Adults,Third Party Payments,470101,Purchase of Care,03-Dec-2014,2829770-2203397,"1,400.52",ALLIANCE CARE.
Children and Adult Services,Head of Adults,Third Party Payments,470101,Purchase of Care,03-Dec-2014,2829770-2203398,"1,436.48",ALLIANCE CARE.
Children and Adult Services,Head of Adults,Third Party Payments,470101,Purchase of Care,03-Dec-2014,2829770-2203399,"1,162.72",ALLIANCE CARE.
Children and Adult Services,Head of Adults,Third Party Payments,470101,Purchase of Care,03-Dec-2014,2829770-2203400,"1,932.28",ALLIANCE CARE.
Children and Adult Services,Head of Adults,Third Party Payments,470101,Purchase of Care,03-Dec-2014,2829770-2203401,"2,052.88",ALLIANCE CARE.
Children and Adult Services,Head of Adults,Third Party Payments,470101,Purchase of Care,03-Dec-2014,2829770-2203402,"1,436.48",ALLIANCE CARE.
Children and Adult Services,Head of Adults,Third Party Payments,474101,Purchase of Care,03-Dec-2014,2829770-2203403,718.63,ALLIANCE CARE.
Children and Adult Services,Head of Adults,Third Party Payments,474101,Purchase of Care,03-Dec-2014,2829770-2203405,"1,543.80",ALLIANCE CARE.
Children and Adult Services,Head of Adults,Third Party Payments,474101,Purchase of Care,03-Dec-2014,2829770-2203408,"2,881.09",ALLIANCE CARE.
Children and Adult Services,Head of Adults,Third Party Payments,474101,Purchase of Care,03-Dec-2014,2829770-2203410,"1,011.80",ALLIANCE CARE.
Children and Adult Services,Head of Adults,Third Party Payments,474101,Purchase of Care,03-Dec-2014,2829770-2203412,"1,527.80",ALLIANCE CARE.
Children and Adult Services,Head of Adults,Third Party Payments,474101,Purchase of Care,03-Dec-2014,2829770-2203414,"1,376.00",ALLIANCE CARE.
Children and Adult Services,Head of Adults,Third Party Payments,474101,Purchase of Care,03-Dec-2014,2829770-2203416,"1,605.36",ALLIANCE CARE.
Children and Adult Services,Head of Adults,Third Party Payments,470101,Purchase of Care,03-Dec-2014,2829770-2203418,"2,166.88",ALLIANCE CARE.
Children and Adult Services,Head of Adults,Third Party Payments,470101,Purchase of Care,03-Dec-2014,2829770-2203419,"2,166.88",ALLIANCE CARE.
Children and Adult Services,Head of Adults,Third Party Payments,470101,Purchase of Care,03-Dec-2014,2829770-2203420,"1,671.08",ALLIANCE CARE.
Children and Adult Services,Head of Adults,Third Party Payments,471101,Purchase of Care,03-Dec-2014,2829770-2203421,"2,003.56",ALLIANCE CARE.
Children and Adult Services,Head of Adults,Third Party Payments,471101,Purchase of Care,03-Dec-2014,2829770-2203422,"2,003.56",ALLIANCE CARE.
Children and Adult Services,Head of Adults,Third Party Payments,471101,Purchase of Care,03-Dec-2014,2829770-2203423,"2,003.56",ALLIANCE CARE.
Children and Adult Services,Head of Adults,Third Party Payments,471101,Purchase of Care,03-Dec-2014,2829770-2203425,"2,003.56",ALLIANCE CARE.
Children and Adult Services,Head of Adults,Third Party Payments,471101,Purchase of Care,03-Dec-2014,2829770-2203426,"1,507.76",ALLIANCE CARE.
Children and Adult Services,Head of Adults,Third Party Payments,471101,Purchase of Care,03-Dec-2014,2829770-2203427,"1,417.60",ALLIANCE CARE.
Children and Adult Services,Head of Adults,Third Party Payments,471101,Purchase of Care,03-Dec-2014,2829770-2203428,"2,003.56",ALLIANCE CARE.
Children and Adult Services,Head of Adults,Third Party Payments,471101,Purchase of Care,03-Dec-2014,2829770-2203429,"1,211.40",ALLIANCE CARE.
Children and Adult Services,Head of Adults,Third Party Payments,471101,Purchase of Care,03-Dec-2014,2829770-2203430,"1,507.76",ALLIANCE CARE.
Children and Adult Services,Head of Adults,Third Party Payments,471101,Purchase of Care,03-Dec-2014,2829770-2203431,"1,429.08",ALLIANCE CARE.
Children and Adult Services,Head of Adults,Third Party Payments,471101,Purchase of Care,03-Dec-2014,2829770-2203432,"2,003.56",ALLIANCE CARE.
Children and Adult Services,Head of Adults,Third Party Payments,471101,Purchase of Care,03-Dec-2014,2829770-2203433,"1,328.00",ALLIANCE CARE.
Children and Adult Services,Head of Adults,Third Party Payments,471101,Purchase of Care,03-Dec-2014,2829770-2203434,"1,036.08",ALLIANCE CARE.
Children and Adult Services,Head of Adults,Third Party Payments,471101,Purchase of Care,03-Dec-2014,2829770-2203435,"2,003.56",ALLIANCE CARE.
Children and Adult Services,Head of Adults,Third Party Payments,470101,Purchase of Care,03-Dec-2014,2829771-2199552,"1,601.76",ALLIANCE CARE.
Children and Adult Services,Head of Adults,Third Party Payments,470101,Purchase of Care,03-Dec-2014,2829771-2199553,"1,998.96",ALLIANCE CARE.
Children and Adult Services,Head of Adults,Third Party Payments,474101,Purchase of Care,03-Dec-2014,2829771-2199554,"1,162.15",ALLIANCE CARE.
Children and Adult Services,Head of Adults,Third Party Payments,470101,Purchase of Care,03-Dec-2014,2829771-2199556,"1,998.96",ALLIANCE CARE.
Children and Adult Services,Head of Adults,Third Party Payments,474101,Purchase of Care,03-Dec-2014,2829771-2199557,"2,033.76",ALLIANCE CARE.
Children and Adult Services,Head of Adults,Third Party Payments,474101,Purchase of Care,03-Dec-2014,2829771-2199559,"2,033.76",ALLIANCE CARE.
Children and Adult Services,Head of Adults,Third Party Payments,470101,Purchase of Care,03-Dec-2014,2829771-2199563,"1,679.56",ALLIANCE CARE.
Children and Adult Services,Head of Adults,Third Party Payments,470101,Purchase of Care,03-Dec-2014,2829771-2199566,"1,153.64",ALLIANCE CARE.
Children and Adult Services,Head of Adults,Third Party Payments,470101,Purchase of Care,03-Dec-2014,2829771-2199567,899.04,ALLIANCE CARE.
Children and Adult Services,Head of Adults,Third Party Payments,470101,Purchase of Care,03-Dec-2014,2829772-2202940,"1,661.12",AMELIA HOUSE.
Children and Adult Services,Head of Adults,Third Party Payments,471101,Purchase of Care,03-Dec-2014,2829773-2203007,"2,132.08",AMERIND GROVE NURSING HOME.
Children and Adult Services,Head of Adults,Third Party Payments,470101,Purchase of Care,03-Dec-2014,2829774-2200230,781.71,ANCHOR HOUSING ASSOCIATION.
Children and Adult Services,Head of Adults,Third Party Payments,470101,Purchase of Care,03-Dec-2014,2829774-2200231,912.00,ANCHOR HOUSING ASSOCIATION.
Children and Adult Services,Head of Adults,Third Party Payments,474101,Purchase of Care,03-Dec-2014,2829775-2200845,"1,560.00",ANN CHARLTON LODGE.
Children and Adult Services,Head of Adults,Third Party Payments,470101,Purchase of Care,03-Dec-2014,2829776-2201365,"1,601.16",ARK HOUSE REHAB LTD.
Children and Adult Services,Head of Adults,Third Party Payments,470101,Purchase of Care,03-Dec-2014,2829777-2201775,"1,738.28",ARMSTRONG HOUSE.
Children and Adult Services,Head of Adults,Third Party Payments,474101,Purchase of Care,03-Dec-2014,2829778-2199711,"1,140.84",ASCOT CARE NORTHEAST LTD.
Children and Adult Services,Head of Adults,Third Party Payments,474101,Purchase of Care,03-Dec-2014,2829778-2199713,"1,920.08",ASCOT CARE NORTHEAST LTD.
Children and Adult Services,Head of Adults,Third Party Payments,470101,Purchase of Care,03-Dec-2014,2829778-2199715,"1,332.96",ASCOT CARE NORTHEAST LTD.
Children and Adult Services,Head of Adults,Third Party Payments,470101,Purchase of Care,03-Dec-2014,2829778-2199716,"1,276.52",ASCOT CARE NORTHEAST LTD.
Children and Adult Services,Head of Adults,Third Party Payments,471101,Purchase of Care,03-Dec-2014,2829778-2199718,951.12,ASCOT CARE NORTHEAST LTD.
Children and Adult Services,Head of Adults,Third Party Payments,470101,Purchase of Care,03-Dec-2014,2829778-2199719,"1,332.96",ASCOT CARE NORTHEAST LTD.
Children and Adult Services,Head of Adults,Third Party Payments,470101,Purchase of Care,03-Dec-2014,2829778-2199720,"1,220.48",ASCOT CARE NORTHEAST LTD.
Children and Adult Services,Head of Adults,Third Party Payments,470101,Purchase of Care,03-Dec-2014,2829778-2199721,"1,348.99",ASCOT CARE NORTHEAST LTD.
Children and Adult Services,Head of Adults,Third Party Payments,470101,Purchase of Care,03-Dec-2014,2829778-2199722,"1,828.76",ASCOT CARE NORTHEAST LTD.
Children and Adult Services,Head of Adults,Third Party Payments,470101,Purchase of Care,03-Dec-2014,2829778-2199723,"1,550.08",ASCOT CARE NORTHEAST LTD.
Children and Adult Services,Head of Adults,Third Party Payments,470101,Purchase of Care,03-Dec-2014,2829778-2199724,"1,182.00",ASCOT CARE NORTHEAST LTD.
Children and Adult Services,Head of Adults,Third Party Payments,470101,Purchase of Care,03-Dec-2014,2829778-2199725,"1,257.68",ASCOT CARE NORTHEAST LTD.
Children and Adult Services,Head of Adults,Third Party Payments,470101,Purchase of Care,03-Dec-2014,2829778-2199726,"1,057.32",ASCOT CARE NORTHEAST LTD.
Children and Adult Services,Head of Adults,Third Party Payments,474101,Purchase of Care,03-Dec-2014,2829778-2199727,"1,920.08",ASCOT CARE NORTHEAST LTD.
Children and Adult Services,Head of Adults,Third Party Payments,470101,Purchase of Care,03-Dec-2014,2829778-2199729,"1,306.25",ASCOT CARE NORTHEAST LTD.
Children and Adult Services,Head of Adults,Third Party Payments,471101,Purchase of Care,03-Dec-2014,2829778-2199730,"1,405.28",ASCOT CARE NORTHEAST LTD.
Children and Adult Services,Head of Adults,Third Party Payments,470101,Purchase of Care,03-Dec-2014,2829778-2199731,"1,828.76",ASCOT CARE NORTHEAST LTD.
Children and Adult Services,Head of Adults,Third Party Payments,470101,Purchase of Care,03-Dec-2014,2829778-2199732,"1,504.55",ASCOT CARE NORTHEAST LTD.
Children and Adult Services,Head of Adults,Third Party Payments,474101,Purchase of Care,03-Dec-2014,2829778-2199733,"1,382.28",ASCOT CARE NORTHEAST LTD.
Children and Adult Services,Head of Adults,Third Party Payments,474101,Purchase of Care,03-Dec-2014,2829778-2199735,"1,124.80",ASCOT CARE NORTHEAST LTD.
Children and Adult Services,Head of Adults,Third Party Payments,474101,Purchase of Care,03-Dec-2014,2829778-2199737,"1,327.76",ASCOT CARE NORTHEAST LTD.
Children and Adult Services,Head of Adults,Third Party Payments,474101,Purchase of Care,03-Dec-2014,2829778-2199740,"1,238.56",ASCOT CARE NORTHEAST LTD.
Children and Adult Services,Head of Adults,Third Party Payments,471101,Purchase of Care,03-Dec-2014,2829778-2199742,"1,365.80",ASCOT CARE NORTHEAST LTD.
Children and Adult Services,Head of Adults,Third Party Payments,474101,Purchase of Care,03-Dec-2014,2829778-2199743,"1,313.84",ASCOT CARE NORTHEAST LTD.
Children and Adult Services,Head of Adults,Third Party Payments,470101,Purchase of Care,03-Dec-2014,2829778-2199745,"1,828.76",ASCOT CARE NORTHEAST LTD.
Children and Adult Services,Head of Adults,Third Party Payments,470101,Purchase of Care,03-Dec-2014,2829779-2200457,"1,824.00",ASCOT CARE T/A THE GARDENS CARE HOME.
Children and Adult Services,Head of Adults,Third Party Payments,470101,Purchase of Care,03-Dec-2014,2829780-2200453,950.00,ASHLEIGH HOUSE CARE HOME.
Children and Adult Services,Head of Adults,Third Party Payments,470101,Purchase of Care,03-Dec-2014,2829780-2200454,950.00,ASHLEIGH HOUSE CARE HOME.
Children and Adult Services,Head of Adults,Third Party Payments,470101,Purchase of Care,03-Dec-2014,2829780-2200455,"1,102.00",ASHLEIGH HOUSE CARE HOME.
Children and Adult Services,Head of Adults,Third Party Payments,470101,Purchase of Care,03-Dec-2014,2829780-2200456,"1,660.20",ASHLEIGH HOUSE CARE HOME.
Children and Adult Services,Head of Adults,Third Party Payments,470101,Purchase of Care,03-Dec-2014,2829781-2202105,"4,480.00",AUTISM CARE UK (4) LTD.
Children and Adult Services,Head of Adults,Third Party Payments,470101,Purchase of Care,03-Dec-2014,2829781-2202107,568.96,AUTISM CARE UK (4) LTD.
Children and Adult Services,Head of Adults,Third Party Payments,470101,Purchase of Care,03-Dec-2014,2829781-2202108,"2,907.80",AUTISM CARE UK (4) LTD.
Children and Adult Services,Head of Adults,Third Party Payments,470101,Purchase of Care,03-Dec-2014,2829782-2202732,"9,625.52",AUTISM NORTH.
Children and Adult Services,Head of Adults,Third Party Payments,470101,Purchase of Care,03-Dec-2014,2829782-2202733,"9,318.00",AUTISM NORTH.
Children and Adult Services,Head of Adults,Third Party Payments,470101,Purchase of Care,03-Dec-2014,2829783-2202109,"6,478.68",AUTISM NORTH.
Children and Adult Services,Head of Adults,Third Party Payments,471101,Purchase of Care,03-Dec-2014,2829784-2202375,"1,901.08",AYCLIFFE CARE HOME.
Children and Adult Services,Head of Adults,Third Party Payments,474101,Purchase of Care,03-Dec-2014,2829784-2202376,"1,920.08",AYCLIFFE CARE HOME.
Children and Adult Services,Head of Adults,Third Party Payments,471101,Purchase of Care,03-Dec-2014,2829784-2202378,"1,901.08",AYCLIFFE CARE HOME.
Children and Adult Services,Head of Adults,Third Party Payments,474101,Purchase of Care,03-Dec-2014,2829784-2202379,"1,920.08",AYCLIFFE CARE HOME.
Children and Adult Services,Head of Adults,Third Party Payments,471101,Purchase of Care,03-Dec-2014,2829784-2202381,"1,901.08",AYCLIFFE CARE HOME.
Children and Adult Services,Head of Adults,Third Party Payments,470101,Purchase of Care,03-Dec-2014,2829784-2202382,914.36,AYCLIFFE CARE HOME.
Children and Adult Services,Head of Adults,Third Party Payments,474101,Purchase of Care,03-Dec-2014,2829784-2202384,857.17,AYCLIFFE CARE HOME.
Children and Adult Services,Head of Adults,Third Party Payments,474101,Purchase of Care,03-Dec-2014,2829784-2202389,"1,920.08",AYCLIFFE CARE HOME.
Children and Adult Services,Head of Adults,Third Party Payments,471101,Purchase of Care,03-Dec-2014,2829784-2202391,"1,901.08",AYCLIFFE CARE HOME.
Children and Adult Services,Head of Adults,Third Party Payments,471101,Purchase of Care,03-Dec-2014,2829784-2202392,"1,901.08",AYCLIFFE CARE HOME.
Children and Adult Services,Head of Adults,Third Party Payments,471101,Purchase of Care,03-Dec-2014,2829784-2202393,"1,828.76",AYCLIFFE CARE HOME.
Children and Adult Services,Head of Adults,Third Party Payments,471101,Purchase of Care,03-Dec-2014,2829784-2202394,"1,901.08",AYCLIFFE CARE HOME.
Children and Adult Services,Head of Adults,Third Party Payments,470101,Purchase of Care,03-Dec-2014,2829784-2202395,"1,828.76",AYCLIFFE CARE HOME.
Children and Adult Services,Head of Adults,Third Party Payments,470101,Purchase of Care,03-Dec-2014,2829784-2202396,"1,828.76",AYCLIFFE CARE HOME.
Children and Adult Services,Head of Adults,Third Party Payments,470101,Purchase of Care,03-Dec-2014,2829784-2202397,"1,828.76",AYCLIFFE CARE HOME.
Children and Adult Services,Head of Adults,Third Party Payments,470101,Purchase of Care,03-Dec-2014,2829784-2202398,"1,828.76",AYCLIFFE CARE HOME.
Children and Adult Services,Head of Adults,Third Party Payments,470101,Purchase of Care,03-Dec-2014,2829784-2202399,"1,828.76",AYCLIFFE CARE HOME.
Children and Adult Services,Head of Adults,Third Party Payments,471101,Purchase of Care,03-Dec-2014,2829784-2202400,"1,901.08",AYCLIFFE CARE HOME.
Children and Adult Services,Head of Adults,Third Party Payments,471101,Purchase of Care,03-Dec-2014,2829784-2202401,"1,901.08",AYCLIFFE CARE HOME.
Children and Adult Services,Head of Adults,Third Party Payments,474101,Purchase of Care,03-Dec-2014,2829784-2202402,960.04,AYCLIFFE CARE HOME.
Children and Adult Services,Head of Adults,Third Party Payments,471101,Purchase of Care,03-Dec-2014,2829784-2202404,"1,901.08",AYCLIFFE CARE HOME.
Children and Adult Services,Head of Adults,Third Party Payments,470101,Purchase of Care,03-Dec-2014,2829784-2202405,"1,828.76",AYCLIFFE CARE HOME.
Children and Adult Services,Head of Adults,Third Party Payments,470101,Purchase of Care,03-Dec-2014,2829784-2202406,"1,828.76",AYCLIFFE CARE HOME.
Children and Adult Services,Head of Adults,Third Party Payments,474101,Purchase of Care,03-Dec-2014,2829784-2202407,"1,920.08",AYCLIFFE CARE HOME.
Children and Adult Services,Head of Adults,Third Party Payments,471101,Purchase of Care,03-Dec-2014,2829784-2202409,"1,901.08",AYCLIFFE CARE HOME.
Children and Adult Services,Head of Adults,Third Party Payments,470101,Purchase of Care,03-Dec-2014,2829784-2202410,"1,828.76",AYCLIFFE CARE HOME.
Children and Adult Services,Head of Adults,Third Party Payments,474101,Purchase of Care,03-Dec-2014,2829784-2202411,"1,920.08",AYCLIFFE CARE HOME.
Children and Adult Services,Head of Adults,Third Party Payments,470101,Purchase of Care,03-Dec-2014,2829784-2202413,"1,828.76",AYCLIFFE CARE HOME.
Children and Adult Services,Head of Adults,Third Party Payments,474101,Purchase of Care,03-Dec-2014,2829784-2202414,922.76,AYCLIFFE CARE HOME.
Children and Adult Services,Head of Adults,Third Party Payments,470101,Purchase of Care,03-Dec-2014,2829784-2202416,"1,828.76",AYCLIFFE CARE HOME.
Children and Adult Services,Head of Adults,Third Party Payments,471101,Purchase of Care,03-Dec-2014,2829784-2202417,"1,901.08",AYCLIFFE CARE HOME.
Children and Adult Services,Head of Adults,Third Party Payments,470101,Purchase of Care,03-Dec-2014,2829784-2202418,"1,828.76",AYCLIFFE CARE HOME.
Children and Adult Services,Head of Adults,Third Party Payments,470101,Purchase of Care,03-Dec-2014,2829784-2202419,"1,828.76",AYCLIFFE CARE HOME.
Children and Adult Services,Head of Adults,Third Party Payments,471101,Purchase of Care,03-Dec-2014,2829784-2202420,"1,901.08",AYCLIFFE CARE HOME.
Children and Adult Services,Head of Adults,Third Party Payments,471101,Purchase of Care,03-Dec-2014,2829784-2202421,"1,901.08",AYCLIFFE CARE HOME.
Children and Adult Services,Head of Adults,Third Party Payments,471101,Purchase of Care,03-Dec-2014,2829784-2202422,"1,901.08",AYCLIFFE CARE HOME.
Children and Adult Services,Head of Adults,Third Party Payments,470101,Purchase of Care,03-Dec-2014,2829784-2202423,"1,828.76",AYCLIFFE CARE HOME.
Children and Adult Services,Head of Adults,Third Party Payments,470101,Purchase of Care,03-Dec-2014,2829784-2203310,"3,657.52",AYCLIFFE CARE HOME.
Children and Adult Services,Head of Adults,Third Party Payments,474101,Purchase of Care,03-Dec-2014,2829784-2203312,720.03,AYCLIFFE CARE HOME.
Children and Adult Services,Head of Adults,Third Party Payments,471101,Purchase of Care,03-Dec-2014,2829784-2203317,"1,086.33",AYCLIFFE CARE HOME.
Children and Adult Services,Head of Adults,Third Party Payments,471101,Purchase of Care,03-Dec-2014,2829785-2197870,"1,100.00",BARCHESTER HEALTHCARE HOMES LTD.
Children and Adult Services,Head of Adults,Third Party Payments,471101,Purchase of Care,03-Dec-2014,2829785-2202998,"1,100.00",BARCHESTER HEALTHCARE HOMES LTD.
Children and Adult Services,Head of Adults,Third Party Payments,474101,Purchase of Care,03-Dec-2014,2829786-2200289,960.04,BARCHESTER HEALTHCARE HOMES LTD.
Children and Adult Services,Head of Adults,Third Party Payments,474101,Purchase of Care,03-Dec-2014,2829786-2200291,"1,920.08",BARCHESTER HEALTHCARE HOMES LTD.
Children and Adult Services,Head of Adults,Third Party Payments,474101,Purchase of Care,03-Dec-2014,2829786-2200294,"1,920.08",BARCHESTER HEALTHCARE HOMES LTD.
Children and Adult Services,Head of Adults,Third Party Payments,474101,Purchase of Care,03-Dec-2014,2829786-2200297,960.04,BARCHESTER HEALTHCARE HOMES LTD.
Children and Adult Services,Head of Adults,Third Party Payments,474101,Purchase of Care,03-Dec-2014,2829786-2200299,"2,600.00",BARCHESTER HEALTHCARE HOMES LTD.
Children and Adult Services,Head of Adults,Third Party Payments,474101,Purchase of Care,03-Dec-2014,2829786-2200301,"1,920.08",BARCHESTER HEALTHCARE HOMES LTD.
Children and Adult Services,Head of Adults,Third Party Payments,474101,Purchase of Care,03-Dec-2014,2829786-2200304,960.04,BARCHESTER HEALTHCARE HOMES LTD.
Children and Adult Services,Head of Adults,Third Party Payments,474101,Purchase of Care,03-Dec-2014,2829786-2200307,"1,920.08",BARCHESTER HEALTHCARE HOMES LTD.
Children and Adult Services,Head of Adults,Third Party Payments,470101,Purchase of Care,03-Dec-2014,2829786-2200309,"3,182.00",BARCHESTER HEALTHCARE HOMES LTD.
Children and Adult Services,Head of Adults,Third Party Payments,474101,Purchase of Care,03-Dec-2014,2829786-2200310,960.04,BARCHESTER HEALTHCARE HOMES LTD.
Children and Adult Services,Head of Adults,Third Party Payments,474101,Purchase of Care,03-Dec-2014,2829786-2200312,"1,920.08",BARCHESTER HEALTHCARE HOMES LTD.
Children and Adult Services,Head of Adults,Third Party Payments,474101,Purchase of Care,03-Dec-2014,2829786-2200315,"1,920.08",BARCHESTER HEALTHCARE HOMES LTD.
Children and Adult Services,Head of Adults,Third Party Payments,474101,Purchase of Care,03-Dec-2014,2829786-2200318,"2,094.08",BARCHESTER HEALTHCARE HOMES LTD.
Children and Adult Services,Head of Adults,Third Party Payments,474101,Purchase of Care,03-Dec-2014,2829786-2200321,"1,920.08",BARCHESTER HEALTHCARE HOMES LTD.
Children and Adult Services,Head of Adults,Third Party Payments,474101,Purchase of Care,03-Dec-2014,2829786-2200323,"1,920.08",BARCHESTER HEALTHCARE HOMES LTD.
Children and Adult Services,Head of Adults,Third Party Payments,474101,Purchase of Care,03-Dec-2014,2829786-2200326,"1,920.08",BARCHESTER HEALTHCARE HOMES LTD.
Children and Adult Services,Head of Adults,Third Party Payments,474101,Purchase of Care,03-Dec-2014,2829786-2200329,"1,920.08",BARCHESTER HEALTHCARE HOMES LTD.
Children and Adult Services,Head of Adults,Third Party Payments,474101,Purchase of Care,03-Dec-2014,2829786-2200332,"1,920.08",BARCHESTER HEALTHCARE HOMES LTD.
Children and Adult Services,Head of Adults,Third Party Payments,474101,Purchase of Care,03-Dec-2014,2829786-2200334,"1,920.08",BARCHESTER HEALTHCARE HOMES LTD.
Children and Adult Services,Head of Adults,Third Party Payments,474101,Purchase of Care,03-Dec-2014,2829786-2200337,"1,920.08",BARCHESTER HEALTHCARE HOMES LTD.
Children and Adult Services,Head of Adults,Third Party Payments,474101,Purchase of Care,03-Dec-2014,2829786-2200340,"1,920.08",BARCHESTER HEALTHCARE HOMES LTD.
Children and Adult Services,Head of Adults,Third Party Payments,474101,Purchase of Care,03-Dec-2014,2829786-2200343,"1,920.08",BARCHESTER HEALTHCARE HOMES LTD.
Children and Adult Services,Head of Adults,Third Party Payments,474101,Purchase of Care,03-Dec-2014,2829786-2200347,"1,920.08",BARCHESTER HEALTHCARE HOMES LTD.
Children and Adult Services,Head of Adults,Third Party Payments,474101,Purchase of Care,03-Dec-2014,2829786-2200351,"1,920.08",BARCHESTER HEALTHCARE HOMES LTD.
Children and Adult Services,Head of Adults,Third Party Payments,474101,Purchase of Care,03-Dec-2014,2829786-2200354,"2,094.08",BARCHESTER HEALTHCARE HOMES LTD.
Children and Adult Services,Head of Adults,Third Party Payments,471101,Purchase of Care,03-Dec-2014,2829787-2201293,"2,699.42",BARCHESTER HEALTHCARE HOMES LTD.
Children and Adult Services,Head of Adults,Third Party Payments,471101,Purchase of Care,03-Dec-2014,2829787-2201294,"2,699.42",BARCHESTER HEALTHCARE HOMES LTD.
Children and Adult Services,Head of Adults,Third Party Payments,471101,Purchase of Care,03-Dec-2014,2829787-2201295,"1,872.00",BARCHESTER HEALTHCARE HOMES LTD.
Children and Adult Services,Head of Adults,Third Party Payments,470101,Purchase of Care,03-Dec-2014,2829787-2201296,"2,193.14",BARCHESTER HEALTHCARE HOMES LTD.
Children and Adult Services,Head of Adults,Third Party Payments,471101,Purchase of Care,03-Dec-2014,2829787-2201297,"2,699.42",BARCHESTER HEALTHCARE HOMES LTD.
Children and Adult Services,Head of Adults,Third Party Payments,471101,Purchase of Care,03-Dec-2014,2829787-2201298,"2,699.42",BARCHESTER HEALTHCARE HOMES LTD.
Children and Adult Services,Head of Adults,Third Party Payments,471101,Purchase of Care,03-Dec-2014,2829788-2202944,"1,843.52",BARCHESTER HEALTHCARE HOMES LTD.
Children and Adult Services,Head of Adults,Third Party Payments,471101,Purchase of Care,03-Dec-2014,2829789-2202941,"1,642.20",BARCHESTER HEALTHCARE HOMES LTD.
Children and Adult Services,Head of Adults,Third Party Payments,474101,Purchase of Care,03-Dec-2014,2829791-2197877,"1,984.00",BARCHESTER HEALTHCARE HOMES LTD.
Children and Adult Services,Head of Adults,Third Party Payments,474101,Purchase of Care,03-Dec-2014,2829791-2203004,"1,984.00",BARCHESTER HEALTHCARE HOMES LTD.
Children and Adult Services,Head of Adults,Third Party Payments,470101,Purchase of Care,03-Dec-2014,2829792-2200507,"2,285.95",BEACONSFIELD COURT.
Children and Adult Services,Head of Adults,Third Party Payments,470101,Purchase of Care,03-Dec-2014,2829792-2200508,"1,828.76",BEACONSFIELD COURT.
Children and Adult Services,Head of Adults,Third Party Payments,470101,Purchase of Care,03-Dec-2014,2829792-2200509,"1,828.76",BEACONSFIELD COURT.
Children and Adult Services,Head of Adults,Third Party Payments,470101,Purchase of Care,03-Dec-2014,2829792-2200510,"1,828.76",BEACONSFIELD COURT.
Children and Adult Services,Head of Adults,Third Party Payments,470101,Purchase of Care,03-Dec-2014,2829792-2200511,"1,828.76",BEACONSFIELD COURT.
Children and Adult Services,Head of Adults,Third Party Payments,470101,Purchase of Care,03-Dec-2014,2829792-2200512,"1,828.76",BEACONSFIELD COURT.
Children and Adult Services,Head of Adults,Third Party Payments,470101,Purchase of Care,03-Dec-2014,2829792-2200513,"1,828.76",BEACONSFIELD COURT.
Children and Adult Services,Head of Adults,Third Party Payments,470101,Purchase of Care,03-Dec-2014,2829792-2200514,"1,828.76",BEACONSFIELD COURT.
Children and Adult Services,Head of Adults,Third Party Payments,470101,Purchase of Care,03-Dec-2014,2829792-2200515,"1,828.76",BEACONSFIELD COURT.
Children and Adult Services,Head of Adults,Third Party Payments,470101,Purchase of Care,03-Dec-2014,2829792-2200516,"1,306.25",BEACONSFIELD COURT.
Children and Adult Services,Head of Adults,Third Party Payments,470101,Purchase of Care,03-Dec-2014,2829792-2200518,"1,828.76",BEACONSFIELD COURT.
Children and Adult Services,Head of Adults,Third Party Payments,470101,Purchase of Care,03-Dec-2014,2829792-2200519,"1,828.76",BEACONSFIELD COURT.
Children and Adult Services,Head of Adults,Third Party Payments,470101,Purchase of Care,03-Dec-2014,2829792-2200520,"1,828.76",BEACONSFIELD COURT.
Children and Adult Services,Head of Adults,Third Party Payments,470101,Purchase of Care,03-Dec-2014,2829792-2200522,"1,828.76",BEACONSFIELD COURT.
Children and Adult Services,Head of Adults,Third Party Payments,470101,Purchase of Care,03-Dec-2014,2829792-2200523,"1,828.76",BEACONSFIELD COURT.
Children and Adult Services,Head of Adults,Third Party Payments,470101,Purchase of Care,03-Dec-2014,2829792-2203459,522.50,BEACONSFIELD COURT.
Children and Adult Services,Head of Adults,Third Party Payments,470101,Purchase of Care,03-Dec-2014,2829793-2202201,"1,828.76",BEAMISH RESIDENTIAL HOME.
Children and Adult Services,Head of Adults,Third Party Payments,470101,Purchase of Care,03-Dec-2014,2829793-2202202,896.48,BEAMISH RESIDENTIAL HOME.
Children and Adult Services,Head of Adults,Third Party Payments,470101,Purchase of Care,03-Dec-2014,2829793-2202203,"1,828.76",BEAMISH RESIDENTIAL HOME.
Children and Adult Services,Head of Adults,Third Party Payments,470101,Purchase of Care,03-Dec-2014,2829793-2202204,"1,828.76",BEAMISH RESIDENTIAL HOME.
Children and Adult Services,Head of Adults,Third Party Payments,470101,Purchase of Care,03-Dec-2014,2829793-2202206,"1,095.88",BEAMISH RESIDENTIAL HOME.
Children and Adult Services,Head of Adults,Third Party Payments,470101,Purchase of Care,03-Dec-2014,2829793-2202207,"1,190.32",BEAMISH RESIDENTIAL HOME.
Children and Adult Services,Head of Adults,Third Party Payments,470101,Purchase of Care,03-Dec-2014,2829793-2202208,962.04,BEAMISH RESIDENTIAL HOME.
Children and Adult Services,Head of Adults,Third Party Payments,470101,Purchase of Care,03-Dec-2014,2829793-2202212,"1,332.96",BEAMISH RESIDENTIAL HOME.
Children and Adult Services,Head of Adults,Third Party Payments,470101,Purchase of Care,03-Dec-2014,2829793-2202213,"1,318.76",BEAMISH RESIDENTIAL HOME.
Children and Adult Services,Head of Adults,Third Party Payments,470101,Purchase of Care,03-Dec-2014,2829793-2202214,"1,828.76",BEAMISH RESIDENTIAL HOME.
Children and Adult Services,Head of Adults,Third Party Payments,470101,Purchase of Care,03-Dec-2014,2829793-2202215,"1,268.28",BEAMISH RESIDENTIAL HOME.
Children and Adult Services,Head of Adults,Third Party Payments,470101,Purchase of Care,03-Dec-2014,2829793-2202216,"1,286.68",BEAMISH RESIDENTIAL HOME.
Children and Adult Services,Head of Adults,Third Party Payments,470101,Purchase of Care,03-Dec-2014,2829793-2202217,"1,828.76",BEAMISH RESIDENTIAL HOME.
Children and Adult Services,Head of Adults,Third Party Payments,470101,Purchase of Care,03-Dec-2014,2829793-2203267,522.50,BEAMISH RESIDENTIAL HOME.
Children and Adult Services,Head of Adults,Third Party Payments,470101,Purchase of Care,03-Dec-2014,2829794-2200386,"1,932.28",BEDDELL HOUSE.
Children and Adult Services,Head of Adults,Third Party Payments,470101,Purchase of Care,03-Dec-2014,2829794-2200387,"1,932.28",BEDDELL HOUSE.
Children and Adult Services,Head of Adults,Third Party Payments,470101,Purchase of Care,03-Dec-2014,2829794-2200388,"1,932.28",BEDDELL HOUSE.
Children and Adult Services,Head of Adults,Third Party Payments,470101,Purchase of Care,03-Dec-2014,2829794-2200389,"1,932.28",BEDDELL HOUSE.
Children and Adult Services,Head of Adults,Third Party Payments,470101,Purchase of Care,03-Dec-2014,2829794-2200390,"1,932.28",BEDDELL HOUSE.
Children and Adult Services,Head of Adults,Third Party Payments,470101,Purchase of Care,03-Dec-2014,2829794-2200392,"1,932.28",BEDDELL HOUSE.
Children and Adult Services,Head of Adults,Third Party Payments,470101,Purchase of Care,03-Dec-2014,2829794-2200393,"1,932.28",BEDDELL HOUSE.
Children and Adult Services,Head of Adults,Third Party Payments,470101,Purchase of Care,03-Dec-2014,2829794-2200394,"1,932.28",BEDDELL HOUSE.
Children and Adult Services,Head of Adults,Third Party Payments,470101,Purchase of Care,03-Dec-2014,2829794-2200395,"1,932.28",BEDDELL HOUSE.
Children and Adult Services,Head of Adults,Third Party Payments,470101,Purchase of Care,03-Dec-2014,2829794-2200396,966.16,BEDDELL HOUSE.
Children and Adult Services,Head of Adults,Third Party Payments,470101,Purchase of Care,03-Dec-2014,2829794-2200397,"1,932.28",BEDDELL HOUSE.
Children and Adult Services,Head of Adults,Third Party Payments,470101,Purchase of Care,03-Dec-2014,2829794-2200398,"1,932.28",BEDDELL HOUSE.
Children and Adult Services,Head of Adults,Third Party Payments,470101,Purchase of Care,03-Dec-2014,2829794-2200399,"1,932.28",BEDDELL HOUSE.
Children and Adult Services,Head of Adults,Third Party Payments,470101,Purchase of Care,03-Dec-2014,2829794-2200400,"1,932.28",BEDDELL HOUSE.
Children and Adult Services,Head of Adults,Third Party Payments,470101,Purchase of Care,03-Dec-2014,2829794-2200401,"1,932.28",BEDDELL HOUSE.
Children and Adult Services,Head of Adults,Third Party Payments,470101,Purchase of Care,03-Dec-2014,2829794-2200402,"1,932.28",BEDDELL HOUSE.
Children and Adult Services,Head of Adults,Third Party Payments,470101,Purchase of Care,03-Dec-2014,2829794-2203218,897.13,BEDDELL HOUSE.
Children and Adult Services,Head of Adults,Third Party Payments,470101,Purchase of Care,03-Dec-2014,2829795-2201233,"2,145.00",BEECHWOOD RESIDENTIAL CARE SERVICES.
Children and Adult Services,Head of Adults,Third Party Payments,470101,Purchase of Care,03-Dec-2014,2829795-2201234,"2,145.00",BEECHWOOD RESIDENTIAL CARE SERVICES.
Children and Adult Services,Head of Adults,Third Party Payments,470101,Purchase of Care,03-Dec-2014,2829795-2201235,"2,145.00",BEECHWOOD RESIDENTIAL CARE SERVICES.
Children and Adult Services,Head of Adults,Third Party Payments,474101,Purchase of Care,03-Dec-2014,2829796-2201300,"2,308.00",BELLE VUE HEALTHCARE LTD.
Children and Adult Services,Head of Adults,Third Party Payments,470101,Purchase of Care,03-Dec-2014,2829796-2201301,"1,807.44",BELLE VUE HEALTHCARE LTD.
Children and Adult Services,Head of Adults,Third Party Payments,470101,Purchase of Care,03-Dec-2014,2829797-2201207,"1,514.24",BENAMY HOUSE.
Children and Adult Services,Head of Adults,Third Party Payments,470101,Purchase of Care,03-Dec-2014,2829797-2201208,"1,833.64",BENAMY HOUSE.
Children and Adult Services,Head of Adults,Third Party Payments,470101,Purchase of Care,03-Dec-2014,2829797-2201209,"1,833.64",BENAMY HOUSE.
Children and Adult Services,Head of Adults,Third Party Payments,470101,Purchase of Care,03-Dec-2014,2829797-2201210,"1,514.24",BENAMY HOUSE.
Children and Adult Services,Head of Adults,Third Party Payments,470101,Purchase of Care,03-Dec-2014,2829797-2201211,"1,514.24",BENAMY HOUSE.
Children and Adult Services,Head of Adults,Third Party Payments,474101,Purchase of Care,03-Dec-2014,2829798-2200087,"1,861.96",BENFIELD HALL RESIDENTIAL CARE.
Children and Adult Services,Head of Adults,Third Party Payments,474101,Purchase of Care,03-Dec-2014,2829798-2200089,931.00,BENFIELD HALL RESIDENTIAL CARE.
Children and Adult Services,Head of Adults,Third Party Payments,474101,Purchase of Care,03-Dec-2014,2829798-2200091,"1,366.16",BENFIELD HALL RESIDENTIAL CARE.
Children and Adult Services,Head of Adults,Third Party Payments,474101,Purchase of Care,03-Dec-2014,2829798-2200093,931.00,BENFIELD HALL RESIDENTIAL CARE.
Children and Adult Services,Head of Adults,Third Party Payments,474101,Purchase of Care,03-Dec-2014,2829798-2200095,"1,861.96",BENFIELD HALL RESIDENTIAL CARE.
Children and Adult Services,Head of Adults,Third Party Payments,474101,Purchase of Care,03-Dec-2014,2829798-2200097,931.00,BENFIELD HALL RESIDENTIAL CARE.
Children and Adult Services,Head of Adults,Third Party Payments,474101,Purchase of Care,03-Dec-2014,2829798-2200099,931.00,BENFIELD HALL RESIDENTIAL CARE.
Children and Adult Services,Head of Adults,Third Party Payments,474101,Purchase of Care,03-Dec-2014,2829798-2200101,931.00,BENFIELD HALL RESIDENTIAL CARE.
Children and Adult Services,Head of Adults,Third Party Payments,474101,Purchase of Care,03-Dec-2014,2829798-2200103,931.00,BENFIELD HALL RESIDENTIAL CARE.
Children and Adult Services,Head of Adults,Third Party Payments,471101,Purchase of Care,03-Dec-2014,2829800-2198971,"1,901.08",BISHOPSGATE LODGE.
Children and Adult Services,Head of Adults,Third Party Payments,471101,Purchase of Care,03-Dec-2014,2829800-2198973,"1,901.08",BISHOPSGATE LODGE.
Children and Adult Services,Head of Adults,Third Party Payments,470101,Purchase of Care,03-Dec-2014,2829800-2198974,"1,828.76",BISHOPSGATE LODGE.
Children and Adult Services,Head of Adults,Third Party Payments,474101,Purchase of Care,03-Dec-2014,2829800-2198976,"1,920.08",BISHOPSGATE LODGE.
Children and Adult Services,Head of Adults,Third Party Payments,470101,Purchase of Care,03-Dec-2014,2829800-2198979,"1,828.76",BISHOPSGATE LODGE.
Children and Adult Services,Head of Adults,Third Party Payments,470101,Purchase of Care,03-Dec-2014,2829800-2198980,"1,828.76",BISHOPSGATE LODGE.
Children and Adult Services,Head of Adults,Third Party Payments,474101,Purchase of Care,03-Dec-2014,2829800-2198981,"1,920.08",BISHOPSGATE LODGE.
Children and Adult Services,Head of Adults,Third Party Payments,471101,Purchase of Care,03-Dec-2014,2829800-2198983,678.95,BISHOPSGATE LODGE.
Children and Adult Services,Head of Adults,Third Party Payments,470101,Purchase of Care,03-Dec-2014,2829800-2198984,"1,828.76",BISHOPSGATE LODGE.
Children and Adult Services,Head of Adults,Third Party Payments,474101,Purchase of Care,03-Dec-2014,2829800-2198985,"1,920.08",BISHOPSGATE LODGE.
Children and Adult Services,Head of Adults,Third Party Payments,470101,Purchase of Care,03-Dec-2014,2829800-2198987,"1,828.76",BISHOPSGATE LODGE.
Children and Adult Services,Head of Adults,Third Party Payments,470101,Purchase of Care,03-Dec-2014,2829800-2198988,"1,828.76",BISHOPSGATE LODGE.
Children and Adult Services,Head of Adults,Third Party Payments,471101,Purchase of Care,03-Dec-2014,2829800-2198991,"1,901.08",BISHOPSGATE LODGE.
Children and Adult Services,Head of Adults,Third Party Payments,470101,Purchase of Care,03-Dec-2014,2829800-2198992,"1,828.76",BISHOPSGATE LODGE.
Children and Adult Services,Head of Adults,Third Party Payments,470101,Purchase of Care,03-Dec-2014,2829800-2198993,"1,828.76",BISHOPSGATE LODGE.
Children and Adult Services,Head of Adults,Third Party Payments,474101,Purchase of Care,03-Dec-2014,2829800-2198994,"1,920.08",BISHOPSGATE LODGE.
Children and Adult Services,Head of Adults,Third Party Payments,474101,Purchase of Care,03-Dec-2014,2829800-2198996,"1,920.08",BISHOPSGATE LODGE.
Children and Adult Services,Head of Adults,Third Party Payments,474101,Purchase of Care,03-Dec-2014,2829800-2198998,"1,920.08",BISHOPSGATE LODGE.
Children and Adult Services,Head of Adults,Third Party Payments,470101,Purchase of Care,03-Dec-2014,2829800-2199000,"1,828.76",BISHOPSGATE LODGE.
Children and Adult Services,Head of Adults,Third Party Payments,470101,Purchase of Care,03-Dec-2014,2829800-2199002,"1,828.76",BISHOPSGATE LODGE.
Children and Adult Services,Head of Adults,Third Party Payments,470101,Purchase of Care,03-Dec-2014,2829800-2199003,"1,828.76",BISHOPSGATE LODGE.
Children and Adult Services,Head of Adults,Third Party Payments,470101,Purchase of Care,03-Dec-2014,2829800-2199004,"1,828.76",BISHOPSGATE LODGE.
Children and Adult Services,Head of Adults,Third Party Payments,470101,Purchase of Care,03-Dec-2014,2829800-2199005,"1,828.76",BISHOPSGATE LODGE.
Children and Adult Services,Head of Adults,Third Party Payments,470101,Purchase of Care,03-Dec-2014,2829800-2199006,"1,828.76",BISHOPSGATE LODGE.
Children and Adult Services,Head of Adults,Third Party Payments,474101,Purchase of Care,03-Dec-2014,2829800-2199007,"1,920.08",BISHOPSGATE LODGE.
Children and Adult Services,Head of Adults,Third Party Payments,474101,Purchase of Care,03-Dec-2014,2829800-2199009,"1,920.08",BISHOPSGATE LODGE.
Children and Adult Services,Head of Adults,Third Party Payments,470101,Purchase of Care,03-Dec-2014,2829800-2199011,"1,828.76",BISHOPSGATE LODGE.
Children and Adult Services,Head of Adults,Third Party Payments,470101,Purchase of Care,03-Dec-2014,2829800-2203508,522.50,BISHOPSGATE LODGE.
Children and Adult Services,Head of Adults,Third Party Payments,470101,Purchase of Care,03-Dec-2014,2829801-2203008,"2,600.00",BONHOMIE HOUSE.
Children and Adult Services,Head of Adults,Third Party Payments,474101,Purchase of Care,03-Dec-2014,2829802-2201913,"2,500.00",BOWES COURT CARE HOME.
Children and Adult Services,Head of Adults,Third Party Payments,474101,Purchase of Care,03-Dec-2014,2829802-2201916,"2,525.00",BOWES COURT CARE HOME.
Children and Adult Services,Head of Adults,Third Party Payments,470101,Purchase of Care,03-Dec-2014,2829802-2201917,840.00,BOWES COURT CARE HOME.
Children and Adult Services,Head of Adults,Third Party Payments,474101,Purchase of Care,03-Dec-2014,2829802-2201919,"2,500.00",BOWES COURT CARE HOME.
Children and Adult Services,Head of Adults,Third Party Payments,470101,Purchase of Care,03-Dec-2014,2829802-2201921,"4,444.00",BOWES COURT CARE HOME.
Children and Adult Services,Head of Adults,Third Party Payments,470101,Purchase of Care,03-Dec-2014,2829802-2201922,"2,300.00",BOWES COURT CARE HOME.
Children and Adult Services,Head of Adults,Third Party Payments,470101,Purchase of Care,03-Dec-2014,2829802-2201923,"5,082.00",BOWES COURT CARE HOME.
Children and Adult Services,Head of Adults,Third Party Payments,474101,Purchase of Care,03-Dec-2014,2829802-2201926,"2,525.00",BOWES COURT CARE HOME.
Children and Adult Services,Head of Adults,Third Party Payments,474101,Purchase of Care,03-Dec-2014,2829802-2201928,"2,400.00",BOWES COURT CARE HOME.
Children and Adult Services,Head of Adults,Third Party Payments,474101,Purchase of Care,03-Dec-2014,2829802-2201929,"4,800.00",BOWES COURT CARE HOME.
Children and Adult Services,Head of Adults,Third Party Payments,470101,Purchase of Care,03-Dec-2014,2829802-2201931,"3,672.00",BOWES COURT CARE HOME.
Children and Adult Services,Head of Adults,Third Party Payments,470101,Purchase of Care,03-Dec-2014,2829803-2198798,"1,932.28",BRANCEPETH COURT.
Children and Adult Services,Head of Adults,Third Party Payments,470101,Purchase of Care,03-Dec-2014,2829803-2198799,"1,932.28",BRANCEPETH COURT.
Children and Adult Services,Head of Adults,Third Party Payments,474101,Purchase of Care,03-Dec-2014,2829803-2198800,"2,023.60",BRANCEPETH COURT.
Children and Adult Services,Head of Adults,Third Party Payments,470101,Purchase of Care,03-Dec-2014,2829803-2198802,"1,993.16",BRANCEPETH COURT.
Children and Adult Services,Head of Adults,Third Party Payments,470101,Purchase of Care,03-Dec-2014,2829803-2198803,"1,932.28",BRANCEPETH COURT.
Children and Adult Services,Head of Adults,Third Party Payments,474101,Purchase of Care,03-Dec-2014,2829803-2198804,"2,023.60",BRANCEPETH COURT.
Children and Adult Services,Head of Adults,Third Party Payments,470101,Purchase of Care,03-Dec-2014,2829803-2198806,"1,932.28",BRANCEPETH COURT.
Children and Adult Services,Head of Adults,Third Party Payments,470101,Purchase of Care,03-Dec-2014,2829803-2198807,966.14,BRANCEPETH COURT.
Children and Adult Services,Head of Adults,Third Party Payments,470101,Purchase of Care,03-Dec-2014,2829803-2198810,"1,932.28",BRANCEPETH COURT.
Children and Adult Services,Head of Adults,Third Party Payments,474101,Purchase of Care,03-Dec-2014,2829803-2198811,"2,032.28",BRANCEPETH COURT.
Children and Adult Services,Head of Adults,Third Party Payments,470101,Purchase of Care,03-Dec-2014,2829803-2198813,"1,932.28",BRANCEPETH COURT.
Children and Adult Services,Head of Adults,Third Party Payments,470101,Purchase of Care,03-Dec-2014,2829803-2198814,"1,932.28",BRANCEPETH COURT.
Children and Adult Services,Head of Adults,Third Party Payments,470101,Purchase of Care,03-Dec-2014,2829803-2198815,"1,932.28",BRANCEPETH COURT.
Children and Adult Services,Head of Adults,Third Party Payments,470101,Purchase of Care,03-Dec-2014,2829803-2198816,"1,932.28",BRANCEPETH COURT.
Children and Adult Services,Head of Adults,Third Party Payments,474101,Purchase of Care,03-Dec-2014,2829803-2198817,"2,107.60",BRANCEPETH COURT.
Children and Adult Services,Head of Adults,Third Party Payments,470101,Purchase of Care,03-Dec-2014,2829803-2198819,"1,993.16",BRANCEPETH COURT.
Children and Adult Services,Head of Adults,Third Party Payments,474101,Purchase of Care,03-Dec-2014,2829803-2198820,"2,023.60",BRANCEPETH COURT.
Children and Adult Services,Head of Adults,Third Party Payments,470101,Purchase of Care,03-Dec-2014,2829803-2198822,"1,993.16",BRANCEPETH COURT.
Children and Adult Services,Head of Adults,Third Party Payments,474101,Purchase of Care,03-Dec-2014,2829803-2198823,"2,023.60",BRANCEPETH COURT.
Children and Adult Services,Head of Adults,Third Party Payments,470101,Purchase of Care,03-Dec-2014,2829803-2198825,"1,932.28",BRANCEPETH COURT.
Children and Adult Services,Head of Adults,Third Party Payments,470101,Purchase of Care,03-Dec-2014,2829803-2198826,"1,993.16",BRANCEPETH COURT.
Children and Adult Services,Head of Adults,Third Party Payments,470101,Purchase of Care,03-Dec-2014,2829803-2198827,"1,993.16",BRANCEPETH COURT.
Children and Adult Services,Head of Adults,Third Party Payments,470101,Purchase of Care,03-Dec-2014,2829803-2198828,"1,993.16",BRANCEPETH COURT.
Children and Adult Services,Head of Adults,Third Party Payments,470101,Purchase of Care,03-Dec-2014,2829803-2198829,"1,993.16",BRANCEPETH COURT.
Children and Adult Services,Head of Adults,Third Party Payments,474101,Purchase of Care,03-Dec-2014,2829803-2198830,"2,032.28",BRANCEPETH COURT.
Children and Adult Services,Head of Adults,Third Party Payments,474101,Purchase of Care,03-Dec-2014,2829803-2203130,505.90,BRANCEPETH COURT.
Children and Adult Services,Head of Adults,Third Party Payments,470101,Purchase of Care,03-Dec-2014,2829803-2203511,"1,993.16",BRANCEPETH COURT.
Children and Adult Services,Head of Adults,Third Party Payments,470101,Purchase of Care,03-Dec-2014,2829804-2195701,"2,166.76",BRIDGEWOOD TRUST LTD.
Children and Adult Services,Head of Adults,Third Party Payments,470101,Purchase of Care,03-Dec-2014,2829804-2200854,"2,166.76",BRIDGEWOOD TRUST LTD.
Children and Adult Services,Head of Adults,Third Party Payments,471101,Purchase of Care,03-Dec-2014,2829805-2199463,"2,003.56",BROOMHOUSE CARE LTD.
Children and Adult Services,Head of Adults,Third Party Payments,471101,Purchase of Care,03-Dec-2014,2829805-2199464,"2,003.56",BROOMHOUSE CARE LTD.
Children and Adult Services,Head of Adults,Third Party Payments,471101,Purchase of Care,03-Dec-2014,2829805-2199466,"2,003.56",BROOMHOUSE CARE LTD.
Children and Adult Services,Head of Adults,Third Party Payments,470101,Purchase of Care,03-Dec-2014,2829805-2199467,"1,292.92",BROOMHOUSE CARE LTD.
Children and Adult Services,Head of Adults,Third Party Payments,470101,Purchase of Care,03-Dec-2014,2829805-2199469,"1,184.84",BROOMHOUSE CARE LTD.
Children and Adult Services,Head of Adults,Third Party Payments,471101,Purchase of Care,03-Dec-2014,2829805-2199470,"1,555.76",BROOMHOUSE CARE LTD.
Children and Adult Services,Head of Adults,Third Party Payments,470101,Purchase of Care,03-Dec-2014,2829805-2199471,"1,436.48",BROOMHOUSE CARE LTD.
Children and Adult Services,Head of Adults,Third Party Payments,470101,Purchase of Care,03-Dec-2014,2829805-2199472,"1,436.48",BROOMHOUSE CARE LTD.
Children and Adult Services,Head of Adults,Third Party Payments,471101,Purchase of Care,03-Dec-2014,2829805-2199473,"1,191.76",BROOMHOUSE CARE LTD.
Children and Adult Services,Head of Adults,Third Party Payments,471101,Purchase of Care,03-Dec-2014,2829805-2199474,"1,386.68",BROOMHOUSE CARE LTD.
Children and Adult Services,Head of Adults,Third Party Payments,470101,Purchase of Care,03-Dec-2014,2829805-2199475,"1,436.48",BROOMHOUSE CARE LTD.
Children and Adult Services,Head of Adults,Third Party Payments,471101,Purchase of Care,03-Dec-2014,2829805-2203110,"1,359.55",BROOMHOUSE CARE LTD.
Children and Adult Services,Head of Adults,Third Party Payments,474101,Purchase of Care,03-Dec-2014,2829806-2200435,"1,631.12",BUPA CARE SERVICES.
Children and Adult Services,Head of Adults,Third Party Payments,474101,Purchase of Care,03-Dec-2014,2829806-2200436,"1,950.52",BUPA CARE SERVICES.
Children and Adult Services,Head of Adults,Third Party Payments,474101,Purchase of Care,03-Dec-2014,236652-2201886,"2,694.00",CARELINE LIFESTYLES LTD.
Children and Adult Services,Head of Adults,Third Party Payments,470101,Purchase of Care,03-Dec-2014,236652-2201888,"2,500.00",CARELINE LIFESTYLES LTD.
Children and Adult Services,Head of Adults,Third Party Payments,470101,Purchase of Care,03-Dec-2014,236652-2201889,"2,016.00",CARELINE LIFESTYLES LTD.
Children and Adult Services,Head of Adults,Third Party Payments,474101,Purchase of Care,03-Dec-2014,2829808-2202730,"4,800.00",CARELINE LIFESTYLES LTD.
Children and Adult Services,Head of Adults,Third Party Payments,474101,Purchase of Care,03-Dec-2014,2829808-2202731,"2,808.00",CARELINE LIFESTYLES LTD.
Children and Adult Services,Head of Adults,Third Party Payments,470101,Purchase of Care,03-Dec-2014,2829809-2201592,"2,461.68",CARELINE LIFESTYLES LTD.
Children and Adult Services,Head of Adults,Third Party Payments,474101,Purchase of Care,03-Dec-2014,2829810-2202994,"5,400.00",CARELINE LIFESTYLES LTD.
Children and Adult Services,Head of Adults,Third Party Payments,474101,Purchase of Care,03-Dec-2014,2829810-2202995,"3,908.00",CARELINE LIFESTYLES LTD.
Children and Adult Services,Head of Adults,Third Party Payments,474101,Purchase of Care,03-Dec-2014,2829810-2202996,"5,400.00",CARELINE LIFESTYLES LTD.
Children and Adult Services,Head of Adults,Third Party Payments,474101,Purchase of Care,03-Dec-2014,2829810-2202997,"2,300.00",CARELINE LIFESTYLES LTD.
Children and Adult Services,Head of Adults,Third Party Payments,470101,Purchase of Care,03-Dec-2014,2829811-2201778,"1,932.28",CHILTON CARE CENTRE.
Children and Adult Services,Head of Adults,Third Party Payments,470101,Purchase of Care,03-Dec-2014,2829811-2201779,"1,436.48",CHILTON CARE CENTRE.
Children and Adult Services,Head of Adults,Third Party Payments,470101,Purchase of Care,03-Dec-2014,2829811-2201780,"1,087.00",CHILTON CARE CENTRE.
Children and Adult Services,Head of Adults,Third Party Payments,470101,Purchase of Care,03-Dec-2014,2829811-2201781,"1,004.61",CHILTON CARE CENTRE.
Children and Adult Services,Head of Adults,Third Party Payments,470101,Purchase of Care,03-Dec-2014,2829811-2201782,"1,251.80",CHILTON CARE CENTRE.
Children and Adult Services,Head of Adults,Third Party Payments,470101,Purchase of Care,03-Dec-2014,2829811-2201783,621.09,CHILTON CARE CENTRE.
Children and Adult Services,Head of Adults,Third Party Payments,470101,Purchase of Care,03-Dec-2014,2829811-2201784,"1,932.28",CHILTON CARE CENTRE.
Children and Adult Services,Head of Adults,Third Party Payments,471101,Purchase of Care,03-Dec-2014,2829811-2201785,"1,467.76",CHILTON CARE CENTRE.
Children and Adult Services,Head of Adults,Third Party Payments,471101,Purchase of Care,03-Dec-2014,2829811-2201786,"1,159.20",CHILTON CARE CENTRE.
Children and Adult Services,Head of Adults,Third Party Payments,470101,Purchase of Care,03-Dec-2014,2829811-2201787,618.82,CHILTON CARE CENTRE.
Children and Adult Services,Head of Adults,Third Party Payments,470101,Purchase of Care,03-Dec-2014,2829811-2201788,"1,677.40",CHILTON CARE CENTRE.
Children and Adult Services,Head of Adults,Third Party Payments,470101,Purchase of Care,03-Dec-2014,2829811-2201789,"1,383.65",CHILTON CARE CENTRE.
Children and Adult Services,Head of Adults,Third Party Payments,470101,Purchase of Care,03-Dec-2014,2829811-2201790,"1,135.60",CHILTON CARE CENTRE.
Children and Adult Services,Head of Adults,Third Party Payments,470101,Purchase of Care,03-Dec-2014,2829811-2201791,"1,389.68",CHILTON CARE CENTRE.
Children and Adult Services,Head of Adults,Third Party Payments,470101,Purchase of Care,03-Dec-2014,2829811-2201792,"1,184.92",CHILTON CARE CENTRE.
Children and Adult Services,Head of Adults,Third Party Payments,471101,Purchase of Care,03-Dec-2014,2829811-2201793,993.24,CHILTON CARE CENTRE.
Children and Adult Services,Head of Adults,Third Party Payments,471101,Purchase of Care,03-Dec-2014,2829811-2201794,"2,003.56",CHILTON CARE CENTRE.
Children and Adult Services,Head of Adults,Third Party Payments,470101,Purchase of Care,03-Dec-2014,2829811-2201795,"1,404.44",CHILTON CARE CENTRE.
Children and Adult Services,Head of Adults,Third Party Payments,470101,Purchase of Care,03-Dec-2014,2829811-2201796,"1,932.28",CHILTON CARE CENTRE.
Children and Adult Services,Head of Adults,Third Party Payments,471101,Purchase of Care,03-Dec-2014,2829811-2201797,"1,507.76",CHILTON CARE CENTRE.
Children and Adult Services,Head of Adults,Third Party Payments,471101,Purchase of Care,03-Dec-2014,2829811-2201798,"1,154.84",CHILTON CARE CENTRE.
Children and Adult Services,Head of Adults,Third Party Payments,470101,Purchase of Care,03-Dec-2014,2829811-2201799,707.56,CHILTON CARE CENTRE.
Children and Adult Services,Head of Adults,Third Party Payments,471101,Purchase of Care,03-Dec-2014,2829811-2201800,"2,003.56",CHILTON CARE CENTRE.
Children and Adult Services,Head of Adults,Third Party Payments,470101,Purchase of Care,03-Dec-2014,2829811-2201801,"1,436.48",CHILTON CARE CENTRE.
Children and Adult Services,Head of Adults,Third Party Payments,471101,Purchase of Care,03-Dec-2014,2829811-2201802,"2,003.56",CHILTON CARE CENTRE.
Children and Adult Services,Head of Adults,Third Party Payments,470101,Purchase of Care,03-Dec-2014,2829811-2201803,"1,440.28",CHILTON CARE CENTRE.
Children and Adult Services,Head of Adults,Third Party Payments,470101,Purchase of Care,03-Dec-2014,2829811-2201804,"1,436.48",CHILTON CARE CENTRE.
Children and Adult Services,Head of Adults,Third Party Payments,471101,Purchase of Care,03-Dec-2014,2829811-2201805,"1,507.76",CHILTON CARE CENTRE.
Children and Adult Services,Head of Adults,Third Party Payments,471101,Purchase of Care,03-Dec-2014,2829811-2201806,"1,201.88",CHILTON CARE CENTRE.
Children and Adult Services,Head of Adults,Third Party Payments,470101,Purchase of Care,03-Dec-2014,2829811-2201807,"1,932.28",CHILTON CARE CENTRE.
Children and Adult Services,Head of Adults,Third Party Payments,471101,Purchase of Care,03-Dec-2014,2829811-2201808,"1,507.76",CHILTON CARE CENTRE.
Children and Adult Services,Head of Adults,Third Party Payments,470101,Purchase of Care,03-Dec-2014,2829811-2201809,"1,932.28",CHILTON CARE CENTRE.
Children and Adult Services,Head of Adults,Third Party Payments,470101,Purchase of Care,03-Dec-2014,2829811-2201810,"1,132.88",CHILTON CARE CENTRE.
Children and Adult Services,Head of Adults,Third Party Payments,471101,Purchase of Care,03-Dec-2014,2829811-2201811,"1,371.84",CHILTON CARE CENTRE.
Children and Adult Services,Head of Adults,Third Party Payments,471101,Purchase of Care,03-Dec-2014,2829811-2201812,"1,507.76",CHILTON CARE CENTRE.
Children and Adult Services,Head of Adults,Third Party Payments,471101,Purchase of Care,03-Dec-2014,2829811-2201813,"1,507.76",CHILTON CARE CENTRE.
Children and Adult Services,Head of Adults,Third Party Payments,470101,Purchase of Care,03-Dec-2014,2829811-2201814,"1,288.84",CHILTON CARE CENTRE.
Children and Adult Services,Head of Adults,Third Party Payments,470101,Purchase of Care,03-Dec-2014,2829812-2201566,"1,932.28",CHURCH VIEW CARE HOME.
Children and Adult Services,Head of Adults,Third Party Payments,470101,Purchase of Care,03-Dec-2014,2829812-2201567,"1,932.28",CHURCH VIEW CARE HOME.
Children and Adult Services,Head of Adults,Third Party Payments,471101,Purchase of Care,03-Dec-2014,2829812-2201568,"2,003.56",CHURCH VIEW CARE HOME.
Children and Adult Services,Head of Adults,Third Party Payments,470101,Purchase of Care,03-Dec-2014,2829812-2201570,"1,932.28",CHURCH VIEW CARE HOME.
Children and Adult Services,Head of Adults,Third Party Payments,470101,Purchase of Care,03-Dec-2014,2829812-2201571,"1,932.28",CHURCH VIEW CARE HOME.
Children and Adult Services,Head of Adults,Third Party Payments,470101,Purchase of Care,03-Dec-2014,2829812-2201572,"1,932.28",CHURCH VIEW CARE HOME.
Children and Adult Services,Head of Adults,Third Party Payments,471101,Purchase of Care,03-Dec-2014,2829812-2201573,"2,003.56",CHURCH VIEW CARE HOME.
Children and Adult Services,Head of Adults,Third Party Payments,471101,Purchase of Care,03-Dec-2014,2829812-2201574,"2,003.56",CHURCH VIEW CARE HOME.
Children and Adult Services,Head of Adults,Third Party Payments,470101,Purchase of Care,03-Dec-2014,2829812-2201575,"1,932.28",CHURCH VIEW CARE HOME.
Children and Adult Services,Head of Adults,Third Party Payments,471101,Purchase of Care,03-Dec-2014,2829812-2201576,"2,003.56",CHURCH VIEW CARE HOME.
Children and Adult Services,Head of Adults,Third Party Payments,470101,Purchase of Care,03-Dec-2014,2829812-2201577,"1,932.28",CHURCH VIEW CARE HOME.
Children and Adult Services,Head of Adults,Third Party Payments,470101,Purchase of Care,03-Dec-2014,2829812-2201578,"1,932.28",CHURCH VIEW CARE HOME.
Children and Adult Services,Head of Adults,Third Party Payments,471101,Purchase of Care,03-Dec-2014,2829812-2201579,"2,003.56",CHURCH VIEW CARE HOME.
Children and Adult Services,Head of Adults,Third Party Payments,471101,Purchase of Care,03-Dec-2014,2829812-2201580,"2,003.56",CHURCH VIEW CARE HOME.
Children and Adult Services,Head of Adults,Third Party Payments,470101,Purchase of Care,03-Dec-2014,2829812-2201581,"1,932.28",CHURCH VIEW CARE HOME.
Children and Adult Services,Head of Adults,Third Party Payments,471101,Purchase of Care,03-Dec-2014,2829812-2201582,"2,003.56",CHURCH VIEW CARE HOME.
Children and Adult Services,Head of Adults,Third Party Payments,470101,Purchase of Care,03-Dec-2014,2829812-2201583,759.11,CHURCH VIEW CARE HOME.
Children and Adult Services,Head of Adults,Third Party Payments,471101,Purchase of Care,03-Dec-2014,2829812-2201584,"2,003.56",CHURCH VIEW CARE HOME.
Children and Adult Services,Head of Adults,Third Party Payments,470101,Purchase of Care,03-Dec-2014,2829812-2201585,"1,932.28",CHURCH VIEW CARE HOME.
Children and Adult Services,Head of Adults,Third Party Payments,470101,Purchase of Care,03-Dec-2014,2829812-2201586,"1,932.28",CHURCH VIEW CARE HOME.
Children and Adult Services,Head of Adults,Third Party Payments,470101,Purchase of Care,03-Dec-2014,2829812-2201587,"1,932.28",CHURCH VIEW CARE HOME.
Children and Adult Services,Head of Adults,Third Party Payments,471101,Purchase of Care,03-Dec-2014,2829812-2201588,"2,003.56",CHURCH VIEW CARE HOME.
Children and Adult Services,Head of Adults,Third Party Payments,471101,Purchase of Care,03-Dec-2014,2829812-2201589,"2,003.56",CHURCH VIEW CARE HOME.
Children and Adult Services,Head of Adults,Third Party Payments,470101,Purchase of Care,03-Dec-2014,2829812-2201590,"1,932.28",CHURCH VIEW CARE HOME.
Children and Adult Services,Head of Adults,Third Party Payments,471101,Purchase of Care,03-Dec-2014,2829812-2201591,"2,003.56",CHURCH VIEW CARE HOME.
Children and Adult Services,Head of Adults,Third Party Payments,470101,Purchase of Care,03-Dec-2014,2829813-2202483,"1,828.76",CHURCH VIEW RESIDENTIAL CARE HOME.
Children and Adult Services,Head of Adults,Third Party Payments,471101,Purchase of Care,03-Dec-2014,2829813-2202485,"1,901.08",CHURCH VIEW RESIDENTIAL CARE HOME.
Children and Adult Services,Head of Adults,Third Party Payments,471101,Purchase of Care,03-Dec-2014,2829813-2202486,"1,901.08",CHURCH VIEW RESIDENTIAL CARE HOME.
Children and Adult Services,Head of Adults,Third Party Payments,471101,Purchase of Care,03-Dec-2014,2829813-2202487,"1,901.08",CHURCH VIEW RESIDENTIAL CARE HOME.
Children and Adult Services,Head of Adults,Third Party Payments,471101,Purchase of Care,03-Dec-2014,2829813-2202488,"1,901.08",CHURCH VIEW RESIDENTIAL CARE HOME.
Children and Adult Services,Head of Adults,Third Party Payments,470101,Purchase of Care,03-Dec-2014,2829813-2202489,"1,828.76",CHURCH VIEW RESIDENTIAL CARE HOME.
Children and Adult Services,Head of Adults,Third Party Payments,470101,Purchase of Care,03-Dec-2014,2829813-2202490,"1,175.63",CHURCH VIEW RESIDENTIAL CARE HOME.
Children and Adult Services,Head of Adults,Third Party Payments,471101,Purchase of Care,03-Dec-2014,2829813-2202492,"1,901.08",CHURCH VIEW RESIDENTIAL CARE HOME.
Children and Adult Services,Head of Adults,Third Party Payments,470101,Purchase of Care,03-Dec-2014,2829813-2202493,"1,828.76",CHURCH VIEW RESIDENTIAL CARE HOME.
Children and Adult Services,Head of Adults,Third Party Payments,471101,Purchase of Care,03-Dec-2014,2829813-2202494,"1,901.08",CHURCH VIEW RESIDENTIAL CARE HOME.
Children and Adult Services,Head of Adults,Third Party Payments,471101,Purchase of Care,03-Dec-2014,2829813-2202495,678.95,CHURCH VIEW RESIDENTIAL CARE HOME.
Children and Adult Services,Head of Adults,Third Party Payments,470101,Purchase of Care,03-Dec-2014,2829813-2202496,"1,240.94",CHURCH VIEW RESIDENTIAL CARE HOME.
Children and Adult Services,Head of Adults,Third Party Payments,470101,Purchase of Care,03-Dec-2014,2829813-2202497,"1,567.50",CHURCH VIEW RESIDENTIAL CARE HOME.
Children and Adult Services,Head of Adults,Third Party Payments,471101,Purchase of Care,03-Dec-2014,2829813-2202499,"1,901.08",CHURCH VIEW RESIDENTIAL CARE HOME.
Children and Adult Services,Head of Adults,Third Party Payments,471101,Purchase of Care,03-Dec-2014,2829813-2202500,"1,901.08",CHURCH VIEW RESIDENTIAL CARE HOME.
Children and Adult Services,Head of Adults,Third Party Payments,470101,Purchase of Care,03-Dec-2014,2829813-2202501,"1,828.76",CHURCH VIEW RESIDENTIAL CARE HOME.
Children and Adult Services,Head of Adults,Third Party Payments,470101,Purchase of Care,03-Dec-2014,2829813-2202502,"1,828.76",CHURCH VIEW RESIDENTIAL CARE HOME.
Children and Adult Services,Head of Adults,Third Party Payments,471101,Purchase of Care,03-Dec-2014,2829813-2202503,"1,901.08",CHURCH VIEW RESIDENTIAL CARE HOME.
Children and Adult Services,Head of Adults,Third Party Payments,470101,Purchase of Care,03-Dec-2014,2829813-2202504,"1,828.76",CHURCH VIEW RESIDENTIAL CARE HOME.
Children and Adult Services,Head of Adults,Third Party Payments,470101,Purchase of Care,03-Dec-2014,2829813-2202505,"1,828.76",CHURCH VIEW RESIDENTIAL CARE HOME.
Children and Adult Services,Head of Adults,Third Party Payments,471101,Purchase of Care,03-Dec-2014,2829813-2202506,"1,901.08",CHURCH VIEW RESIDENTIAL CARE HOME.
Children and Adult Services,Head of Adults,Third Party Payments,470101,Purchase of Care,03-Dec-2014,2829813-2202507,"1,828.76",CHURCH VIEW RESIDENTIAL CARE HOME.
Children and Adult Services,Head of Adults,Third Party Payments,470101,Purchase of Care,03-Dec-2014,2829813-2202508,"1,828.76",CHURCH VIEW RESIDENTIAL CARE HOME.
Children and Adult Services,Head of Adults,Third Party Payments,471101,Purchase of Care,03-Dec-2014,2829813-2202509,"1,901.08",CHURCH VIEW RESIDENTIAL CARE HOME.
Children and Adult Services,Head of Adults,Third Party Payments,471101,Purchase of Care,03-Dec-2014,2829813-2202510,"1,901.08",CHURCH VIEW RESIDENTIAL CARE HOME.
Children and Adult Services,Head of Adults,Third Party Payments,471101,Purchase of Care,03-Dec-2014,2829813-2202511,"1,901.08",CHURCH VIEW RESIDENTIAL CARE HOME.
Children and Adult Services,Head of Adults,Third Party Payments,470101,Purchase of Care,03-Dec-2014,2829813-2202512,"1,828.76",CHURCH VIEW RESIDENTIAL CARE HOME.
Children and Adult Services,Head of Adults,Third Party Payments,471101,Purchase of Care,03-Dec-2014,2829813-2202513,"1,901.08",CHURCH VIEW RESIDENTIAL CARE HOME.
Children and Adult Services,Head of Adults,Third Party Payments,471101,Purchase of Care,03-Dec-2014,2829813-2202514,"1,901.08",CHURCH VIEW RESIDENTIAL CARE HOME.
Children and Adult Services,Head of Adults,Third Party Payments,470101,Purchase of Care,03-Dec-2014,2829813-2202515,"1,828.76",CHURCH VIEW RESIDENTIAL CARE HOME.
Children and Adult Services,Head of Adults,Third Party Payments,470101,Purchase of Care,03-Dec-2014,2829813-2202516,"1,828.76",CHURCH VIEW RESIDENTIAL CARE HOME.
Children and Adult Services,Head of Adults,Third Party Payments,471101,Purchase of Care,03-Dec-2014,2829813-2202517,"1,901.08",CHURCH VIEW RESIDENTIAL CARE HOME.
Children and Adult Services,Head of Adults,Third Party Payments,471101,Purchase of Care,03-Dec-2014,2829813-2202518,"1,901.08",CHURCH VIEW RESIDENTIAL CARE HOME.
Children and Adult Services,Head of Adults,Third Party Payments,470101,Purchase of Care,03-Dec-2014,2829813-2203345,"1,110.31",CHURCH VIEW RESIDENTIAL CARE HOME.
Children and Adult Services,Head of Adults,Third Party Payments,470101,Purchase of Care,03-Dec-2014,2829813-2203346,"1,750.37",CHURCH VIEW RESIDENTIAL CARE HOME.
Children and Adult Services,Head of Adults,Third Party Payments,474101,Purchase of Care,03-Dec-2014,2829814-2202958,"1,673.20",CLEVELAND PARK CARE HOME.
Children and Adult Services,Childrens Services,Third Party Payments,479101,Purchase of Care,03-Dec-2014,2830185-3910005301,"10,840.67",CO DURHAM & DARLINGTON NHS FOUNDATION TRUST.
Children and Adult Services,Head of Adults,Third Party Payments,471101,Purchase of Care,03-Dec-2014,2829817-2186843,"1,896.00",COVERAGE CARE SERVICES LTD/COTON HILL HOUSE.
Children and Adult Services,Head of Adults,Third Party Payments,471101,Purchase of Care,03-Dec-2014,2829817-2196993,"1,896.00",COVERAGE CARE SERVICES LTD/COTON HILL HOUSE.
Children and Adult Services,Head of Adults,Third Party Payments,474101,Purchase of Care,03-Dec-2014,2829818-2200640,"2,023.60",CRAIGARRAN CARE HOME WITH NURSING.
Children and Adult Services,Head of Adults,Third Party Payments,474101,Purchase of Care,03-Dec-2014,2829818-2200642,"2,023.60",CRAIGARRAN CARE HOME WITH NURSING.
Children and Adult Services,Head of Adults,Third Party Payments,470101,Purchase of Care,03-Dec-2014,2829818-2200644,"1,932.28",CRAIGARRAN CARE HOME WITH NURSING.
Children and Adult Services,Head of Adults,Third Party Payments,474101,Purchase of Care,03-Dec-2014,2829818-2200645,"2,023.60",CRAIGARRAN CARE HOME WITH NURSING.
Children and Adult Services,Head of Adults,Third Party Payments,474101,Purchase of Care,03-Dec-2014,2829818-2200647,"2,023.60",CRAIGARRAN CARE HOME WITH NURSING.
Children and Adult Services,Head of Adults,Third Party Payments,470101,Purchase of Care,03-Dec-2014,2829818-2200649,"1,932.28",CRAIGARRAN CARE HOME WITH NURSING.
Children and Adult Services,Head of Adults,Third Party Payments,470101,Purchase of Care,03-Dec-2014,2829818-2200651,"1,932.28",CRAIGARRAN CARE HOME WITH NURSING.
Children and Adult Services,Head of Adults,Third Party Payments,474101,Purchase of Care,03-Dec-2014,2829818-2200652,"2,023.60",CRAIGARRAN CARE HOME WITH NURSING.
Children and Adult Services,Head of Adults,Third Party Payments,474101,Purchase of Care,03-Dec-2014,2829818-2200654,"2,023.60",CRAIGARRAN CARE HOME WITH NURSING.
Children and Adult Services,Head of Adults,Third Party Payments,470101,Purchase of Care,03-Dec-2014,2829818-2200656,"1,932.28",CRAIGARRAN CARE HOME WITH NURSING.
Children and Adult Services,Head of Adults,Third Party Payments,470101,Purchase of Care,03-Dec-2014,2829818-2200657,"1,932.28",CRAIGARRAN CARE HOME WITH NURSING.
Children and Adult Services,Head of Adults,Third Party Payments,474101,Purchase of Care,03-Dec-2014,2829818-2200658,"2,023.60",CRAIGARRAN CARE HOME WITH NURSING.
Children and Adult Services,Head of Adults,Third Party Payments,474101,Purchase of Care,03-Dec-2014,2829818-2200660,"2,023.60",CRAIGARRAN CARE HOME WITH NURSING.
Children and Adult Services,Head of Adults,Third Party Payments,474101,Purchase of Care,03-Dec-2014,2829818-2200662,"2,023.60",CRAIGARRAN CARE HOME WITH NURSING.
Children and Adult Services,Head of Adults,Third Party Payments,471101,Purchase of Care,03-Dec-2014,2829818-2200664,"2,003.56",CRAIGARRAN CARE HOME WITH NURSING.
Children and Adult Services,Head of Adults,Third Party Payments,474101,Purchase of Care,03-Dec-2014,2829818-2200668,"2,023.60",CRAIGARRAN CARE HOME WITH NURSING.
Children and Adult Services,Head of Adults,Third Party Payments,470101,Purchase of Care,03-Dec-2014,2829818-2200670,"1,932.28",CRAIGARRAN CARE HOME WITH NURSING.
Children and Adult Services,Head of Adults,Third Party Payments,474101,Purchase of Care,03-Dec-2014,2829818-2200671,"2,023.60",CRAIGARRAN CARE HOME WITH NURSING.
Children and Adult Services,Head of Adults,Third Party Payments,471101,Purchase of Care,03-Dec-2014,2829818-2200673,"2,003.56",CRAIGARRAN CARE HOME WITH NURSING.
Children and Adult Services,Head of Adults,Third Party Payments,471101,Purchase of Care,03-Dec-2014,2829818-2200674,"2,003.56",CRAIGARRAN CARE HOME WITH NURSING.
Children and Adult Services,Head of Adults,Third Party Payments,474101,Purchase of Care,03-Dec-2014,2829818-2200675,"2,023.60",CRAIGARRAN CARE HOME WITH NURSING.
Children and Adult Services,Head of Adults,Third Party Payments,474101,Purchase of Care,03-Dec-2014,2829818-2200677,"2,023.60",CRAIGARRAN CARE HOME WITH NURSING.
Children and Adult Services,Head of Adults,Third Party Payments,474101,Purchase of Care,03-Dec-2014,2829818-2200679,"2,023.60",CRAIGARRAN CARE HOME WITH NURSING.
Children and Adult Services,Head of Adults,Third Party Payments,470101,Purchase of Care,03-Dec-2014,2829818-2200681,"1,932.28",CRAIGARRAN CARE HOME WITH NURSING.
Children and Adult Services,Head of Adults,Third Party Payments,471101,Purchase of Care,03-Dec-2014,2829818-2200682,"2,003.56",CRAIGARRAN CARE HOME WITH NURSING.
Children and Adult Services,Head of Adults,Third Party Payments,471101,Purchase of Care,03-Dec-2014,2829818-2200683,"2,003.56",CRAIGARRAN CARE HOME WITH NURSING.
Children and Adult Services,Head of Adults,Third Party Payments,474101,Purchase of Care,03-Dec-2014,2829818-2200684,"2,023.60",CRAIGARRAN CARE HOME WITH NURSING.
